Department,Entity, Transaction Date, Expense Type, Expense Area, Supplier Name,Transaction number, Amount, Invoice Description
DFID,DFID,02/06/2016,Air fares ,Finance and Corporate Performance Division ,Corporate travel provider,100008-101 ,"1,396.03",
DFID,DFID,02/06/2016,Air fares ,East and Central Africa ,Corporate travel provider,100016-107 ,"1,626.23",
DFID,DFID,02/06/2016,Air fares ,East and Central Africa ,Corporate travel provider,100016-107 ,756.61,
DFID,DFID,02/06/2016,Air fares ,Research and Evidence Division ,Corporate travel provider,100039-111 ,550.84,
DFID,DFID,02/06/2016,Air fares ,Policy Division ,Corporate travel provider,100045-101 ,796.93,
DFID,DFID,02/06/2016,Air fares ,Conflict  Humanitarian  Security & Stabilisation Division ,Corporate travel provider,100049-133 ,628.32,
DFID,DFID,02/06/2016,Hotels - Accommodation only ,Conflict  Humanitarian  Security & Stabilisation Division ,Corporate travel provider,100049-133 ,674.82,
DFID,DFID,02/06/2016,Hotels - Accommodation only ,Conflict  Humanitarian  Security & Stabilisation Division ,Corporate travel provider,100049-134 ,878.51,
DFID,DFID,02/06/2016,Air fares ,West and Southern Africa ,Corporate travel provider,100068-101 ,818.90,
DFID,DFID,02/06/2016,Repairs  Maint  Alter - Property & Constrct. Services ,East and Central Africa ,Foreign & Commonwealth Office ,100083-102 ,"33,000.00",
DFID,DFID,02/06/2016,Hotels - Accommodation only ,Global Funds ,Corporate travel provider,100098-101 ,738.73,
DFID,DFID,02/06/2016,Air fares ,Global Funds ,Corporate travel provider,100098-101 ,634.45,
DFID,DFID,30/06/2016,Office Supplies ,Group Operations ,Office Needs Direct ,100106-101 ,505.60,
DFID,DFID,30/06/2016,Postage Costs ,Group Operations ,Neopost ,100106-101 ,510.00,
DFID,DFID,30/06/2016,Postage Costs ,Group Operations ,Neopost ,100106-101 ,510.00,
DFID,DFID,02/06/2016,Air fares ,Economic Development Division ,Corporate travel provider,100111-101 ,783.15,
DFID,DFID,02/06/2016,Air fares ,Economic Development Division ,Corporate travel provider,100111-101 ,"1,191.95",
DFID,DFID,27/06/2016,Hotels - Accommodation only ,Internal Audit ,Foreign & Commonwealth Office ,100121-101 ,"1,135.12",
DFID,DFID,02/06/2016,Air fares ,Internal Audit ,Corporate travel provider,100121-101 ,551.17,
DFID,DFID,02/06/2016,Air fares ,Internal Audit ,Corporate travel provider,100121-101 ,551.17,
DFID,DFID,02/06/2016,Air fares ,Internal Audit ,Corporate travel provider,100121-101 ,538.07,
DFID,DFID,02/06/2016,Air fares ,Internal Audit ,Corporate travel provider,100121-101 ,505.04,
DFID,DFID,02/06/2016,Air fares ,Internal Audit ,Corporate travel provider,100121-101 ,803.47,
DFID,DFID,02/06/2016,Hotels - Accommodation only ,Economic Development Division ,Corporate travel provider,100124-101 ,638.71,
DFID,DFID,02/06/2016,Air fares ,Middle East and North Africa Division ,Corporate travel provider,100146-101 ,"1,008.35",
DFID,DFID,02/06/2016,Air fares ,Middle East and North Africa Division ,Corporate travel provider,100146-101 ,644.12,
DFID,DFID,02/06/2016,Air fares ,Middle East and North Africa Division ,Corporate travel provider,100146-101 ,539.20,
DFID,DFID,02/06/2016,Air fares ,Asia  Caribbean and Overseas Territories ,Corporate travel provider,100185-101 ,882.27,
DFID,DFID,02/06/2016,Hotels - Accommodation only ,Finance and Corporate Performance Division ,Corporate travel provider,100201-101 ,515.00,
DFID,DFID,02/06/2016,Training - Travel & Subsistence ,East and Central Africa ,Corporate travel provider,100212-101 ,723.63,
DFID,DFID,02/06/2016,Air fares ,East and Central Africa ,Corporate travel provider,100227-101 ,797.67,
DFID,DFID,20/06/2016,Air fares ,Top Management Group ,Corporate travel provider,100232-102 ,867.01,
DFID,DFID,02/06/2016,Air fares ,Top Management Group ,Corporate travel provider,100232-102 ,"1,136.30",
DFID,DFID,02/06/2016,Air fares ,Top Management Group ,Corporate travel provider,100232-102 ,"1,136.30",
DFID,DFID,02/06/2016,Air fares ,Top Management Group ,Corporate travel provider,100232-103 ,"1,136.30",
DFID,DFID,02/06/2016,Air fares ,Top Management Group ,Corporate travel provider,100232-103 ,"2,396.35",
DFID,DFID,02/06/2016,Air fares ,Top Management Group ,Corporate travel provider,100232-104 ,"3,633.45",
DFID,DFID,02/06/2016,Air fares ,Top Management Group ,Corporate travel provider,100232-104 ,"3,633.45",
DFID,DFID,02/06/2016,Air fares ,Top Management Group ,Corporate travel provider,100232-104 ,"2,863.50",
DFID,DFID,02/06/2016,Air fares ,Top Management Group ,Corporate travel provider,100232-104 ,"2,863.50",
DFID,DFID,02/06/2016,Air fares ,Top Management Group ,Corporate travel provider,100232-104 ,"1,130.95",
DFID,DFID,02/06/2016,Air fares ,Top Management Group ,Corporate travel provider,100232-104 ,"1,130.95",
DFID,DFID,02/06/2016,Air fares ,Top Management Group ,Corporate travel provider,100232-105 ,790.65,
DFID,DFID,02/06/2016,Air fares ,Top Management Group ,Corporate travel provider,100232-105 ,716.40,
DFID,DFID,02/06/2016,Air fares ,Top Management Group ,Corporate travel provider,100232-105 ,"2,347.15",
DFID,DFID,02/06/2016,Air fares ,Top Management Group ,Corporate travel provider,100232-106 ,"1,343.35",
DFID,DFID,02/06/2016,Air fares ,Top Management Group ,Corporate travel provider,100232-106 ,"1,343.35",
DFID,DFID,02/06/2016,Air fares ,Top Management Group ,Corporate travel provider,100232-106 ,"1,899.70",
DFID,DFID,02/06/2016,Air fares ,Top Management Group ,Corporate travel provider,100232-106 ,"1,899.70",
DFID,DFID,02/06/2016,Air fares ,Top Management Group ,Corporate travel provider,100232-107 ,"4,126.55",
DFID,DFID,02/06/2016,Air fares ,Top Management Group ,Corporate travel provider,100232-107 ,"2,510.55",
DFID,DFID,02/06/2016,Air fares ,Top Management Group ,Corporate travel provider,100232-108 ,763.65,
DFID,DFID,02/06/2016,Air fares ,Top Management Group ,Corporate travel provider,100232-108 ,"2,837.65",
DFID,DFID,02/06/2016,Air fares ,Top Management Group ,Corporate travel provider,100232-108 ,"2,101.75",
DFID,DFID,27/06/2016,Printer Consumables ,International Relations Division ,Foreign & Commonwealth Office ,100236-101 ,608.51,
DFID,DFID,02/06/2016,Air fares ,International Relations Division ,Corporate travel provider,100240-101 ,699.55,
DFID,DFID,02/06/2016,Air fares ,International Relations Division ,Corporate travel provider,100240-101 ,759.93,
DFID,DFID,02/06/2016,Air fares ,International Relations Division ,Corporate travel provider,100240-101 ,646.32,
DFID,DFID,02/06/2016,Air fares ,International Relations Division ,Corporate travel provider,100240-101 ,648.03,
DFID,DFID,02/06/2016,Air fares ,International Relations Division ,Corporate travel provider,100262-101 ,974.51,
DFID,DFID,02/06/2016,Air fares ,International Relations Division ,Corporate travel provider,100262-101 ,541.55,
DFID,DFID,02/06/2016,Air fares ,Group Operations ,Corporate travel provider,100270-102 ,520.52,
DFID,DFID,02/06/2016,Air fares ,Group Operations ,Corporate travel provider,100270-102 ,751.22,
DFID,DFID,02/06/2016,Hotels - Accommodation only ,Policy Division ,Corporate travel provider,100274-111 ,975.50,
DFID,DFID,02/06/2016,Air fares ,Policy Division ,Corporate travel provider,100274-111 ,"1,060.93",
DFID,DFID,02/06/2016,Air fares ,Policy Division ,Corporate travel provider,100274-111 ,932.55,
DFID,DFID,02/06/2016,Air fares ,Policy Division ,Corporate travel provider,100275-105 ,651.25,
DFID,DFID,02/06/2016,Air fares ,Economic Development Division ,Corporate travel provider,100276-101 ,598.45,
DFID,DFID,02/06/2016,Hotels - Accommodation only ,Economic Development Division ,Corporate travel provider,100276-101 ,902.00,
DFID,DFID,02/06/2016,Air fares ,Economic Development Division ,Corporate travel provider,100276-101 ,616.79,
DFID,DFID,02/06/2016,Air fares ,Economic Development Division ,Corporate travel provider,100276-101 ,507.87,
DFID,DFID,02/06/2016,Air fares ,Economic Development Division ,Corporate travel provider,100276-101 ,559.03,
DFID,DFID,02/06/2016,Air fares ,Policy Division ,Corporate travel provider,100277-101 ,506.12,
DFID,DFID,02/06/2016,Hotels - Accommodation only ,Policy Division ,Corporate travel provider,100277-103 ,"1,736.06",
DFID,DFID,02/06/2016,Air fares ,Policy Division ,Corporate travel provider,100277-103 ,539.25,
DFID,DFID,26/06/2016,Cleaning Costs ,Middle East and North Africa Division ,Foreign & Commonwealth Office ,100303-101 ,712.21,
DFID,DFID,26/06/2016,Other passenger transport ,Asia  Caribbean and Overseas Territories ,Foreign & Commonwealth Office ,101601-110 ,960.55,
DFID,DFID,26/06/2016,Contract Catering Services ,Asia  Caribbean and Overseas Territories ,Foreign & Commonwealth Office ,101601-110 ,"1,440.83",
DFID,DFID,02/06/2016,Air fares ,Asia  Caribbean and Overseas Territories ,Supplier Name withheld ,101601-110 ,"1,524.51",
DFID,DFID,02/06/2016,Air fares ,Asia  Caribbean and Overseas Territories ,Supplier Name withheld ,101601-110 ,"2,041.01",
DFID,DFID,02/06/2016,Air fares ,Asia  Caribbean and Overseas Territories ,Supplier Name withheld ,101601-110 ,"1,560.08",
DFID,DFID,02/06/2016,Air fares ,Asia  Caribbean and Overseas Territories ,Supplier Name withheld ,101601-110 ,"1,842.90",
DFID,DFID,02/06/2016,Air fares ,Asia  Caribbean and Overseas Territories ,Supplier Name withheld ,101601-110 ,"2,224.00",
DFID,DFID,02/06/2016,Air fares ,Asia  Caribbean and Overseas Territories ,Supplier Name withheld ,101601-110 ,541.25,
DFID,DFID,02/06/2016,Air fares ,Asia  Caribbean and Overseas Territories ,Supplier Name withheld ,101601-110 ,"1,452.08",
DFID,DFID,02/06/2016,Air fares ,Asia  Caribbean and Overseas Territories ,Supplier Name withheld ,101601-110 ,"2,084.91",
DFID,DFID,02/06/2016,Air fares ,Asia  Caribbean and Overseas Territories ,Supplier Name withheld ,101601-110 ,931.55,
DFID,DFID,02/06/2016,Air fares ,Asia  Caribbean and Overseas Territories ,Supplier Name withheld ,101601-110 ,552.70,
DFID,DFID,02/06/2016,Air fares ,Asia  Caribbean and Overseas Territories ,Corporate travel provider,101603-101 ,916.80,
DFID,DFID,02/06/2016,Air fares ,Asia  Caribbean and Overseas Territories ,Corporate travel provider,101603-101 ,503.25,
DFID,DFID,23/06/2016,Travel - Subsistence ,Asia  Caribbean and Overseas Territories ,Foreign & Commonwealth Office ,101604-101 ,"1,131.89",
DFID,DFID,27/06/2016,Hotels - Accommodation only ,Asia  Caribbean and Overseas Territories ,Foreign & Commonwealth Office ,101604-101 ,947.04,
DFID,DFID,02/06/2016,Training - Travel & Subsistence ,Asia  Caribbean and Overseas Territories ,Foreign & Commonwealth Office ,101605-101 ,"1,142.72",
DFID,DFID,02/06/2016,Training - Travel & Subsistence ,Asia  Caribbean and Overseas Territories ,Foreign & Commonwealth Office ,101605-101 ,750.97,
DFID,DFID,20/06/2016,Air fares ,Asia  Caribbean and Overseas Territories ,Foreign & Commonwealth Office ,101605-101 ,"1,917.35",
DFID,DFID,02/06/2016,Air fares ,West and Southern Africa ,Corporate travel provider,101610-101 ,619.91,
DFID,DFID,02/06/2016,Air fares ,West and Southern Africa ,Corporate travel provider,101610-101 ,680.41,
DFID,DFID,02/06/2016,Air fares ,West and Southern Africa ,Corporate travel provider,101610-101 ,630.21,
DFID,DFID,02/06/2016,Air fares ,West and Southern Africa ,Corporate travel provider,101610-101 ,534.95,
DFID,DFID,20/06/2016,Secure Staff Accommodation ,East and Central Africa ,Foreign & Commonwealth Office ,101612-101 ,"10,885.98",
DFID,DFID,02/06/2016,Telephone Usage & services ,East and Central Africa ,Foreign & Commonwealth Office ,101612-101 ,"5,865.58",
DFID,DFID,02/06/2016,Air fares ,East and Central Africa ,Corporate travel provider,101612-101 ,536.15,
DFID,DFID,02/06/2016,Hotels - Accommodation only ,East and Central Africa ,Foreign & Commonwealth Office ,101612-101 ,644.04,
DFID,DFID,02/06/2016,Hotels - Accommodation only ,East and Central Africa ,Foreign & Commonwealth Office ,101612-101 ,580.84,
DFID,DFID,02/06/2016,Repairs  Maint  Alter - Property & Constrct. Services ,East and Central Africa ,Foreign & Commonwealth Office ,101612-101 ,"4,723.39",
DFID,DFID,02/06/2016,Hotels - Accommodation only ,East and Central Africa ,Foreign & Commonwealth Office ,101612-101 ,662.04,
DFID,DFID,28/06/2016,Air fares ,East and Central Africa ,Foreign & Commonwealth Office ,101612-101 ,725.11,
DFID,DFID,28/06/2016,Hotels - Accommodation only ,East and Central Africa ,Foreign & Commonwealth Office ,101612-101 ,867.36,
DFID,DFID,28/06/2016,Hotels - Accommodation only ,East and Central Africa ,Foreign & Commonwealth Office ,101612-101 ,500.92,
DFID,DFID,28/06/2016,Air fares ,East and Central Africa ,Foreign & Commonwealth Office ,101612-101 ,585.29,
DFID,DFID,28/06/2016,Air fares ,East and Central Africa ,Foreign & Commonwealth Office ,101612-101 ,533.18,
DFID,DFID,28/06/2016,Air fares ,East and Central Africa ,Foreign & Commonwealth Office ,101612-101 ,533.17,
DFID,DFID,28/06/2016,Air fares ,East and Central Africa ,Foreign & Commonwealth Office ,101612-101 ,550.31,
DFID,DFID,28/06/2016,Air fares ,East and Central Africa ,Foreign & Commonwealth Office ,101612-101 ,680.95,
DFID,DFID,28/06/2016,Hotels - Accommodation only ,East and Central Africa ,Foreign & Commonwealth Office ,101612-101 ,"3,823.36",
DFID,DFID,02/06/2016,Air fares ,West and Southern Africa ,Corporate travel provider,101613-101 ,540.50,
DFID,DFID,02/06/2016,Air fares ,West and Southern Africa ,Corporate travel provider,101613-101 ,676.83,
DFID,DFID,02/06/2016,Air fares ,West and Southern Africa ,Corporate travel provider,101613-101 ,536.10,
DFID,DFID,02/06/2016,Air fares ,East and Central Africa ,Corporate travel provider,101616-101 ,770.15,
DFID,DFID,02/06/2016,Air fares ,West and Southern Africa ,Corporate travel provider,101618-101 ,863.72,
DFID,DFID,02/06/2016,Air fares ,West and Southern Africa ,Corporate travel provider,101618-101 ,798.43,
DFID,DFID,30/06/2016,Hotels - Accommodation only ,Middle East and North Africa Division ,Hilton Hotel   Istanbul  Bosphorus ,101619-101 ,966.82,
DFID,DFID,02/06/2016,Air fares ,West and Southern Africa ,Corporate travel provider,101620-101 ,573.20,
DFID,DFID,02/06/2016,Air fares ,West and Southern Africa ,Corporate travel provider,101620-101 ,573.20,
DFID,DFID,02/06/2016,Air fares ,West and Southern Africa ,Corporate travel provider,101620-101 ,"1,124.60",
DFID,DFID,02/06/2016,Air fares ,West and Southern Africa ,Corporate travel provider,101620-101 ,"1,124.60",
DFID,DFID,02/06/2016,Air fares ,West and Southern Africa ,Corporate travel provider,101620-101 ,540.40,
DFID,DFID,02/06/2016,Air fares ,West and Southern Africa ,Corporate travel provider,101620-101 ,535.60,
DFID,DFID,02/06/2016,Air fares ,West and Southern Africa ,Corporate travel provider,101620-101 ,660.15,
DFID,DFID,02/06/2016,Air fares ,West and Southern Africa ,Corporate travel provider,101620-101 ,653.55,
DFID,DFID,02/06/2016,Air fares ,West and Southern Africa ,Corporate travel provider,101620-101 ,503.60,
DFID,DFID,02/06/2016,Air fares ,West and Southern Africa ,Corporate travel provider,101620-101 ,520.10,
DFID,DFID,02/06/2016,Air fares ,West and Southern Africa ,Corporate travel provider,101620-101 ,520.10,
DFID,DFID,02/06/2016,Air fares ,West and Southern Africa ,Supplier Name withheld ,101622-106 ,961.75,
DFID,DFID,02/06/2016,Air fares ,West and Southern Africa ,Supplier Name withheld ,101622-106 ,961.75,
DFID,DFID,02/06/2016,Air fares ,West and Southern Africa ,Supplier Name withheld ,101622-106 ,961.75,
DFID,DFID,02/06/2016,Air fares ,West and Southern Africa ,Supplier Name withheld ,101622-106 ,961.75,
DFID,DFID,02/06/2016,Air fares ,West and Southern Africa ,Supplier Name withheld ,101622-106 ,698.75,
DFID,DFID,02/06/2016,Air fares ,West and Southern Africa ,Supplier Name withheld ,101622-106 ,883.05,
DFID,DFID,02/06/2016,Hotels - Accommodation only ,West and Southern Africa ,Supplier Name withheld ,101622-106 ,642.60,
DFID,DFID,02/06/2016,Air fares ,West and Southern Africa ,Supplier Name withheld ,101622-106 ,901.35,
DFID,DFID,02/06/2016,Air fares ,West and Southern Africa ,Supplier Name withheld ,101622-106 ,901.35,
DFID,DFID,02/06/2016,Hotels - Accommodation only ,Asia  Caribbean and Overseas Territories ,Corporate travel provider,101624-101 ,744.36,
DFID,DFID,02/06/2016,Hotels - Accommodation only ,Asia  Caribbean and Overseas Territories ,Corporate travel provider,101624-101 ,872.00,
DFID,DFID,02/06/2016,Air fares ,Asia  Caribbean and Overseas Territories ,Corporate travel provider,101624-101 ,608.35,
DFID,DFID,02/06/2016,Air fares ,East and Central Africa ,Corporate travel provider,101625-103 ,611.82,
DFID,DFID,02/06/2016,Air fares ,East and Central Africa ,Corporate travel provider,101625-107 ,509.65,
DFID,DFID,02/06/2016,Air fares ,East and Central Africa ,Corporate travel provider,101625-108 ,862.56,
DFID,DFID,02/06/2016,Air fares ,East and Central Africa ,Corporate travel provider,101625-108 ,518.15,
DFID,DFID,02/06/2016,Air fares ,West and Southern Africa ,Corporate travel provider,101629-101 ,602.82,
DFID,DFID,02/06/2016,Air fares ,West and Southern Africa ,Corporate travel provider,101629-101 ,"1,103.41",
DFID,DFID,02/06/2016,Air fares ,West and Southern Africa ,Corporate travel provider,101629-101 ,"1,106.30",
DFID,DFID,02/06/2016,Air fares ,West and Southern Africa ,Corporate travel provider,101629-101 ,635.95,
DFID,DFID,02/06/2016,Air fares ,East and Central Africa ,Corporate travel provider,101630-101 ,712.15,
DFID,DFID,02/06/2016,Air fares ,East and Central Africa ,Corporate travel provider,101630-101 ,690.65,
DFID,DFID,02/06/2016,Air fares ,East and Central Africa ,Corporate travel provider,101630-101 ,690.65,
DFID,DFID,26/06/2016,Secure Staff Accommodation ,East and Central Africa ,Foreign & Commonwealth Office ,101630-101 ,"5,145.83",
DFID,DFID,02/06/2016,Air fares ,East and Central Africa ,Corporate travel provider,101630-102 ,651.05,
DFID,DFID,02/06/2016,Air fares ,East and Central Africa ,Corporate travel provider,101630-102 ,632.70,
DFID,DFID,02/06/2016,Air fares ,East and Central Africa ,Corporate travel provider,101630-102 ,748.45,
DFID,DFID,02/06/2016,Air fares ,West and Southern Africa ,Corporate travel provider,101631-101 ,"2,483.42",
DFID,DFID,20/06/2016,Air fares ,East and Central Africa ,Foreign & Commonwealth Office ,101633-101 ,817.44,
DFID,DFID,20/06/2016,"Conferences, Seminars & Meeting/Event Resource",East and Central Africa ,Foreign & Commonwealth Office ,101633-101 ,732.08,
DFID,DFID,28/06/2016,Hotels - Accommodation only ,East and Central Africa ,Foreign & Commonwealth Office ,101633-101 ,706.04,
DFID,DFID,28/06/2016,Air fares ,East and Central Africa ,Foreign & Commonwealth Office ,101633-101 ,871.85,
DFID,DFID,28/06/2016,Training - Travel & Subsistence ,East and Central Africa ,Foreign & Commonwealth Office ,101633-101 ,"1,068.87",
DFID,DFID,02/06/2016,Air fares ,East and Central Africa ,Corporate travel provider,101634-101 ,"1,134.20",
DFID,DFID,20/06/2016,Electricity ,Asia  Caribbean and Overseas Territories ,Foreign & Commonwealth Office ,101636-101 ,509.94,
DFID,DFID,20/06/2016,Secure Staff Accommodation ,Asia  Caribbean and Overseas Territories ,Foreign & Commonwealth Office ,101636-101 ,"11,056.35",
DFID,DFID,20/06/2016,Training - Course Fees ,Asia  Caribbean and Overseas Territories ,Foreign & Commonwealth Office ,101636-101 ,"2,079.67",
DFID,DFID,02/06/2016,Air fares ,West and Southern Africa ,Corporate travel provider,101638-105 ,641.78,
DFID,DFID,02/06/2016,Air fares ,West and Southern Africa ,Corporate travel provider,101638-105 ,524.70,
DFID,DFID,28/06/2016,Project delivery costs – supplier services ,West and Southern Africa ,Foreign & Commonwealth Office ,104229-101 ,"10,335.50",
DFID,DFID,28/06/2016,Project delivery costs – supplier services ,West and Southern Africa ,Foreign & Commonwealth Office ,104229-101 ,"1,762.46",
DFID,DFID,02/06/2016,Air fares ,East and Central Africa ,Corporate travel provider,105422-104 ,638.45,
DFID,DFID,27/06/2016,Research and development costs - supplier services ,Asia  Caribbean and Overseas Territories ,Foreign & Commonwealth Office ,114450-101 ,"2,393.33",
DFID,DFID,27/06/2016,Research and development costs - supplier services ,Asia  Caribbean and Overseas Territories ,Foreign & Commonwealth Office ,114450-101 ,"2,188.18",
DFID,DFID,02/06/2016,Air fares ,Business Solutions Division Level ,Corporate travel provider,200001-101 ,686.33,
DFID,DFID,30/06/2016,Subscriptions ,Business Solutions Division Level ,AMP Ltd,200001-101 ,556.00,
DFID,DFID,30/06/2016,Hardware - networking equipment ,Business Solutions Division Level ,CDW Ltd,200001-101 ,"2,467.80",
DFID,DFID,30/06/2016,Training - Course Fees ,Business Solutions Division Level , Service Desk Institute,200001-101 ,731.84,
DFID,DFID,28/06/2016,Data Network - land lines ,Business Solutions Division Level ,Foreign & Commonwealth Office ,200002-121 ,635.19,
DFID,DFID,27/06/2016,Data Network - land lines ,Business Solutions Division Level ,Foreign & Commonwealth Office ,200002-121 ,"1,456.08",
DFID,DFID,30/06/2016,Computer Consumables ,Business Solutions Division Level ,Handset Solutions ,200002-153 ,525.36,
DFID,DFID,02/06/2016,Air fares ,West and Southern Africa ,Corporate travel provider,200469-117 ,903.95,
DFID,DFID,26/06/2016,Hotels - Accommodation only ,Middle East and North Africa Division ,Foreign & Commonwealth Office ,201701-101 ,581.92,
DFID,DFID,02/06/2016,Hotels - Accommodation only ,Middle East and North Africa Division ,Foreign & Commonwealth Office ,201701-101 ,570.06,
DFID,DFID,02/06/2016,Air fares ,Middle East and North Africa Division ,Corporate travel provider,201701-101 ,542.85,
DFID,DFID,02/06/2016,Air fares ,Middle East and North Africa Division ,Corporate travel provider,201701-101 ,517.35,
DFID,DFID,02/06/2016,Air fares ,Middle East and North Africa Division ,Corporate travel provider,201701-101 ,513.35,
DFID,DFID,02/06/2016,Air fares ,Middle East and North Africa Division ,Corporate travel provider,201701-101 ,760.25,
DFID,DFID,26/06/2016,Hotels - Accommodation only ,Middle East and North Africa Division ,Foreign & Commonwealth Office ,201705-101 ,672.38,
DFID,DFID,26/06/2016,Telephone Usage & services ,Middle East and North Africa Division ,Foreign & Commonwealth Office ,201705-101 ,714.34,
DFID,DFID,26/06/2016,Travel - Subsistence ,Middle East and North Africa Division ,Foreign & Commonwealth Office ,201705-101 ,"1,542.21",
DFID,DFID,26/06/2016,Travel - Subsistence ,Middle East and North Africa Division ,Foreign & Commonwealth Office ,201705-101 ,"1,542.21",
DFID,DFID,26/06/2016,Training - Course Fees ,Middle East and North Africa Division ,Foreign & Commonwealth Office ,201705-101 ,"1,493.19",
DFID,DFID,02/06/2016,Air fares ,International Relations Division ,Corporate travel provider,201711-104 ,"1,047.51",
DFID,DFID,26/06/2016,Project delivery costs – supplier services ,Policy Division ,Foreign & Commonwealth Office ,201724-124 ,713.41,
DFID,DFID,26/06/2016,Project delivery costs – supplier services ,Policy Division ,Foreign & Commonwealth Office ,201724-124 ,662.36,
DFID,DFID,26/06/2016,Project delivery costs – supplier services ,Policy Division ,Foreign & Commonwealth Office ,201724-124 ,"2,121.14",
DFID,DFID,02/06/2016,Air fares ,Economic Development Division ,Corporate travel provider,202259-101 ,"1,191.95",
DFID,DFID,02/06/2016,Hotels - Accommodation only ,Economic Development Division ,Corporate travel provider,202259-101 ,850.34,
DFID,DFID,02/06/2016,Air fares ,Economic Development Division ,Corporate travel provider,202373-101 ,805.84,
DFID,DFID,02/06/2016,Hotels - Accommodation only ,Economic Development Division ,Corporate travel provider,202373-101 ,672.30,
DFID,DFID,02/06/2016,Hotels - Accommodation only ,Research and Evidence Division ,Corporate travel provider,202392-102 ,510.77,
DFID,DFID,02/06/2016,Air fares ,Research and Evidence Division ,Corporate travel provider,202392-103 ,"1,191.55",
DFID,DFID,02/06/2016,Air fares ,Research and Evidence Division ,Corporate travel provider,202392-104 ,633.15,
DFID,DFID,26/06/2016,Project delivery costs – supplier services ,Research and Evidence Division ,Foreign & Commonwealth Office ,202392-107 ,893.29,
DFID,DFID,02/06/2016,Hotels - Accommodation only ,Research and Evidence Division ,Corporate travel provider,202392-109 ,545.00,
DFID,DFID,02/06/2016,Air fares ,Research and Evidence Division ,Corporate travel provider,202392-113 ,750.15,
DFID,DFID,02/06/2016,Air fares ,Policy Division ,Corporate travel provider,202402-107 ,"1,110.93",
DFID,DFID,02/06/2016,Air fares ,Policy Division ,Corporate travel provider,202402-107 ,716.92,
DFID,DFID,02/06/2016,Air fares ,Policy Division ,Corporate travel provider,202402-107 ,"1,046.33",
DFID,DFID,02/06/2016,Hotels - Accommodation only ,Policy Division ,Corporate travel provider,202419-101 ,854.83,
DFID,DFID,02/06/2016,Air fares ,Policy Division ,Corporate travel provider,202419-101 ,573.35,
DFID,DFID,02/06/2016,Air fares ,Policy Division ,Corporate travel provider,202419-101 ,"1,191.25",
DFID,DFID,02/06/2016,Air fares ,Policy Division ,Corporate travel provider,202419-101 ,751.55,
DFID,DFID,02/06/2016,Hotels - Accommodation only ,Economic Development Division ,Corporate travel provider,202432-101 ,"1,077.26",
DFID,DFID,02/06/2016,Air fares ,Economic Development Division ,Corporate travel provider,202432-101 ,559.05,
DFID,DFID,02/06/2016,Hotels - Accommodation only ,East and Central Africa ,Foreign & Commonwealth Office ,202594-101 ,"1,303.61",
DFID,DFID,02/06/2016,Air fares ,East and Central Africa ,Corporate travel provider,202594-101 ,"2,033.00",
DFID,DFID,02/06/2016,Hotels - Accommodation only ,East and Central Africa ,Corporate travel provider,202594-101 ,705.68,
DFID,DFID,02/06/2016,Hotels - Accommodation only ,East and Central Africa ,Corporate travel provider,202594-101 ,567.54,
DFID,DFID,02/06/2016,Air fares ,East and Central Africa ,Corporate travel provider,202594-101 ,545.45,
DFID,DFID,02/06/2016,Air fares ,East and Central Africa ,Corporate travel provider,202594-101 ,573.10,
DFID,DFID,02/06/2016,Air fares ,East and Central Africa ,Corporate travel provider,202594-101 ,614.67,
DFID,DFID,02/06/2016,Air fares ,East and Central Africa ,Corporate travel provider,202594-101 ,598.35,
DFID,DFID,02/06/2016,Air fares ,East and Central Africa ,Corporate travel provider,202594-101 ,901.55,
DFID,DFID,02/06/2016,Air fares ,East and Central Africa ,Corporate travel provider,202594-101 ,913.30,
DFID,DFID,02/06/2016,Air fares ,East and Central Africa ,Corporate travel provider,202594-101 ,621.37,
DFID,DFID,02/06/2016,Air fares ,East and Central Africa ,Corporate travel provider,202594-101 ,808.60,
DFID,DFID,02/06/2016,Air fares ,East and Central Africa ,Corporate travel provider,202594-101 ,928.67,
DFID,DFID,02/06/2016,Air fares ,East and Central Africa ,Corporate travel provider,202594-101 ,581.90,
DFID,DFID,02/06/2016,Air fares ,East and Central Africa ,Corporate travel provider,202594-101 ,588.75,
DFID,DFID,02/06/2016,Air fares ,International Relations Division ,Corporate travel provider,202617-101 ,"1,003.63",
DFID,DFID,26/06/2016,Project delivery costs – supplier services ,Asia  Caribbean and Overseas Territories ,Foreign & Commonwealth Office ,203454-104 ,"1,509.43",
DFID,DFID,26/06/2016,Project delivery costs – supplier services ,Asia  Caribbean and Overseas Territories ,Foreign & Commonwealth Office ,203454-104 ,"1,543.74",
DFID,DFID,30/06/2016,Office Supplies ,Group Operations ,Banner,203717-101 ,563.96,
DFID,DFID,30/06/2016,Repairs  Maintenance and Alterations – Other Building Costs ,Group Operations ,Key 4 U,203717-101 ,762.00,
DFID,DFID,30/06/2016,Office Equipment - Purchases ,Group Operations ,Fast Keys Ltd,203717-101 ,526.32,
DFID,DFID,30/06/2016,Postage Costs ,Group Operations ,Neopost ,203717-101 ,510.00,
DFID,DFID,30/06/2016,Uniforms ,Group Operations ,Evac Chair International,203717-101 ,618.00,
DFID,DFID,28/06/2016,Hotels - Accommodation only ,East and Central Africa ,Foreign & Commonwealth Office ,203986-104 ,779.16,
DFID,DFID,02/06/2016,Air fares ,Asia  Caribbean and Overseas Territories ,Corporate travel provider,204053-101 ,693.15,
DFID,DFID,02/06/2016,Air fares ,Asia  Caribbean and Overseas Territories ,Corporate travel provider,204053-101 ,629.65,
DFID,DFID,02/06/2016,Air fares ,Asia  Caribbean and Overseas Territories ,Corporate travel provider,204053-101 ,650.95,
DFID,DFID,02/06/2016,Air fares ,Middle East and North Africa Division ,Corporate travel provider,204055-101 ,"1,051.25",
DFID,DFID,02/06/2016,Air fares ,Middle East and North Africa Division ,Corporate travel provider,204055-101 ,771.31,
DFID,DFID,02/06/2016,Hotels - Accommodation only ,Middle East and North Africa Division ,Foreign & Commonwealth Office ,204084-101 ,678.92,
DFID,DFID,02/06/2016,Air fares ,West and Southern Africa ,Corporate travel provider,204497-104 ,701.75,
DFID,DFID,20/06/2016,Aid Programme - Humanitarian Material Relief Assistance and Services ,Middle East and North Africa Division ,Foreign & Commonwealth Office ,204516-103 ,"4,510.98",
DFID,DFID,28/06/2016,Project delivery costs – supplier services ,Middle East and North Africa Division ,Foreign & Commonwealth Office ,204516-105 ,612.01,
DFID,DFID,20/06/2016,Aid Programme - Humanitarian Material Relief Assistance and Services ,Middle East and North Africa Division ,Foreign & Commonwealth Office ,204516-102 ,"2,791.12",
DFID,DFID,02/06/2016,Aid Programme - Humanitarian Material Relief Assistance and Services ,Middle East and North Africa Division ,Foreign & Commonwealth Office ,204516-102 ,"3,057.40",
DFID,DFID,27/06/2016,Project delivery costs – supplier services ,Asia  Caribbean and Overseas Territories ,Foreign & Commonwealth Office ,204612-101 ,742.62,
DFID,DFID,02/06/2016,Air fares ,Regional Directorate ,Corporate travel provider,204832-101 ,"1,777.31",
DFID,DFID,02/06/2016,Air fares ,Regional Directorate ,Corporate travel provider,204832-101 ,624.34,
DFID,DFID,28/06/2016,Project delivery costs – supplier services ,East and Central Africa ,Foreign & Commonwealth Office ,204851-105 ,"2,095.83",
DFID,DFID,02/06/2016,Air fares ,Non-Departmental Public Body ,Corporate travel provider,204859-103 ,633.15,
DFID,DFID,02/06/2016,Air fares ,Non-Departmental Public Body ,Corporate travel provider,204873-102 ,633.15,
DFID,DFID,02/06/2016,Air fares ,Non-Departmental Public Body ,Corporate travel provider,204873-102 ,780.05,
DFID,DFID,02/06/2016,Air fares ,Non-Departmental Public Body ,Corporate travel provider,204873-102 ,948.35,
DFID,DFID,27/06/2016,Project delivery costs – supplier services ,Asia  Caribbean and Overseas Territories ,Foreign & Commonwealth Office ,204887-101 ,957.33,
DFID,DFID,27/06/2016,Project delivery costs – supplier services ,Asia  Caribbean and Overseas Territories ,Foreign & Commonwealth Office ,204887-101 ,"1,031.18",
DFID,DFID,02/06/2016,Air fares ,Asia  Caribbean and Overseas Territories ,Corporate travel provider,204952-103 ,"1,081.80",
DFID,DFID,28/06/2016,Project delivery costs – supplier services ,East and Central Africa ,Foreign & Commonwealth Office ,204957-104 ,"5,804.47",
DFID,DFID,02/06/2016,Air fares ,Middle East and North Africa Division ,Corporate travel provider,204981-101 ,568.05,
DFID,DFID,02/06/2016,Air fares ,Middle East and North Africa Division ,Corporate travel provider,204981-101 ,771.35,
DFID,DFID,02/06/2016,Air fares ,Middle East and North Africa Division ,Corporate travel provider,204981-101 ,872.85,
DFID,DFID,02/06/2016,Air fares ,Middle East and North Africa Division ,Corporate travel provider,204981-101 ,555.71,
DFID,DFID,02/06/2016,Air fares ,Middle East and North Africa Division ,Corporate travel provider,204981-101 ,562.71,
DFID,DFID,02/06/2016,Air fares ,Middle East and North Africa Division ,Corporate travel provider,204982-101 ,576.75,
DFID,DFID,26/06/2016,Hotels - Accommodation only ,Middle East and North Africa Division ,Foreign & Commonwealth Office ,204982-101 ,518.19,
DFID,DFID,02/06/2016,Air fares ,Middle East and North Africa Division ,Foreign & Commonwealth Office ,204982-101 ,551.54,
DFID,DFID,26/06/2016,Air fares ,Middle East and North Africa Division ,Foreign & Commonwealth Office ,204982-101 ,859.04,
DFID,DFID,02/06/2016,Medical/Health Services ,Middle East and North Africa Division ,Foreign & Commonwealth Office ,204982-101 ,"5,908.37",
DFID,DFID,02/06/2016,Air fares ,West and Southern Africa ,Corporate travel provider,205035-103 ,655.95,
DFID,DFID,02/06/2016,Air fares ,West and Southern Africa ,Corporate travel provider,205035-103 ,655.55,
DFID,DFID,02/06/2016,Air fares ,West and Southern Africa ,Corporate travel provider,205035-103 ,655.55,
DFID,DFID,26/06/2016,Secure Staff Accommodation ,International Relations Division ,Foreign & Commonwealth Office ,205081-101 ,"3,691.17",
DFID,DFID,26/06/2016,Secure Staff Accommodation ,International Relations Division ,Foreign & Commonwealth Office ,205081-101 ,"3,691.17",
DFID,DFID,26/06/2016,Secure Staff Accommodation ,International Relations Division ,Foreign & Commonwealth Office ,205081-101 ,"3,691.17",
DFID,DFID,02/06/2016,Air fares ,International Relations Division ,Corporate travel provider,205081-101 ,813.55,
DFID,DFID,28/06/2016,Project delivery costs � supplier services,Asia  Caribbean and Overseas Territories ,Foreign & Commonwealth Office ,205247-102 ,"2,013.29",
DFID,DFID,02/06/2016,Air fares ,West and Southern Africa ,Corporate travel provider,300047-102 ,803.87,
DFID,DFID,26/06/2016,Secure Staff Accommodation ,Middle East and North Africa Division ,Foreign & Commonwealth Office ,300078-101 ,"9,115.54",
DFID,DFID,27/06/2016,Aid Programme - Accountable Grant Payments ,Research and Evidence Division ,ASSOCIATION OF COMMONWEALTH UNIVER ,202004-101 ,"402,397.00",
DFID,DFID,16/06/2016,Project delivery costs – supplier services ,West and Southern Africa ,ADAM SMITH INTERNATIONAL  LTD ,104190-102 ,"636,865.45",
DFID,DFID,14/06/2016,Project delivery costs – supplier services ,Asia  Caribbean and Overseas Territories ,ADAM SMITH INTERNATIONAL  LTD ,201367-103 ,"422,710.41",
DFID,DFID,25/06/2016,Project delivery costs – supplier services ,West and Southern Africa ,ADAM SMITH INTERNATIONAL  LTD ,201433-102 ,"1,512,738.68",
DFID,DFID,23/06/2016,Project delivery costs – supplier services ,Asia  Caribbean and Overseas Territories ,Supplier Name withheld ,202112-102 ,"116,674.54",
DFID,DFID,24/06/2016,Project delivery costs – supplier services ,Asia  Caribbean and Overseas Territories ,ADAM SMITH INTERNATIONAL  LTD ,202328-102 ,"601,382.87",
DFID,DFID,20/06/2016,Project delivery costs – supplier services ,West and Southern Africa ,ADAM SMITH INTERNATIONAL  LTD ,202539-108 ,"45,603.30",
DFID,DFID,29/06/2016,Project delivery costs – supplier services ,West and Southern Africa ,ADAM SMITH INTERNATIONAL  LTD ,202539-108 ,"17,062.00",
DFID,DFID,24/06/2016,Project delivery costs – supplier services ,West and Southern Africa ,ADAM SMITH INTERNATIONAL  LTD ,202539-106 ,"19,218.10",
DFID,DFID,20/06/2016,Project delivery costs – supplier services ,West and Southern Africa ,ADAM SMITH INTERNATIONAL  LTD ,202539-106 ,"395,108.30",
DFID,DFID,20/06/2016,Project delivery costs – supplier services ,West and Southern Africa ,ADAM SMITH INTERNATIONAL  LTD ,202539-106 ,"814,200.66",
DFID,DFID,17/06/2016,Project delivery costs – supplier services ,West and Southern Africa ,ADAM SMITH INTERNATIONAL  LTD ,202584-106 ,"265,299.48",
DFID,DFID,10/06/2016,Project delivery costs – supplier services ,West and Southern Africa ,ADAM SMITH INTERNATIONAL  LTD ,202584-106 ,"81,308.31",
DFID,DFID,23/06/2016,Project delivery costs – supplier services ,West and Southern Africa ,ADAM SMITH INTERNATIONAL  LTD ,202584-106 ,"373,634.99",
DFID,DFID,22/06/2016,Fund monies to be managed and dispersed by the supplier ,East and Central Africa ,ADAM SMITH INTERNATIONAL  LTD ,202657-102 ,"95,264.00",
DFID,DFID,22/06/2016,Project delivery costs – supplier services ,East and Central Africa ,ADAM SMITH INTERNATIONAL  LTD ,202657-102 ,"153,216.00",
DFID,DFID,13/06/2016,Project delivery costs – supplier services ,Asia  Caribbean and Overseas Territories ,ADAM SMITH INTERNATIONAL  LTD ,202697-109 ,"1,063,645.00",
DFID,DFID,15/06/2016,Project delivery costs – supplier services ,East and Central Africa ,ADAM SMITH INTERNATIONAL  LTD ,202698-113 ,"99,772.79",
DFID,DFID,22/06/2016,Project delivery costs – supplier services ,East and Central Africa ,ADAM SMITH INTERNATIONAL  LTD ,202974-104 ,"222,447.78",
DFID,DFID,28/06/2016,Project delivery costs – supplier services ,East and Central Africa ,ADAM SMITH INTERNATIONAL  LTD ,203153-103 ,"99,079.83",
DFID,DFID,29/06/2016,Project delivery costs – supplier services ,West and Southern Africa ,ADAM SMITH INTERNATIONAL  LTD ,203161-103 ,"1,037,706.90",
DFID,DFID,16/06/2016,Project delivery costs – supplier services ,West and Southern Africa ,ADAM SMITH INTERNATIONAL  LTD ,203674-102 ,"122,210.55",
DFID,DFID,16/06/2016,Project delivery costs – supplier services ,West and Southern Africa ,ADAM SMITH INTERNATIONAL  LTD ,203674-102 ,"4,634.09",
DFID,DFID,20/06/2016,Project delivery costs – supplier services ,West and Southern Africa ,ADAM SMITH INTERNATIONAL  LTD ,203824-103 ,"106,622.82",
DFID,DFID,29/06/2016,Project delivery costs – supplier services ,West and Southern Africa ,ADAM SMITH INTERNATIONAL  LTD ,203839-101 ,"153,191.55",
DFID,DFID,10/06/2016,Project delivery costs – supplier services ,Asia  Caribbean and Overseas Territories ,Supplier Name withheld ,203951-101 ,"47,182.48",
DFID,DFID,20/06/2016,Project delivery costs – supplier services ,Asia  Caribbean and Overseas Territories ,Supplier Name withheld ,203951-101 ,"38,451.51",
DFID,DFID,03/06/2016,Project delivery costs – supplier services ,East and Central Africa ,ADAM SMITH INTERNATIONAL  LTD ,204375-103 ,"776,135.00",
DFID,DFID,20/06/2016,Project delivery costs – supplier services ,East and Central Africa ,ADAM SMITH INTERNATIONAL  LTD ,204463-102 ,"34,604.00",
DFID,DFID,24/06/2016,Project delivery costs – supplier services ,Middle East and North Africa Division ,ADAM SMITH INTERNATIONAL  LTD ,205048-102 ,"217,612.99",
DFID,DFID,22/06/2016,Project delivery costs – supplier services ,East and Central Africa ,ADAM SMITH INTERNATIONAL  LTD ,205065-102 ,"7,134.22",
DFID,DFID,22/06/2016,Project delivery costs – supplier services ,East and Central Africa ,ADAM SMITH INTERNATIONAL  LTD ,205065-102 ,"72,499.00",
DFID,DFID,27/06/2016,Project delivery costs – supplier services ,East and Central Africa ,ADAM SMITH INTERNATIONAL  LTD ,205065-102 ,"144,998.00",
DFID,DFID,09/06/2016,Project delivery costs – supplier services ,West and Southern Africa ,ATOS IT Services UK Ltd ,200452-101 ,"949,003.44",
DFID,DFID,30/06/2016,Data Network -Satellite ,Communications Division ,AST CONNECTIONS LIMITED ,100154-101 ,930.64,
DFID,DFID,14/06/2016,Aid Programme - Accountable Grant Payments ,East and Central Africa ,FOUNDATION AFRICA PROGRESS PANEL ,205174-101 ,"200,000.00",
DFID,DFID,29/06/2016,Aid Programme - Accountable Grant Payments ,East and Central Africa ,FOUNDATION AFRICA PROGRESS PANEL ,205174-101 ,"175,000.00",
DFID,DFID,28/06/2016,Project delivery costs – supplier services ,West and Southern Africa ,BRITISH COUNCIL (UK) ,114161-101 ,"467,909.78",
DFID,DFID,03/06/2016,Project delivery costs – supplier services ,West and Southern Africa ,BRITISH COUNCIL (UK) ,114161-101 ,"488,468.66",
DFID,DFID,14/06/2016,Research and development costs - supplier services ,Research and Evidence Division ,Natural Environment Research Council ,112082-102 ,"700,000.00",
DFID,DFID,23/06/2016,Aid Programme - Joint programme contribution ,Research and Evidence Division ,Natural Environment Research Council ,203774-103 ,"500,000.00",
DFID,DFID,13/06/2016,Aid Programme - Joint programme contribution ,Research and Evidence Division ,Natural Environment Research Council ,203835-103 ,"823,750.00",
DFID,DFID,17/06/2016,Aid Programme - Accountable Grant Payments ,Policy Division ,Supplier Name withheld ,203559-124 ,"215,159.00",
DFID,DFID,07/06/2016,Aid Programme - Accountable Grant Payments ,Policy Division ,BBC Media Action ,202629-101 ,"3,400,000.00",
DFID,DFID,28/06/2016,Telephone Usage & services ,Business Solutions Division Level ,BT BACS PAYMENTS ,200002-130 ,"2,380.56",
DFID,DFID,21/06/2016,Aid Programme - Joint programme contribution ,Asia  Caribbean and Overseas Territories ,THE BRITISH RED CROSS SOCIETY ,202433-110 ,"227,297.00",
DFID,DFID,15/06/2016,Project delivery costs – supplier services ,West and Southern Africa ,BRITISH COUNCIL ,201625-101 ,"439,110.00",
DFID,DFID,03/06/2016,Project delivery costs – supplier services ,West and Southern Africa ,BRITISH COUNCIL ,201625-109 ,"133,700.00",
DFID,DFID,15/06/2016,Project delivery costs – supplier services ,West and Southern Africa ,BRITISH COUNCIL ,201625-109 ,"72,145.00",
DFID,DFID,24/06/2016,Project delivery costs – supplier services ,West and Southern Africa ,BRITISH COUNCIL ,203816-102 ,"69,837.86",
DFID,DFID,07/06/2016,Aid Programme - Accountable Grant Payments ,Policy Division ,CHRISTIAN AID ,203559-130 ,"397,216.00",
DFID,DFID,15/06/2016,DFID Purchased Relief Supplies ,West and Southern Africa ,Crown Agents. ,104223-102 ,"172,989.86",
DFID,DFID,07/06/2016,DFID Purchased Relief Supplies ,West and Southern Africa ,Crown Agents. ,104229-102 ,"49,895.63",
DFID,DFID,15/06/2016,DFID Purchased Relief Supplies ,West and Southern Africa ,Crown Agents. ,104229-102 ,"15,806.25",
DFID,DFID,30/06/2016,DFID Purchased Relief Supplies ,West and Southern Africa ,Crown Agents. ,104229-102 ,"14,077.18",
DFID,DFID,30/06/2016,DFID Purchased Relief Supplies ,West and Southern Africa ,Crown Agents. ,104229-102 ,"25,321.04",
DFID,DFID,06/06/2016,DFID Purchased Relief Supplies ,West and Southern Africa ,Crown Agents. ,104229-102 ,"11,974.89",
DFID,DFID,30/06/2016,DFID Purchased Relief Supplies ,West and Southern Africa ,Crown Agents. ,104229-102 ,"10,182.88",
DFID,DFID,01/06/2016,DFID Purchased Relief Supplies ,West and Southern Africa ,Crown Agents. ,104229-102 ,"157,669.92",
DFID,DFID,20/06/2016,DFID Purchased Relief Supplies ,West and Southern Africa ,Crown Agents. ,104229-102 ,"9,584.97",
DFID,DFID,20/06/2016,DFID Purchased Relief Supplies ,West and Southern Africa ,Crown Agents. ,104229-102 ,"36,897.03",
DFID,DFID,20/06/2016,DFID Purchased Relief Supplies ,West and Southern Africa ,Crown Agents. ,104229-102 ,"25,926.39",
DFID,DFID,20/06/2016,DFID Purchased Relief Supplies ,West and Southern Africa ,Crown Agents. ,104229-102 ,"165,601.20",
DFID,DFID,20/06/2016,DFID Purchased Relief Supplies ,West and Southern Africa ,Crown Agents. ,104229-102 ,"1,854.45",
DFID,DFID,20/06/2016,DFID Purchased Relief Supplies ,West and Southern Africa ,Crown Agents. ,104229-102 ,"3,759.42",
DFID,DFID,30/06/2016,Project delivery costs – supplier services ,Asia  Caribbean and Overseas Territories ,Crown Agents. ,113287-102 ,"17,522.05",
DFID,DFID,24/06/2016,Project delivery costs – supplier services ,East and Central Africa ,Crown Agents. ,200349-102 ,"581,461.66",
DFID,DFID,01/06/2016,Project delivery costs – supplier services ,West and Southern Africa ,Crown Agents. ,200625-105 ,"38,422.49",
DFID,DFID,28/06/2016,Project delivery costs – supplier services ,West and Southern Africa ,Crown Agents. ,200625-105 ,"66,161.89",
DFID,DFID,28/06/2016,Project delivery costs – supplier services ,West and Southern Africa ,Crown Agents. ,200625-105 ,"8,310.04",
DFID,DFID,01/06/2016,Project delivery costs – supplier services ,Policy Division ,Crown Agents. ,200706-102 ,"246,018.63",
DFID,DFID,22/06/2016,Project delivery costs – supplier services ,Policy Division ,Crown Agents. ,200706-102 ,"53,451.21",
DFID,DFID,28/06/2016,Project delivery costs – supplier services ,West and Southern Africa ,Crown Agents. ,201629-103 ,"13,941.78",
DFID,DFID,22/06/2016,Fund monies to be managed and dispersed by the supplier ,Economic Development Division ,Crown Agents. ,202089-101 ,"12,553.25",
DFID,DFID,15/06/2016,Fund monies to be managed and dispersed by the supplier ,Economic Development Division ,Crown Agents. ,202089-102 ,"128,397.81",
DFID,DFID,16/06/2016,Project delivery costs – supplier services ,West and Southern Africa ,Crown Agents. ,202349-103 ,"125,000.00",
DFID,DFID,17/06/2016,Project delivery costs – supplier services ,Asia  Caribbean and Overseas Territories ,Crown Agents. ,202433-103 ,"12,448.80",
DFID,DFID,06/06/2016,Project delivery costs – supplier services ,Asia  Caribbean and Overseas Territories ,Crown Agents. ,202433-103 ,"1,440.38",
DFID,DFID,29/06/2016,Project delivery costs – supplier services ,West and Southern Africa ,Crown Agents. ,202463-103 ,"92,705.36",
DFID,DFID,23/06/2016,Fund monies to be managed and dispersed by the supplier ,West and Southern Africa ,Crown Agents. ,202531-104 ,"67,759.42",
DFID,DFID,07/06/2016,Fund monies to be managed and dispersed by the supplier ,West and Southern Africa ,Crown Agents. ,202541-105 ,"1,270,166.21",
DFID,DFID,20/06/2016,Project delivery costs – supplier services ,East and Central Africa ,Crown Agents. ,202594-101 ,"11,430.00",
DFID,DFID,27/06/2016,Fund monies to be managed and dispersed by the supplier ,Policy Division ,Crown Agents. ,202628-101 ,"270,872.00",
DFID,DFID,24/06/2016,Fund monies to be managed and dispersed by the supplier ,Policy Division ,Crown Agents. ,202628-101 ,"98,099.00",
DFID,DFID,09/06/2016,Project delivery costs – supplier services ,West and Southern Africa ,Crown Agents. ,202640-103 ,"54,024.07",
DFID,DFID,17/06/2016,Project delivery costs – supplier services ,West and Southern Africa ,Crown Agents. ,202640-103 ,"33,299.48",
DFID,DFID,23/06/2016,Project delivery costs – supplier services ,Conflict  Humanitarian  Security & Stabilisation Division ,Crown Agents. ,202741-106 ,"304,183.20",
DFID,DFID,15/06/2016,Aid Programme - Humanitarian Material Relief Assistance and Services ,Conflict  Humanitarian  Security & Stabilisation Division ,Crown Agents. ,202741-107 ,680.40,
DFID,DFID,07/06/2016,Project delivery costs – supplier services ,Conflict  Humanitarian  Security & Stabilisation Division ,Crown Agents. ,202741-104 ,"173,848.80",
DFID,DFID,28/06/2016,Aid Programme - Humanitarian Material Relief Assistance and Services ,Conflict  Humanitarian  Security & Stabilisation Division ,Crown Agents. ,202878-103 ,"8,800.80",
DFID,DFID,17/06/2016,Aid Programme - Humanitarian Material Relief Assistance and Services ,Conflict  Humanitarian  Security & Stabilisation Division ,Crown Agents. ,202878-103 ,"6,804.00",
DFID,DFID,17/06/2016,Aid Programme - Humanitarian Material Relief Assistance and Services ,Conflict  Humanitarian  Security & Stabilisation Division ,Crown Agents. ,202878-103 ,"27,962.54",
DFID,DFID,09/06/2016,Aid Programme - Humanitarian Material Relief Assistance and Services ,Conflict  Humanitarian  Security & Stabilisation Division ,Crown Agents. ,202878-103 ,"15,481.48",
DFID,DFID,25/06/2016,Aid Programme - Humanitarian Material Relief Assistance and Services ,Conflict  Humanitarian  Security & Stabilisation Division ,Crown Agents. ,202878-103 ,"4,409.67",
DFID,DFID,17/06/2016,Aid Programme - Humanitarian Material Relief Assistance and Services ,Conflict  Humanitarian  Security & Stabilisation Division ,Crown Agents. ,202878-103 ,"3,616.42",
DFID,DFID,26/06/2016,Aid Programme - Humanitarian Material Relief Assistance and Services ,East and Central Africa ,Crown Agents. ,202890-104 ,781.00,
DFID,DFID,14/06/2016,Project delivery costs – supplier services ,East and Central Africa ,Crown Agents. ,202893-103 ,"25,467.41",
DFID,DFID,07/06/2016,DFID Purchased Relief Supplies ,East and Central Africa ,Crown Agents. ,202900-107 ,"121,607.85",
DFID,DFID,07/06/2016,DFID Purchased Relief Supplies ,East and Central Africa ,Crown Agents. ,202900-107 ,"4,729.44",
DFID,DFID,14/06/2016,DFID Purchased Relief Supplies ,East and Central Africa ,Crown Agents. ,202900-107 ,"194,572.56",
DFID,DFID,07/06/2016,Fund monies to be managed and dispersed by the supplier ,East and Central Africa ,Crown Agents. ,202946-107 ,"470,113.04",
DFID,DFID,07/06/2016,Fund monies to be managed and dispersed by the supplier ,East and Central Africa ,Crown Agents. ,202974-101 ,"15,723.17",
DFID,DFID,16/06/2016,Fund monies to be managed and dispersed by the supplier ,East and Central Africa ,Crown Agents. ,202974-101 ,"4,825.89",
DFID,DFID,24/06/2016,Aid Programme - Humanitarian Material Relief Assistance and Services ,East and Central Africa ,Crown Agents. ,203071-103 ,"14,757.60",
DFID,DFID,23/06/2016,Fund monies to be managed and dispersed by the supplier ,East and Central Africa ,Crown Agents. ,203109-106 ,"471,417.00",
DFID,DFID,23/06/2016,Fund monies to be managed and dispersed by the supplier ,East and Central Africa ,Crown Agents. ,203109-106 ,"173,911.00",
DFID,DFID,23/06/2016,Fund monies to be managed and dispersed by the supplier ,East and Central Africa ,Crown Agents. ,203109-106 ,"821,018.00",
DFID,DFID,28/06/2016,Fund monies to be managed and dispersed by the supplier ,East and Central Africa ,Crown Agents. ,203109-106 ,"147,398.00",
DFID,DFID,07/06/2016,Project delivery costs – supplier services ,Asia  Caribbean and Overseas Territories ,Crown Agents. ,203275-102 ,"118,536.97",
DFID,DFID,28/06/2016,Project delivery costs – supplier services ,Economic Development Division ,Crown Agents. ,203375-101 ,"527,587.22",
DFID,DFID,29/06/2016,Project delivery costs – supplier services ,Economic Development Division ,Crown Agents. ,203375-102 ,"5,015.00",
DFID,DFID,13/06/2016,DFID Purchased Relief Supplies ,Asia  Caribbean and Overseas Territories ,Crown Agents. ,203400-109 ,"2,544.25",
DFID,DFID,08/06/2016,Project delivery costs – supplier services ,Asia  Caribbean and Overseas Territories ,Crown Agents. ,203400-109 ,"1,068.18",
DFID,DFID,29/06/2016,Project delivery costs – supplier services ,Conflict  Humanitarian  Security & Stabilisation Division ,Crown Agents. ,203416-102 ,"10,598.40",
DFID,DFID,29/06/2016,Project delivery costs – supplier services ,Conflict  Humanitarian  Security & Stabilisation Division ,Crown Agents. ,203416-102 ,"37,358.08",
DFID,DFID,20/06/2016,Project delivery costs – supplier services ,Conflict  Humanitarian  Security & Stabilisation Division ,Crown Agents. ,203416-102 ,"63,150.00",
DFID,DFID,16/06/2016,Project delivery costs – supplier services ,Conflict  Humanitarian  Security & Stabilisation Division ,Crown Agents. ,203416-102 ,"2,721.60",
DFID,DFID,13/06/2016,Aid Programme - Humanitarian Material Relief Assistance and Services ,Conflict  Humanitarian  Security & Stabilisation Division ,Crown Agents. ,203419-105 ,"14,605.00",
DFID,DFID,06/06/2016,Aid Programme - Humanitarian Material Relief Assistance and Services ,Conflict  Humanitarian  Security & Stabilisation Division ,Crown Agents. ,203419-105 ,"14,605.00",
DFID,DFID,27/06/2016,Project delivery costs – supplier services ,West and Southern Africa ,Crown Agents. ,203551-102 ,"22,897.50",
DFID,DFID,27/06/2016,Fund monies to be managed and dispersed by the supplier ,West and Southern Africa ,Crown Agents. ,203551-102 ,"1,058,363.10",
DFID,DFID,23/06/2016,DFID Purchased Relief Supplies ,West and Southern Africa ,Crown Agents. ,203648-107 ,"976,572.87",
DFID,DFID,01/06/2016,Project delivery costs – supplier services ,Conflict  Humanitarian  Security & Stabilisation Division ,Crown Agents. ,203815-106 ,"14,284.80",
DFID,DFID,15/06/2016,Project delivery costs – supplier services ,Conflict  Humanitarian  Security & Stabilisation Division ,Crown Agents. ,203815-106 ,"13,689.60",
DFID,DFID,17/06/2016,Aid Programme - Accountable Grant Payments ,East and Central Africa ,Crown Agents. ,203961-114 ,"14,968.80",
DFID,DFID,23/06/2016,Aid Programme - Accountable Grant Payments ,East and Central Africa ,Crown Agents. ,203961-114 ,"16,581.60",
DFID,DFID,15/06/2016,DFID Purchased Relief Supplies ,East and Central Africa ,Crown Agents. ,204266-102 ,"12,164.31",
DFID,DFID,09/06/2016,Project delivery costs – supplier services ,Middle East and North Africa Division ,Crown Agents. ,204267-103 ,"3,033.15",
DFID,DFID,09/06/2016,Project delivery costs – supplier services ,Middle East and North Africa Division ,Crown Agents. ,204267-103 ,"1,640.97",
DFID,DFID,25/06/2016,Aid Programme - Accountable Grant Payments ,Research and Evidence Division ,Crown Agents. ,204343-105 ,"76,500.00",
DFID,DFID,27/06/2016,Fund monies to be managed and dispersed by the supplier ,Research and Evidence Division ,Crown Agents. ,204415-103 ,"23,642.00",
DFID,DFID,27/06/2016,Fund monies to be managed and dispersed by the supplier ,Research and Evidence Division ,Crown Agents. ,204415-103 ,"23,232.00",
DFID,DFID,27/06/2016,Fund monies to be managed and dispersed by the supplier ,Research and Evidence Division ,Crown Agents. ,204415-103 ,"31,402.00",
DFID,DFID,24/06/2016,Project delivery costs – supplier services ,East and Central Africa ,Crown Agents. ,204439-103 ,"12,520.80",
DFID,DFID,24/06/2016,Project delivery costs – supplier services ,East and Central Africa ,Crown Agents. ,204439-103 ,"13,447.20",
DFID,DFID,24/06/2016,Project delivery costs – supplier services ,East and Central Africa ,Crown Agents. ,204439-103 ,"1,405.72",
DFID,DFID,24/06/2016,Project delivery costs – supplier services ,East and Central Africa ,Crown Agents. ,204439-103 ,"5,047.38",
DFID,DFID,15/06/2016,Aid Programme - Humanitarian Material Relief Assistance and Services ,Middle East and North Africa Division ,Crown Agents. ,204516-102 ,"39,693.60",
DFID,DFID,26/06/2016,Aid Programme - Humanitarian Material Relief Assistance and Services ,Middle East and North Africa Division ,Crown Agents. ,204516-102 ,"39,602.40",
DFID,DFID,20/06/2016,Aid Programme - Humanitarian Material Relief Assistance and Services ,Middle East and North Africa Division ,Crown Agents. ,204516-102 ,"40,255.80",
DFID,DFID,03/06/2016,Aid Programme - Humanitarian Material Relief Assistance and Services ,Middle East and North Africa Division ,Crown Agents. ,204516-102 ,"21,873.60",
DFID,DFID,16/06/2016,Aid Programme - Humanitarian Material Relief Assistance and Services ,Middle East and North Africa Division ,Crown Agents. ,204516-103 ,"1,308.12",
DFID,DFID,16/06/2016,Aid Programme - Humanitarian Material Relief Assistance and Services ,Middle East and North Africa Division ,Crown Agents. ,204516-103 ,"16,430.40",
DFID,DFID,28/06/2016,Aid Programme - Humanitarian Material Relief Assistance and Services ,Asia  Caribbean and Overseas Territories ,Crown Agents. ,204603-101 ,"21,336.00",
DFID,DFID,01/06/2016,Aid Programme - Accountable Grant Payments ,Asia  Caribbean and Overseas Territories ,Crown Agents. ,204623-108 ,"107,218.28",
DFID,DFID,24/06/2016,Aid Programme - Accountable Grant Payments ,Asia  Caribbean and Overseas Territories ,Crown Agents. ,204623-108 ,"84,963.21",
DFID,DFID,27/06/2016,Aid Programme - Accountable Grant Payments ,Asia  Caribbean and Overseas Territories ,Crown Agents. ,204623-108 ,"84,463.50",
DFID,DFID,21/06/2016,Bank Charges/Services ,Group Operations ,Crown Agents. ,204664-101 ,"3,000.00",
DFID,DFID,23/06/2016,Project delivery costs – supplier services ,East and Central Africa ,Crown Agents. ,204851-105 ,"4,572.00",
DFID,DFID,20/06/2016,Project delivery costs – supplier services ,East and Central Africa ,Crown Agents. ,204851-105 ,"2,700.00",
DFID,DFID,03/06/2016,Project delivery costs – supplier services ,East and Central Africa ,Crown Agents. ,204851-105 ,"3,810.00",
DFID,DFID,24/06/2016,Project delivery costs – supplier services ,East and Central Africa ,Crown Agents. ,204852-109 ,"8,568.00",
DFID,DFID,07/06/2016,Project delivery costs – supplier services ,Regional Directorate ,Crown Agents. ,204902-103 ,"24,584.31",
DFID,DFID,07/06/2016,Project delivery costs – supplier services ,Regional Directorate ,Crown Agents. ,204902-103 ,"17,526.00",
DFID,DFID,13/06/2016,Project delivery costs – supplier services ,Regional Directorate ,Crown Agents. ,204902-103 ,"28,512.00",
DFID,DFID,21/06/2016,Project delivery costs – supplier services ,Regional Directorate ,Crown Agents. ,204902-103 ,"8,100.00",
DFID,DFID,21/06/2016,Project delivery costs – supplier services ,Regional Directorate ,Crown Agents. ,204902-103 ,"20,684.40",
DFID,DFID,03/06/2016,Project delivery costs – supplier services ,Regional Directorate ,Crown Agents. ,204902-103 ,"10,044.00",
DFID,DFID,29/06/2016,Aid Programme - Humanitarian Material Relief Assistance and Services ,Middle East and North Africa Division ,Crown Agents. ,204968-103 ,"20,574.00",
DFID,DFID,20/06/2016,Aid Programme - Humanitarian Material Relief Assistance and Services ,Middle East and North Africa Division ,Crown Agents. ,204968-103 ,"4,156.51",
DFID,DFID,07/06/2016,Aid Programme - Humanitarian Material Relief Assistance and Services ,Middle East and North Africa Division ,Crown Agents. ,204968-103 ,"2,169.79",
DFID,DFID,16/06/2016,Aid Programme - Humanitarian Material Relief Assistance and Services ,Middle East and North Africa Division ,Crown Agents. ,204968-103 ,"10,584.00",
DFID,DFID,10/06/2016,Aid Programme - Humanitarian Material Relief Assistance and Services ,Middle East and North Africa Division ,Crown Agents. ,204968-103 ,"10,668.00",
DFID,DFID,08/06/2016,Aid Programme - Humanitarian Material Relief Assistance and Services ,Asia  Caribbean and Overseas Territories ,Crown Agents. ,205028-101 ,"1,921.84",
DFID,DFID,16/06/2016,Project delivery costs – supplier services ,East and Central Africa ,Crown Agents. ,205064-106 ,"4,092.66",
DFID,DFID,07/06/2016,Project delivery costs – supplier services ,East and Central Africa ,Crown Agents. ,205064-106 ,"16,002.00",
DFID,DFID,26/06/2016,Project delivery costs – supplier services ,West and Southern Africa ,Crown Agents. ,205122-101 ,843.25,
DFID,DFID,20/06/2016,Project delivery costs – supplier services ,West and Southern Africa ,Crown Agents. ,205122-101 ,"17,409.60",
DFID,DFID,03/06/2016,Project delivery costs – supplier services ,Conflict  Humanitarian  Security & Stabilisation Division ,Crown Agents. ,205141-104 ,"19,383.60",
DFID,DFID,24/06/2016,Project delivery costs – supplier services ,Conflict  Humanitarian  Security & Stabilisation Division ,Crown Agents. ,205141-104 ,"17,520.00",
DFID,DFID,23/06/2016,Project delivery costs – supplier services ,Conflict  Humanitarian  Security & Stabilisation Division ,Crown Agents. ,205141-104 ,"9,567.60",
DFID,DFID,16/06/2016,Project delivery costs – supplier services ,Conflict  Humanitarian  Security & Stabilisation Division ,Crown Agents. ,205141-104 ,"8,536.01",
DFID,DFID,16/06/2016,Project delivery costs – supplier services ,Conflict  Humanitarian  Security & Stabilisation Division ,Crown Agents. ,205141-104 ,"6,260.86",
DFID,DFID,15/06/2016,Project delivery costs – supplier services ,Conflict  Humanitarian  Security & Stabilisation Division ,Crown Agents. ,205141-104 ,"10,693.20",
DFID,DFID,10/06/2016,Project delivery costs – supplier services ,East and Central Africa ,Crown Agents. ,205256-108 ,"254,075.05",
DFID,DFID,08/06/2016,Project delivery costs – supplier services ,East and Central Africa ,Crown Agents. ,205256-108 ,"420,887.14",
DFID,DFID,30/06/2016,Project delivery costs – supplier services ,East and Central Africa ,Crown Agents. ,205256-108 ,"109,586.50",
DFID,DFID,07/06/2016,Project delivery costs – supplier services ,East and Central Africa ,Crown Agents. ,205256-108 ,"18,051.02",
DFID,DFID,07/06/2016,Project delivery costs – supplier services ,East and Central Africa ,Crown Agents. ,205256-108 ,"15,736.88",
DFID,DFID,23/06/2016,Project delivery costs – supplier services ,East and Central Africa ,Crown Agents. ,205256-108 ,"172,655.60",
DFID,DFID,23/06/2016,Project delivery costs – supplier services ,East and Central Africa ,Crown Agents. ,205256-108 ,"6,286.80",
DFID,DFID,23/06/2016,Project delivery costs – supplier services ,East and Central Africa ,Crown Agents. ,205256-108 ,"1,932.00",
DFID,DFID,01/06/2016,Project delivery costs – supplier services ,East and Central Africa ,Crown Agents. ,205256-108 ,"39,006.52",
DFID,DFID,30/06/2016,Project delivery costs – supplier services ,East and Central Africa ,Crown Agents. ,205256-108 ,"3,900.00",
DFID,DFID,15/06/2016,Project delivery costs – supplier services ,Asia  Caribbean and Overseas Territories ,Crown Agents. ,300040-104 ,939.54,
DFID,DFID,07/06/2016,Project delivery costs – supplier services ,Asia  Caribbean and Overseas Territories ,Crown Agents. ,300040-104 ,"14,088.00",
DFID,DFID,17/06/2016,Project delivery costs – supplier services ,Conflict  Humanitarian  Security & Stabilisation Division ,Crown Agents. ,300042-101 ,517.96,
DFID,DFID,30/06/2016,Computer software maintenance ,Business Solutions Division Level ,COMPUTACENTER (UK) LTD ,200002-213 ,"27,775.50","Annual  support,  maintenance and licences for the DFID Room booking system for April 2016 to March 2017"
DFID,DFID,29/06/2016,AV Conferencing systems -hardware ,Business Solutions Division Level ,COMPUTACENTER (UK) LTD ,200002-153 ,"1,994.15",
DFID,DFID,30/06/2016,Computer Software Licenses ,Group Operations ,COMPUTACENTER (UK) LTD ,203717-101 ,"7,835.50",
DFID,DFID,15/06/2016,Aid Programme - Accountable Grant Payments ,West and Southern Africa ,CAMFED ,202623-111 ,"578,986.00",
DFID,DFID,23/06/2016,Aid Programme - Accountable Grant Payments ,Policy Division ,CARE INTERNATIONAL UK ,203559-139 ,"22,918.22",
DFID,DFID,02/06/2016,Aid Programme - Accountable Grant Payments ,Middle East and North Africa Division ,CARE INTERNATIONAL UK ,203847-103 ,"1,599,609.40",
DFID,DFID,03/06/2016,Training Providers/Facilitation Services ,Finance and Corporate Performance Division ,CRANFIELD MANAGEMENT DEVELOPMENT LTD ,204846-101 ,"6,565.83",
DFID,DFID,14/06/2016,Training Providers/Facilitation Services ,Finance and Corporate Performance Division ,CRANFIELD MANAGEMENT DEVELOPMENT LTD ,204846-101 ,"6,565.83",
DFID,DFID,29/06/2016,Project delivery costs – supplier services ,Research and Evidence Division ,CAB INTERNATIONAL ,112152-102 ,"21,704.71",
DFID,DFID,06/06/2016,Aid Programme - Accountable Grant Payments ,Policy Division ,COMIC RELIEF ,202197-101 ,"539,789.00",
DFID,DFID,08/06/2016,Aid Programme - Accountable Grant Payments ,Policy Division ,COMIC RELIEF ,203873-101 ,"334,472.00",
DFID,DFID,02/06/2016,Aid Programme - Accountable Grant Payments ,Policy Division ,COMIC RELIEF ,204912-101 ,"1,066,748.00",
DFID,DFID,23/06/2016,Aid Programme - Partnership Programme Arrangements ,Policy Division ,COMIC RELIEF ,204961-101 ,"384,580.00",
DFID,DFID,16/06/2016,Property rates ,Group Operations ,CITY OF WESTMINSTER ,203717-101 ,"128,216.00",One tenth of the 2016/17 Whitehall headquarters rateable value (third June instalment)  
DFID,DFID,08/06/2016,Project delivery costs – supplier services ,Asia  Caribbean and Overseas Territories ,Supplier Name withheld ,114506-101 ,"424,319.18",
DFID,DFID,03/06/2016,Project delivery costs – supplier services ,Asia  Caribbean and Overseas Territories ,Supplier Name withheld ,114506-101 ,"16,140.80",
DFID,DFID,03/06/2016,Project delivery costs – supplier services ,Asia  Caribbean and Overseas Territories ,Supplier Name withheld ,114506-101 ,"339,102.39",
DFID,DFID,23/06/2016,Training Providers/Facilitation Services ,Human Resources ,Capita  Business Services ,100269-158 ,"1,609.76",
DFID,DFID,15/06/2016,Training - Course Fees ,Human Resources ,Capita  Business Services ,100269-117 ,"2,683.00",
DFID,DFID,24/06/2016,Training Providers/Facilitation Services ,Finance and Corporate Performance Division ,Capita  Business Services ,204846-101 ,"20,701.77",
DFID,DFID,13/06/2016,Project delivery costs – supplier services ,Conflict  Humanitarian  Security & Stabilisation Division ,Royal Institute for Int. Affairs ,205038-107 ,"120,936.00",
DFID,DFID,09/06/2016,Project delivery costs – supplier services ,Asia  Caribbean and Overseas Territories ,Nathan Associates London Ltd ,202180-102 ,"141,753.10",
DFID,DFID,30/06/2016,Project delivery costs – supplier services ,Asia  Caribbean and Overseas Territories ,Nathan Associates London Ltd ,202180-102 ,"37,892.06",
DFID,DFID,01/06/2016,Project delivery costs – supplier services ,West and Southern Africa ,COFFEY INTERNATIONAL DEVELOPMENT LTD ,104190-109 ,"316,645.07",
DFID,DFID,26/06/2016,Project delivery costs – supplier services ,Asia  Caribbean and Overseas Territories ,COFFEY INTERNATIONAL DEVELOPMENT LTD ,108538-107 ,"5,881.82",
DFID,DFID,23/06/2016,Project delivery costs – supplier services ,East and Central Africa ,COFFEY INTERNATIONAL DEVELOPMENT LTD ,200842-112 ,"30,399.88",
DFID,DFID,09/06/2016,Project delivery costs – supplier services ,West and Southern Africa ,COFFEY INTERNATIONAL DEVELOPMENT LTD ,201629-104 ,"46,205.86",
DFID,DFID,17/06/2016,Project delivery costs – supplier services ,West and Southern Africa ,COFFEY INTERNATIONAL DEVELOPMENT LTD ,201629-104 ,"20,483.48",
DFID,DFID,15/06/2016,Project delivery costs – supplier services ,Middle East and North Africa Division ,COFFEY INTERNATIONAL DEVELOPMENT LTD ,202241-103 ,"40,324.69",
DFID,DFID,17/06/2016,Project delivery costs – supplier services ,Middle East and North Africa Division ,COFFEY INTERNATIONAL DEVELOPMENT LTD ,202241-103 ,"38,560.09",
DFID,DFID,24/06/2016,Project delivery costs – supplier services ,Policy Division ,COFFEY INTERNATIONAL DEVELOPMENT LTD ,202372-104 ,"347,539.57",
DFID,DFID,24/06/2016,Project delivery costs – supplier services ,West and Southern Africa ,COFFEY INTERNATIONAL DEVELOPMENT LTD ,202455-104 ,"2,907.21",
DFID,DFID,01/06/2016,Project delivery costs – supplier services ,West and Southern Africa ,COFFEY INTERNATIONAL DEVELOPMENT LTD ,202455-104 ,"13,553.95",
DFID,DFID,14/06/2016,Project delivery costs – supplier services ,East and Central Africa ,COFFEY INTERNATIONAL DEVELOPMENT LTD ,202552-103 ,"21,664.75",
DFID,DFID,15/06/2016,Project delivery costs – supplier services ,Research and Evidence Division ,COFFEY INTERNATIONAL DEVELOPMENT LTD ,203193-101 ,"10,306.60",
DFID,DFID,15/06/2016,Project delivery costs – supplier services ,Research and Evidence Division ,COFFEY INTERNATIONAL DEVELOPMENT LTD ,203193-101 ,"10,306.60",
DFID,DFID,07/06/2016,Project delivery costs – supplier services ,Research and Evidence Division ,COFFEY INTERNATIONAL DEVELOPMENT LTD ,203193-101 ,"15,919.20",
DFID,DFID,07/06/2016,Project delivery costs – supplier services ,Research and Evidence Division ,COFFEY INTERNATIONAL DEVELOPMENT LTD ,203193-101 ,"43,966.34",
DFID,DFID,13/06/2016,Project delivery costs – supplier services ,Economic Development Division ,COFFEY INTERNATIONAL DEVELOPMENT LTD ,203299-102 ,"6,460.00",
DFID,DFID,03/06/2016,Project delivery costs – supplier services ,West and Southern Africa ,COFFEY INTERNATIONAL DEVELOPMENT LTD ,203429-105 ,"46,564.00",
DFID,DFID,08/06/2016,Project delivery costs – supplier services ,East and Central Africa ,COFFEY INTERNATIONAL DEVELOPMENT LTD ,203466-105 ,"247,058.17",
DFID,DFID,28/06/2016,Project delivery costs – supplier services ,Asia  Caribbean and Overseas Territories ,COFFEY INTERNATIONAL DEVELOPMENT LTD ,203508-104 ,"1,380.00",
DFID,DFID,24/06/2016,Project delivery costs – supplier services ,West and Southern Africa ,COFFEY INTERNATIONAL DEVELOPMENT LTD ,204242-104 ,"16,769.00",
DFID,DFID,24/06/2016,Project delivery costs – supplier services ,East and Central Africa ,COFFEY INTERNATIONAL DEVELOPMENT LTD ,204626-102 ,"16,560.00",
DFID,DFID,20/06/2016,Project delivery costs – supplier services ,East and Central Africa ,COFFEY INTERNATIONAL DEVELOPMENT LTD ,204736-107 ,"10,154.86",
DFID,DFID,20/06/2016,Project delivery costs – supplier services ,East and Central Africa ,COFFEY INTERNATIONAL DEVELOPMENT LTD ,204736-107 ,"1,699.74",
DFID,DFID,07/06/2016,Project delivery costs – supplier services ,Research and Evidence Division ,COFFEY INTERNATIONAL DEVELOPMENT LTD ,204806-106 ,"16,462.50",
DFID,DFID,10/06/2016,Project delivery costs – supplier services ,Research and Evidence Division ,COFFEY INTERNATIONAL DEVELOPMENT LTD ,204806-101 ,"16,462.50",
DFID,DFID,14/06/2016,Project delivery costs – supplier services ,West and Southern Africa ,COFFEY INTERNATIONAL DEVELOPMENT LTD ,205102-101 ,"22,673.81",
DFID,DFID,10/06/2016,Repairs  Maintenance and Alterations – Other Building Costs ,Group Operations ,EDF ENERGY ,203717-101 ,"1,036.80",
DFID,DFID,30/06/2016,Aid Programme - Accountable Grant Payments ,Research and Evidence Division ,ECONOMIC AND SOCIAL RESEARCH COUNCIL ,202168-105 ,"870,477.59",
DFID,DFID,30/06/2016,Aid Programme - Accountable Grant Payments ,Research and Evidence Division ,ECONOMIC AND SOCIAL RESEARCH COUNCIL ,202168-105 ,"8,333.33",
DFID,DFID,24/06/2016,Aid Programme - Accountable Grant Payments ,Research and Evidence Division ,ECONOMIC AND SOCIAL RESEARCH COUNCIL ,202168-106 ,"226,330.07",
DFID,DFID,24/06/2016,Aid Programme - Accountable Grant Payments ,Research and Evidence Division ,ECONOMIC AND SOCIAL RESEARCH COUNCIL ,202168-106 ,"7,000.00",
DFID,DFID,24/06/2016,Aid Programme - Strategic Grant Arrangement payments ,Research and Evidence Division ,ECONOMIC AND SOCIAL RESEARCH COUNCIL ,203545-104 ,"1,007,436.00",
DFID,DFID,24/06/2016,Aid Programme - Strategic Grant Arrangement payments ,Research and Evidence Division ,ECONOMIC AND SOCIAL RESEARCH COUNCIL ,203545-104 ,"6,616.54",
DFID,DFID,28/06/2016,Aid Programme - Accountable Grant Payments ,Research and Evidence Division ,ECONOMIC AND SOCIAL RESEARCH COUNCIL ,204324-102 ,"431,902.88",
DFID,DFID,28/06/2016,Aid Programme - Accountable Grant Payments ,Research and Evidence Division ,ECONOMIC AND SOCIAL RESEARCH COUNCIL ,204324-102 ,"10,156.25",
DFID,DFID,08/06/2016,Professional member subscriptions ,Research and Evidence Division ,FACULTY OF PUBLIC HEALTH MEDECI ,202331-102 ,"1,950.00",
DFID,DFID,08/06/2016,Professional member subscriptions ,Research and Evidence Division ,FACULTY OF PUBLIC HEALTH MEDECI ,202348-101 ,"1,950.00",
DFID,DFID,13/06/2016,Courier & Bag Services ,Business Solutions Division Level ,FCO SERVICES ,200001-101 ,"2,739.49",
DFID,DFID,27/06/2016,Courier & Bag Services ,Business Solutions Division Level ,FCO SERVICES ,200001-101 ,697.13,
DFID,DFID,08/06/2016,Postage Costs ,Group Operations ,FCO SERVICES ,203717-101 ,"5,414.66",
DFID,DFID,30/06/2016,Postage Costs ,Group Operations ,FCO SERVICES ,203717-101 ,"2,707.33",
DFID,DFID,07/06/2016,Repairs  Maint  Alter - Property & Constrct. Services ,Central Department Division ,FCO SERVICES ,204994-143 ,"3,092.49",
DFID,DFID,09/06/2016,Project delivery costs – supplier services ,Middle East and North Africa Division ,FCO SERVICES ,205244-101 ,789.40,
DFID,DFID,23/06/2016,Aid Programme - Pooled/Basket funding ,East and Central Africa ,FOREIGN INVESTMENT ADVISORY SERVICE ,203348-105 ,"700,000.00",
DFID,DFID,20/06/2016,Gas ,Group Operations ,CORONA ENERGY ,100106-101 ,689.86,
DFID,DFID,21/06/2016,Gas ,Group Operations ,CORONA ENERGY ,100106-101 ,"1,023.34",
DFID,DFID,10/06/2016,Other Building Products ,Group Operations ,GVA GRIMLEY ,100106-101 ,"5,436.00",
DFID,DFID,20/06/2016,Project delivery costs – supplier services ,West and Southern Africa ,PALLADIUM ,114230-101 ,"190,419.64",
DFID,DFID,09/06/2016,Project delivery costs – supplier services ,West and Southern Africa ,PALLADIUM ,202098-101 ,"396,040.11",
DFID,DFID,23/06/2016,Project delivery costs – supplier services ,West and Southern Africa ,PALLADIUM ,202352-102 ,"366,434.70",
DFID,DFID,21/06/2016,Project delivery costs – supplier services ,West and Southern Africa ,PALLADIUM ,202370-102 ,"483,519.40",
DFID,DFID,27/06/2016,Project delivery costs – supplier services ,East and Central Africa ,PALLADIUM ,202596-108 ,"11,807.30",
DFID,DFID,23/06/2016,Project delivery costs – supplier services ,Policy Division ,PALLADIUM ,202745-104 ,"280,390.29",
DFID,DFID,29/06/2016,Project delivery costs – supplier services ,East and Central Africa ,PALLADIUM ,202900-108 ,"17,715.56",
DFID,DFID,14/06/2016,Project delivery costs – supplier services ,Asia  Caribbean and Overseas Territories ,PALLADIUM ,203274-104 ,"24,640.00",
DFID,DFID,08/06/2016,Project delivery costs – supplier services ,East and Central Africa ,PALLADIUM ,203539-102 ,"86,045.94",
DFID,DFID,08/06/2016,Fund monies to be managed and dispersed by the supplier ,East and Central Africa ,PALLADIUM ,203539-102 ,"110,371.55",
DFID,DFID,24/06/2016,Project delivery costs – supplier services ,East and Central Africa ,PALLADIUM ,204012-106 ,"147,192.02",
DFID,DFID,25/06/2016,Project delivery costs – supplier services ,East and Central Africa ,PALLADIUM ,204012-106 ,"109,259.49",
DFID,DFID,23/06/2016,Project delivery costs – supplier services ,East and Central Africa ,PALLADIUM ,204012-106 ,"532,402.74",
DFID,DFID,16/06/2016,Project delivery costs – supplier services ,Economic Development Division ,PALLADIUM ,204253-105 ,"101,280.00",
DFID,DFID,29/06/2016,Aid Programme - Accountable Grant Payments ,Research and Evidence Division ,GVEP INTERNATIONAL LTD ,203705-123 ,"94,715.00",
DFID,DFID,07/06/2016,Project delivery costs – supplier services ,Asia  Caribbean and Overseas Territories ,ICF Consulting Services Ltd ,203484-101 ,"4,383.00",
DFID,DFID,07/06/2016,Project delivery costs – supplier services ,Asia  Caribbean and Overseas Territories ,ICF Consulting Services Ltd ,203484-101 ,"13,365.00",
DFID,DFID,01/06/2016,Aid Programme - Accountable Grant Payments ,Middle East and North Africa Division ,Supplier Name withheld ,204523-101 ,"2,820,624.00",
DFID,DFID,21/06/2016,Aid Programme - Accountable Grant Payments ,West and Southern Africa ,Supplier Name withheld ,205182-106 ,"378,988.00",
DFID,DFID,20/06/2016,Project delivery costs – supplier services ,Conflict  Humanitarian  Security & Stabilisation Division ,THE HALO TRUST ,203243-118 ,"37,900.00",
DFID,DFID,20/06/2016,Project delivery costs – supplier services ,Conflict  Humanitarian  Security & Stabilisation Division ,THE HALO TRUST ,203243-119 ,"122,301.00",
DFID,DFID,24/06/2016,Project delivery costs – supplier services ,Conflict  Humanitarian  Security & Stabilisation Division ,THE HALO TRUST ,203243-121 ,"20,894.83",
DFID,DFID,21/06/2016,Project delivery costs – supplier services ,West and Southern Africa ,HEALTH PARTNERS INTERNATIONAL ,202694-101 ,"506,032.49",
DFID,DFID,09/06/2016,Project delivery costs – supplier services ,West and Southern Africa ,HEALTH PARTNERS INTERNATIONAL ,202694-101 ,"57,977.97",
DFID,DFID,09/06/2016,Project delivery costs – supplier services ,West and Southern Africa ,HEALTH PARTNERS INTERNATIONAL ,202694-101 ,"234,350.85",
DFID,DFID,29/06/2016,Project delivery costs – supplier services ,West and Southern Africa ,HTSPE LTD ,104189-101 ,"10,046.47",
DFID,DFID,03/06/2016,Project delivery costs – supplier services ,Asia  Caribbean and Overseas Territories ,HTSPE LTD ,201129-109 ,"5,119.20",
DFID,DFID,10/06/2016,Project delivery costs – supplier services ,East and Central Africa ,HTSPE LTD ,201575-107 ,"22,128.21",
DFID,DFID,30/06/2016,Project delivery costs – supplier services ,West and Southern Africa ,HTSPE LTD ,201854-102 ,"1,248.00",
DFID,DFID,01/06/2016,Project delivery costs – supplier services ,West and Southern Africa ,HTSPE LTD ,201944-104 ,"105,934.80",
DFID,DFID,28/06/2016,Project delivery costs – supplier services ,West and Southern Africa ,HTSPE LTD ,201944-104 ,"53,227.88",
DFID,DFID,10/06/2016,Project delivery costs – supplier services ,Asia  Caribbean and Overseas Territories ,Supplier Name withheld ,202297-101 ,"17,900.00",
DFID,DFID,29/06/2016,Project delivery costs – supplier services ,West and Southern Africa ,HTSPE LTD ,202345-103 ,"9,218.48",
DFID,DFID,07/06/2016,Project delivery costs – supplier services ,Asia  Caribbean and Overseas Territories ,HTSPE LTD ,202491-102 ,"108,305.54",
DFID,DFID,07/06/2016,Aid Programme - Challenge Fund payments ,Asia  Caribbean and Overseas Territories ,HTSPE LTD ,202491-106 ,"68,081.01",
DFID,DFID,28/06/2016,Project delivery costs – supplier services ,East and Central Africa ,HTSPE LTD ,202900-102 ,"1,199,554.52",
DFID,DFID,09/06/2016,Project delivery costs – supplier services ,Research and Evidence Division ,HTSPE LTD ,203193-101 ,"4,697.84",
DFID,DFID,02/06/2016,Project delivery costs – supplier services ,Research and Evidence Division ,HTSPE LTD ,203193-101 ,"11,274.82",
DFID,DFID,07/06/2016,Project delivery costs – supplier services ,Research and Evidence Division ,HTSPE LTD ,203193-101 ,"6,764.89",
DFID,DFID,08/06/2016,Project delivery costs – supplier services ,Research and Evidence Division ,HTSPE LTD ,203193-101 ,"4,697.84",
DFID,DFID,09/06/2016,Project delivery costs – supplier services ,Research and Evidence Division ,HTSPE LTD ,203193-101 ,"7,516.54",
DFID,DFID,14/06/2016,Project delivery costs – supplier services ,Research and Evidence Division ,HTSPE LTD ,203193-101 ,"7,516.54",
DFID,DFID,08/06/2016,Project delivery costs – supplier services ,Research and Evidence Division ,HTSPE LTD ,203193-101 ,"5,637.41",
DFID,DFID,14/06/2016,Project delivery costs – supplier services ,East and Central Africa ,HTSPE LTD ,203574-103 ,"17,015.10",
DFID,DFID,14/06/2016,Project delivery costs – supplier services ,East and Central Africa ,HTSPE LTD ,203574-109 ,"52,657.65",
DFID,DFID,08/06/2016,Project delivery costs – supplier services ,Asia  Caribbean and Overseas Territories ,HTSPE LTD ,203852-103 ,"58,632.46",
DFID,DFID,09/06/2016,Research and development costs - supplier services ,Research and Evidence Division ,HTSPE LTD ,204046-102 ,"9,616.00",
DFID,DFID,16/06/2016,Project delivery costs – supplier services ,West and Southern Africa ,HTSPE LTD ,205171-101 ,"13,809.15",
DFID,DFID,16/06/2016,Project delivery costs – supplier services ,West and Southern Africa ,HTSPE LTD ,205195-101 ,"17,784.21",
DFID,DFID,16/06/2016,Project delivery costs – supplier services ,West and Southern Africa ,HTSPE LTD ,205195-101 ,"15,660.00",
DFID,DFID,16/06/2016,Contract & Agency Staff ,Group Operations ,Hays Specialist Recruitment Ltd ,100161-101 ,"1,206.14",
DFID,DFID,16/06/2016,Contract & Agency Staff ,Group Operations ,Hays Specialist Recruitment Ltd ,100161-101 ,"1,507.68",
DFID,DFID,16/06/2016,Contract & Agency Staff ,Group Operations ,Hays Specialist Recruitment Ltd ,100161-101 ,"1,507.68",
DFID,DFID,07/06/2016,Contract & Agency Staff ,Group Operations ,Hays Specialist Recruitment Ltd ,100161-101 ,"1,206.14",
DFID,DFID,16/06/2016,Contract & Agency Staff ,Finance and Corporate Performance Division ,Hays Specialist Recruitment Ltd ,100201-101 ,776.88,
DFID,DFID,27/06/2016,Contract & Agency Staff ,Finance and Corporate Performance Division ,Hays Specialist Recruitment Ltd ,100201-101 ,621.50,
DFID,DFID,08/06/2016,Contract & Agency Staff ,Finance and Corporate Performance Division ,Hays Specialist Recruitment Ltd ,100201-101 ,"1,168.68",
DFID,DFID,02/06/2016,Contract & Agency Staff ,Finance and Corporate Performance Division ,Hays Specialist Recruitment Ltd ,100201-101 ,"1,168.68",
DFID,DFID,27/06/2016,Contract & Agency Staff ,Finance and Corporate Performance Division ,Hays Specialist Recruitment Ltd ,100201-101 ,"1,168.68",
DFID,DFID,27/06/2016,Contract & Agency Staff ,Finance and Corporate Performance Division ,Hays Specialist Recruitment Ltd ,100201-101 ,934.94,
DFID,DFID,09/06/2016,Contract & Agency Staff ,Finance and Corporate Performance Division ,Hays Specialist Recruitment Ltd ,100201-101 ,"1,168.68",
DFID,DFID,24/06/2016,Contract & Agency Staff ,Finance and Corporate Performance Division ,Hays Specialist Recruitment Ltd ,100201-101 ,"1,168.68",
DFID,DFID,22/06/2016,Contract & Agency Staff ,Finance and Corporate Performance Division ,Hays Specialist Recruitment Ltd ,100201-101 ,"1,168.68",
DFID,DFID,20/06/2016,Contract & Agency Staff ,Finance and Corporate Performance Division ,Hays Specialist Recruitment Ltd ,100201-101 ,934.94,
DFID,DFID,20/06/2016,Contract & Agency Staff ,Finance and Corporate Performance Division ,Hays Specialist Recruitment Ltd ,100201-101 ,934.94,
DFID,DFID,30/06/2016,Contract & Agency Staff ,Finance and Corporate Performance Division ,Hays Specialist Recruitment Ltd ,100201-101 ,714.34,
DFID,DFID,02/06/2016,Contract & Agency Staff ,Finance and Corporate Performance Division ,Hays Specialist Recruitment Ltd ,100201-101 ,701.21,
DFID,DFID,24/06/2016,Contract & Agency Staff ,Finance and Corporate Performance Division ,Hays Specialist Recruitment Ltd ,100201-101 ,"1,168.68",
DFID,DFID,09/06/2016,Contract & Agency Staff ,Finance and Corporate Performance Division ,Hays Specialist Recruitment Ltd ,100201-101 ,934.94,
DFID,DFID,09/06/2016,Contract & Agency Staff ,Finance and Corporate Performance Division ,Hays Specialist Recruitment Ltd ,100201-101 ,714.34,
DFID,DFID,21/06/2016,Contract & Agency Staff ,Business Solutions Division Level ,Hays Specialist Recruitment Ltd ,200005-116 ,"1,248.00",
DFID,DFID,21/06/2016,Contract & Agency Staff ,Business Solutions Division Level ,Hays Specialist Recruitment Ltd ,200005-116 ,"1,248.00",
DFID,DFID,02/06/2016,Contract & Agency Staff ,Finance and Corporate Performance Division ,HUDSON GLOBAL RESOURCES LTD ,100201-101 ,"1,215.90",
DFID,DFID,02/06/2016,Contract & Agency Staff ,Human Resources ,HUDSON GLOBAL RESOURCES LTD ,100261-101 ,534.60,
DFID,DFID,17/06/2016,Contract & Agency Staff ,Human Resources ,HUDSON GLOBAL RESOURCES LTD ,100261-101 ,"2,894.30",
DFID,DFID,26/06/2016,Training Providers/Facilitation Services ,Policy Division ,HOME OFFICE ,100191-101 ,"20,000.00",
DFID,DFID,17/06/2016,Project delivery costs – supplier services ,Policy Division ,ITAD LTD ,201724-134 ,"14,202.90",
DFID,DFID,24/06/2016,Project delivery costs – supplier services ,West and Southern Africa ,ITAD LTD ,202482-102 ,"96,553.20",
DFID,DFID,14/06/2016,Project delivery costs – supplier services ,Conflict  Humanitarian  Security & Stabilisation Division ,ITAD LTD ,203243-125 ,"132,300.00",
DFID,DFID,27/06/2016,Project delivery costs – supplier services ,Research and Evidence Division ,ITAD LTD ,203778-103 ,"19,897.63",
DFID,DFID,23/06/2016,Aid Programme - Core contributions ,Research and Evidence Division ,INTERNATIONAL CENTRE FOR DIARRO ,202767-101 ,"1,250,000.00",
DFID,DFID,15/06/2016,Aid Programme - Accountable Grant Payments ,Policy Division ,Supplier Name withheld ,202197-101 ,"813,155.00",
DFID,DFID,23/06/2016,Aid Programme - Accountable Grant Payments ,Research and Evidence Division ,INASP ,203962-101 ,"343,287.00",
DFID,DFID,13/06/2016,Aid Programme - Humanitarian Material Relief Assistance and Services ,Conflict  Humanitarian  Security & Stabilisation Division ,INTERNATIONAL RESCUE COMMITTEE UK ,204273-101 ,"108,157.00",
DFID,DFID,28/06/2016,Aid Programme - Humanitarian Material Relief Assistance and Services ,Asia  Caribbean and Overseas Territories ,INTERNATIONAL RESCUE COMMITTEE UK ,204603-106 ,"126,092.00",
DFID,DFID,30/06/2016,Aid Programme - Core contributions ,Research and Evidence Division ,INTERNATIONAL AIDS VACCINE INITIATIV ,204137-103 ,"500,000.00",
DFID,DFID,22/06/2016,Research and development costs - supplier services ,Research and Evidence Division ,INSTITUTE OF DEVELOPMENT STUDIES ,201097-101 ,"97,406.27",
DFID,DFID,28/06/2016,Aid Programme - Trust Funds contributions ,Global Funds ,IBRD HSBC T ,200763-101 ,"16,550,000.00",
DFID,DFID,22/06/2016,Aid Programme - Trust Funds contributions ,Asia  Caribbean and Overseas Territories ,IBRD HSBC T ,202495-104 ,"570,943.00",
DFID,DFID,08/06/2016,Aid Programme - Trust Funds contributions ,Asia  Caribbean and Overseas Territories ,IBRD HSBC T ,203107-101 ,"350,000.00",
DFID,DFID,16/06/2016,Aid Programme - Trust Funds contributions ,Research and Evidence Division ,IBRD HSBC T ,203127-105 ,"352,808.00",
DFID,DFID,24/06/2016,Aid Programme - Core contributions ,Policy Division ,IBRD HSBC T ,203211-101 ,"67,300.00",
DFID,DFID,14/06/2016,Aid Programme - Trust Funds contributions ,Research and Evidence Division ,IBRD HSBC T ,203212-102 ,"500,000.00",
DFID,DFID,08/06/2016,Aid Programme - Trust Funds contributions ,Research and Evidence Division ,IBRD HSBC T ,203594-102 ,"715,500.00",
DFID,DFID,27/06/2016,Aid Programme - Trust Funds contributions ,Economic Development Division ,IBRD HSBC T ,203808-104 ,"1,600,000.00",
DFID,DFID,23/06/2016,Aid Programme - Trust Funds contributions ,West and Southern Africa ,IBRD HSBC T ,204090-101 ,"185,000.00",
DFID,DFID,02/06/2016,Aid Programme - Trust Funds contributions ,Research and Evidence Division ,IBRD HSBC T ,204151-105 ,"300,000.00",
DFID,DFID,24/06/2016,Aid Programme - Trust Funds contributions ,Asia  Caribbean and Overseas Territories ,Supplier Name withheld ,204158-102 ,"33,000,000.00",
DFID,DFID,24/06/2016,Aid Programme - Trust Funds contributions ,Asia  Caribbean and Overseas Territories ,Supplier Name withheld ,204158-105 ,"17,000,000.00",
DFID,DFID,27/06/2016,Aid Programme - Voluntary contributions ,Middle East and North Africa Division ,IBRD HSBC T ,204527-101 ,"275,000.00",
DFID,DFID,29/06/2016,Aid Programme - Trust Funds contributions ,Economic Development Division ,IBRD HSBC T ,204713-101 ,"1,500,000.00",
DFID,DFID,30/06/2016,Project delivery costs – supplier services ,Research and Evidence Division ,IOD PARC ,203197-101 ,"46,155.00",
DFID,DFID,07/06/2016,Project delivery costs – supplier services ,Research and Evidence Division ,IOD PARC ,203197-101 ,"60,744.43",
DFID,DFID,23/06/2016,Project delivery costs – supplier services ,Policy Division ,IOD PARC ,203516-101 ,"1,556.25",
DFID,DFID,17/06/2016,Aid Programme - Trust Funds contributions ,Policy Division ,IBRD (HSBC)  C/O THE WORLD BANK ,203034-103 ,"7,884.00",
DFID,DFID,02/06/2016,Aid Programme - Core contributions ,Economic Development Division ,IBRD (HSBC)  C/O THE WORLD BANK ,203232-101 ,"2,500,000.00",
DFID,DFID,16/06/2016,Aid Programme - Other Financial Aid to Government ,East and Central Africa ,IBRD (HSBC)  C/O THE WORLD BANK ,203396-106 ,"30,000,000.00",
DFID,DFID,09/06/2016,Aid Programme - Trust Funds contributions ,Middle East and North Africa Division ,IBRD (HSBC)  C/O THE WORLD BANK ,203397-101 ,"46,000.00",
DFID,DFID,07/06/2016,Aid Programme - Trust Funds contributions ,East and Central Africa ,IBRD (HSBC)  C/O THE WORLD BANK ,204044-101 ,"3,000,000.00",
DFID,DFID,21/06/2016,Aid Programme - Core contributions ,East and Central Africa ,IBRD (HSBC)  C/O THE WORLD BANK ,204339-108 ,"750,000.00",
DFID,DFID,30/06/2016,Aid Programme - Accountable Grant Payments ,Middle East and North Africa Division ,Supplier Name withheld ,204525-102 ,"147,933.00",
DFID,DFID,30/06/2016,Aid Programme - Accountable Grant Payments ,Middle East and North Africa Division ,Supplier Name withheld ,204525-101 ,"1,500,000.00",
DFID,DFID,03/06/2016,Aid Programme - Accountable Grant Payments ,East and Central Africa ,Supplier Name withheld ,204852-112 ,"644,809.00",
DFID,DFID,02/06/2016,Project delivery costs – supplier services ,Policy Division ,IMPERIAL COLLEGE LONDON ,200706-101 ,"121,019.03",
DFID,DFID,24/06/2016,Project delivery costs – supplier services ,Policy Division ,IMPERIAL COLLEGE LONDON ,200706-101 ,"189,874.06",
DFID,DFID,26/06/2016,Project delivery costs – supplier services ,West and Southern Africa ,ICF INTERNATIONAL ,204822-103 ,"394,231.20",
DFID,DFID,17/06/2016,Hostile Environment Training ,Finance and Corporate Performance Division ,KELLOGG BROWN & ROOT LIMITED ,100201-101 ,549.15,
DFID,DFID,26/06/2016,Hostile Environment Training ,Top Management Group ,KELLOGG BROWN & ROOT LIMITED ,100232-104 ,979.20,
DFID,DFID,10/06/2016,Hostile Environment Training ,East and Central Africa ,KELLOGG BROWN & ROOT LIMITED ,202594-101 ,550.00,
DFID,DFID,25/06/2016,Aid Programme - Accountable Grant Payments ,East and Central Africa ,LIVERPOOL SCHOOL OF TROPICAL MEDICINE ,202549-104 ,"425,705.00",
DFID,DFID,09/06/2016,Research and development costs - supplier services ,Research and Evidence Division ,London School of Hygiene and Tropical Medicine ,201447-101 ,"301,231.00",
DFID,DFID,09/06/2016,Research and development costs - supplier services ,Research and Evidence Division ,London School of Hygiene and Tropical Medicine ,201447-104 ,"59,608.60",
DFID,DFID,15/06/2016,Research and development costs - supplier services ,Research and Evidence Division ,London School of Hygiene and Tropical Medicine ,201889-101 ,"300,634.20",
DFID,DFID,03/06/2016,Computer software maintenance ,Research and Evidence Division ,London School of Hygiene and Tropical Medicine ,202331-101 ,"5,000.00",
DFID,DFID,23/06/2016,Project delivery costs – supplier services ,East and Central Africa ,London School of Hygiene and Tropical Medicine ,203155-103 ,"111,563.00",
DFID,DFID,10/06/2016,Project delivery costs – supplier services ,Asia  Caribbean and Overseas Territories ,London School of Hygiene and Tropical Medicine ,203857-102 ,"108,947.00",
DFID,DFID,16/06/2016,Project delivery costs – supplier services ,East and Central Africa ,London School of Hygiene and Tropical Medicine ,204033-105 ,"7,903.29",
DFID,DFID,15/06/2016,Electricity ,Group Operations ,EDF ENERGY ,100106-101 ,"15,975.35",
DFID,DFID,14/06/2016,Electricity ,Group Operations ,EDF ENERGY ,203717-101 ,"12,954.88",
DFID,DFID,16/06/2016,Electricity ,Group Operations ,EDF ENERGY ,203717-101 ,"7,608.25",
DFID,DFID,10/06/2016,Electricity ,Group Operations ,EDF ENERGY ,203717-101 ,"7,813.42",
DFID,DFID,13/06/2016,Project delivery costs – supplier services ,Asia  Caribbean and Overseas Territories ,Supplier Name withheld ,202488-107 ,"224,110.09",
DFID,DFID,20/06/2016,Project delivery costs – supplier services ,East and Central Africa ,Supplier Name withheld ,202520-101 ,"50,136.57",
DFID,DFID,20/06/2016,Project delivery costs – supplier services ,West and Southern Africa ,Supplier Name withheld ,202678-101 ,"108,005.74",
DFID,DFID,25/06/2016,Project delivery costs – supplier services ,West and Southern Africa ,Supplier Name withheld ,202942-102 ,"857,646.10",
DFID,DFID,06/06/2016,Project delivery costs – supplier services ,West and Southern Africa ,Supplier Name withheld ,202942-102 ,"141,588.24",
DFID,DFID,02/06/2016,Project delivery costs – supplier services ,West and Southern Africa ,Supplier Name withheld ,202942-102 ,"365,163.22",
DFID,DFID,23/06/2016,Project delivery costs – supplier services ,Policy Division ,Supplier Name withheld ,203148-101 ,"597,749.85",
DFID,DFID,23/06/2016,Project delivery costs – supplier services ,East and Central Africa ,Supplier Name withheld ,203363-103 ,"759,396.21",
DFID,DFID,15/06/2016,Project delivery costs – supplier services ,East and Central Africa ,Supplier Name withheld ,203641-103 ,"24,427.34",
DFID,DFID,25/06/2016,Project delivery costs – supplier services ,East and Central Africa ,Supplier Name withheld ,203871-102 ,"48,491.50",
DFID,DFID,01/06/2016,Project delivery costs – supplier services ,East and Central Africa ,Supplier Name withheld ,203871-102 ,"65,371.86",
DFID,DFID,16/06/2016,Project delivery costs – supplier services ,Asia  Caribbean and Overseas Territories ,Supplier Name withheld ,204277-102 ,"89,718.42",
DFID,DFID,28/06/2016,Project delivery costs – supplier services ,Asia  Caribbean and Overseas Territories ,Supplier Name withheld ,204277-102 ,"103,380.87",
DFID,DFID,28/06/2016,Aid Programme - Challenge Fund payments ,Asia  Caribbean and Overseas Territories ,Supplier Name withheld ,204277-104 ,"178,368.13",
DFID,DFID,13/06/2016,Project delivery costs – supplier services ,East and Central Africa ,Supplier Name withheld ,204288-103 ,"139,038.75",
DFID,DFID,24/06/2016,Data Network - land lines ,Business Solutions Division Level ,VODAFONE LIMITED ,200002-185 ,"7,023.27",
DFID,DFID,24/06/2016,Data Network - land lines ,Business Solutions Division Level ,VODAFONE LIMITED ,200002-185 ,"2,147.63",
DFID,DFID,27/06/2016,Telephone Usage & services ,Business Solutions Division Level ,VODAFONE LIMITED ,200002-185 ,"7,065.49",
DFID,DFID,27/06/2016,Data Network - land lines ,Business Solutions Division Level ,VODAFONE LIMITED ,200002-185 ,"7,023.07",
DFID,DFID,24/06/2016,Data Network - land lines ,Business Solutions Division Level ,VODAFONE LIMITED ,200002-185 ,"95,628.11",ECHO - rental charges for telecommunication links in DFID offices outwith European Union  for April 2016 Part 1 of 2
DFID,DFID,27/06/2016,Data Network - land lines ,Business Solutions Division Level ,VODAFONE LIMITED ,200002-185 ,"98,815.72",ECHO - rental charges for telecommunication links in DFID offices outwith European Union  for May 2016 Part 1 of 2
DFID,DFID,27/06/2016,Telephone Usage & services ,Business Solutions Division Level ,VODAFONE LIMITED ,200002-168 ,"18,512.02",
DFID,DFID,24/06/2016,Telephone Usage & services ,Business Solutions Division Level ,VODAFONE LIMITED ,200002-168 ,"17,980.54",
DFID,DFID,27/06/2016,Data Network - land lines ,Business Solutions Division Level ,VODAFONE LIMITED ,203329-103 ,"98,815.71",ECHO - rental charges for telecommunication links in DFID offices outwith European Union  for May 2016 Part 2 of 2
DFID,DFID,24/06/2016,Data Network - land lines ,Business Solutions Division Level ,VODAFONE LIMITED ,203329-103 ,"95,628.11",ECHO - rental charges for telecommunication links in DFID offices outwith European Union  for April 2016 Part 2 of 2
DFID,DFID,24/06/2016,Data Network - land lines ,Business Solutions Division Level ,VODAFONE LIMITED ,203329-103 ,"2,147.63",
DFID,DFID,24/06/2016,Data Network - land lines ,Business Solutions Division Level ,VODAFONE LIMITED ,203329-103 ,"7,023.27",
DFID,DFID,27/06/2016,Data Network - land lines ,Business Solutions Division Level ,VODAFONE LIMITED ,203329-103 ,"7,023.06",
DFID,DFID,27/06/2016,Telephone Usage & services ,Business Solutions Division Level ,VODAFONE LIMITED ,203329-103 ,"7,065.49",
DFID,DFID,08/06/2016,Project delivery costs – supplier services ,Conflict  Humanitarian  Security & Stabilisation Division ,MINES ADVISORY GROUP ,203243-123 ,"58,249.00",
DFID,DFID,08/06/2016,Project delivery costs – supplier services ,Conflict  Humanitarian  Security & Stabilisation Division ,MINES ADVISORY GROUP ,203243-123 ,"61,546.00",
DFID,DFID,28/06/2016,Recruitment costs ,Group Operations ,MANPOWER PLC ,100161-101 ,"1,024.69",
DFID,DFID,15/06/2016,Contract & Agency Staff ,Economic Development Division ,MANPOWER PLC ,204686-101 ,"9,066.43",
DFID,DFID,24/06/2016,Project delivery costs – supplier services ,Asia  Caribbean and Overseas Territories ,MAXWELL STAMP PLC ,107460-104 ,"70,000.00",
DFID,DFID,14/06/2016,Aid Programme - Challenge Fund payments ,Asia  Caribbean and Overseas Territories ,MAXWELL STAMP PLC ,107460-107 ,"404,611.98",
DFID,DFID,26/06/2016,Project delivery costs – supplier services ,Asia  Caribbean and Overseas Territories ,MAXWELL STAMP PLC ,114175-101 ,"110,751.73",
DFID,DFID,27/06/2016,Project delivery costs – supplier services ,Asia  Caribbean and Overseas Territories ,MAXWELL STAMP PLC ,114175-101 ,"76,162.48",
DFID,DFID,15/06/2016,Project delivery costs – supplier services ,West and Southern Africa ,MAXWELL STAMP PLC ,202623-104 ,"76,580.30",
DFID,DFID,02/06/2016,Repairs  Maintenance and Alterations – Other Building Costs ,Group Operations ,MITIE Technical Facilities Management Ltd ,100106-101 ,"1,508.76",
DFID,DFID,02/06/2016,Repairs  Maintenance and Alterations – Other Building Costs ,Group Operations ,MITIE Technical Facilities Management Ltd ,100106-101 ,996.60,
DFID,DFID,01/06/2016,Office Equipment - Purchases ,Group Operations ,MITIE Technical Facilities Management Ltd ,100106-101 ,"6,842.53",
DFID,DFID,01/06/2016,Repairs  Maintenance and Alterations – Other Building Costs ,Group Operations ,MITIE Technical Facilities Management Ltd ,100106-101 ,"1,267.20",
DFID,DFID,01/06/2016,Repairs  Maintenance and Alterations – Other Building Costs ,Group Operations ,MITIE Technical Facilities Management Ltd ,100106-101 ,"1,743.36",
DFID,DFID,24/06/2016,Repairs  Maintenance and Alterations – Other Building Costs ,Group Operations ,MITIE Technical Facilities Management Ltd ,100106-101 ,858.00,
DFID,DFID,08/06/2016,Contract Catering Services ,Group Operations ,MITIE Technical Facilities Management Ltd ,100106-101 ,"1,233.82",
DFID,DFID,08/06/2016,Cleaning Costs ,Group Operations ,MITIE Technical Facilities Management Ltd ,100106-101 ,"19,857.48",
DFID,DFID,08/06/2016,Facilities Management payments ,Group Operations ,MITIE Technical Facilities Management Ltd ,100106-101 ,"18,263.77",
DFID,DFID,08/06/2016,Repairs  Maint  Alter - Property & Constrct. Services ,Group Operations ,MITIE Technical Facilities Management Ltd ,100106-101 ,"1,598.38",
DFID,DFID,30/06/2016,Cleaning Costs ,Group Operations ,MITIE Technical Facilities Management Ltd ,100106-101 ,"19,857.48",
DFID,DFID,30/06/2016,Facilities Management payments ,Group Operations ,MITIE Technical Facilities Management Ltd ,100106-101 ,"18,263.77",
DFID,DFID,30/06/2016,Repairs  Maint  Alter - Property & Constrct. Services ,Group Operations ,MITIE Technical Facilities Management Ltd ,100106-101 ,"1,598.38",
DFID,DFID,30/06/2016,Contract Catering Services ,Group Operations ,MITIE Technical Facilities Management Ltd ,100106-101 ,"1,233.82",
DFID,DFID,30/06/2016,Repairs  Maintenance and Alterations – Other Building Costs ,Group Operations ,MITIE Technical Facilities Management Ltd ,203717-101 ,875.60,
DFID,DFID,01/06/2016,Repairs  Maintenance and Alterations – Other Building Costs ,Group Operations ,MITIE Technical Facilities Management Ltd ,203717-101 ,"1,596.38",
DFID,DFID,01/06/2016,Repairs  Maintenance and Alterations – Other Building Costs ,Group Operations ,MITIE Technical Facilities Management Ltd ,203717-101 ,"1,190.00",
DFID,DFID,01/06/2016,Repairs  Maintenance and Alterations – Other Building Costs ,Group Operations ,MITIE Technical Facilities Management Ltd ,203717-101 ,"1,782.00",
DFID,DFID,01/06/2016,Repairs  Maintenance and Alterations – Other Building Costs ,Group Operations ,MITIE Technical Facilities Management Ltd ,203717-101 ,587.40,
DFID,DFID,29/06/2016,Repairs  Maintenance and Alterations – Other Building Costs ,Group Operations ,MITIE Technical Facilities Management Ltd ,203717-101 ,825.00,
DFID,DFID,02/06/2016,Repairs  Maintenance and Alterations – Other Building Costs ,Group Operations ,MITIE Technical Facilities Management Ltd ,203717-101 ,678.48,
DFID,DFID,02/06/2016,Repairs  Maintenance and Alterations – Other Building Costs ,Group Operations ,MITIE Technical Facilities Management Ltd ,203717-101 ,730.40,
DFID,DFID,16/06/2016,Repairs  Maintenance and Alterations – Other Building Costs ,Group Operations ,MITIE Technical Facilities Management Ltd ,203717-101 ,"1,842.50",
DFID,DFID,08/06/2016,Contract Catering Services ,Group Operations ,MITIE Technical Facilities Management Ltd ,203717-101 ,843.22,
DFID,DFID,08/06/2016,Cleaning Costs ,Group Operations ,MITIE Technical Facilities Management Ltd ,203717-101 ,"23,170.70",
DFID,DFID,08/06/2016,Facilities Management payments ,Group Operations ,MITIE Technical Facilities Management Ltd ,203717-101 ,"28,660.57",Monthly maintenance and management Services for London HQ office for May 2016
DFID,DFID,08/06/2016,Repairs  Maint  Alter - Property & Constrct. Services ,Group Operations ,MITIE Technical Facilities Management Ltd ,203717-101 ,"10,619.68",
DFID,DFID,30/06/2016,Contract Catering Services ,Group Operations ,MITIE Technical Facilities Management Ltd ,203717-101 ,843.22,
DFID,DFID,30/06/2016,Cleaning Costs ,Group Operations ,MITIE Technical Facilities Management Ltd ,203717-101 ,"23,170.70",
DFID,DFID,30/06/2016,Facilities Management payments ,Group Operations ,MITIE Technical Facilities Management Ltd ,203717-101 ,"28,660.56",Monthly maintenance and management services for London HQ office for June 2016
DFID,DFID,30/06/2016,Repairs  Maint  Alter - Property & Constrct. Services ,Group Operations ,MITIE Technical Facilities Management Ltd ,203717-101 ,"10,619.68",
DFID,DFID,06/06/2016,Repairs  Maintenance and Alterations – Other Building Costs ,Group Operations ,MITIE Technical Facilities Management Ltd ,203717-101 ,"1,565.78",
DFID,DFID,01/06/2016,Repairs  Maintenance and Alterations – Other Building Costs ,Group Operations ,MITIE Technical Facilities Management Ltd ,203717-101 ,609.60,
DFID,DFID,01/06/2016,Project delivery costs – supplier services ,East and Central Africa ,MARIE STOPES INTERNATIONAL ,201518-102 ,"1,112,346.00",
DFID,DFID,01/06/2016,Project delivery costs – supplier services ,Asia  Caribbean and Overseas Territories ,MARIE STOPES INTERNATIONAL ,201518-103 ,"639,710.00",
DFID,DFID,16/06/2016,Aid Programme - Accountable Grant Payments ,Middle East and North Africa Division ,Supplier Name withheld ,204524-101 ,"3,145,941.00",
DFID,DFID,16/06/2016,Postage Costs ,Group Operations ,NEOPOST LIMITED ,100106-101 ,"1,000.00",
DFID,DFID,30/06/2016,Aid Programme - Accountable Grant Payments ,East and Central Africa ,ODI ,202552-102 ,"155,340.00",
DFID,DFID,24/06/2016,Aid Programme - Accountable Grant Payments ,Economic Development Division ,OXFAM INSTITUTIONAL INCOME ACCOUNT ,203158-101 ,"203,205.15",
DFID,DFID,08/06/2016,Aid Programme - Accountable Grant Payments ,Conflict  Humanitarian  Security & Stabilisation Division ,OXFAM INSTITUTIONAL INCOME ACCOUNT ,203244-111 ,"91,765.00",
DFID,DFID,15/06/2016,Project delivery costs – supplier services ,Policy Division ,OXFAM INSTITUTIONAL INCOME ACCOUNT ,203572-101 ,"1,345,825.00",
DFID,DFID,10/06/2016,Vehicle Petrol & Oil ,West and Southern Africa ,Supplier Name withheld ,101622-104 ,"2,571.70",
DFID,DFID,29/06/2016,Further Education costs ,West and Southern Africa ,THE OPEN UNIVERSITY ,101629-101 ,"1,041.00",
DFID,DFID,15/06/2016,Aid Programme - Accountable Grant Payments ,West and Southern Africa ,THE OPEN UNIVERSITY ,202623-112 ,"72,658.44",
DFID,DFID,02/06/2016,Project delivery costs – supplier services ,Asia  Caribbean and Overseas Territories ,OXFORD POLICY MANAGEMENT ,107480-104 ,"6,000.00",
DFID,DFID,30/06/2016,Project delivery costs – supplier services ,West and Southern Africa ,OXFORD POLICY MANAGEMENT ,200341-101 ,"173,999.36",
DFID,DFID,24/06/2016,Project delivery costs – supplier services ,West and Southern Africa ,OXFORD POLICY MANAGEMENT ,201874-103 ,"89,844.96",
DFID,DFID,15/06/2016,Project delivery costs – supplier services ,West and Southern Africa ,OXFORD POLICY MANAGEMENT ,201874-103 ,"46,485.96",
DFID,DFID,21/06/2016,Project delivery costs – supplier services ,Middle East and North Africa Division ,OXFORD POLICY MANAGEMENT ,202241-104 ,"27,792.61",
DFID,DFID,20/06/2016,Project delivery costs – supplier services ,Asia  Caribbean and Overseas Territories ,OXFORD POLICY MANAGEMENT ,202367-103 ,"440,055.04",
DFID,DFID,15/06/2016,Project delivery costs – supplier services ,Asia  Caribbean and Overseas Territories ,OXFORD POLICY MANAGEMENT ,202367-103 ,"394,729.49",
DFID,DFID,23/06/2016,Project delivery costs – supplier services ,Asia  Caribbean and Overseas Territories ,OXFORD POLICY MANAGEMENT ,202367-103 ,"60,297.90",
DFID,DFID,15/06/2016,Project delivery costs – supplier services ,Asia  Caribbean and Overseas Territories ,OXFORD POLICY MANAGEMENT ,202488-101 ,"18,600.00",
DFID,DFID,07/06/2016,Project delivery costs – supplier services ,West and Southern Africa ,OXFORD POLICY MANAGEMENT ,202504-104 ,"20,901.79",
DFID,DFID,21/06/2016,Project delivery costs – supplier services ,Policy Division ,OXFORD POLICY MANAGEMENT ,202575-104 ,"24,000.00",
DFID,DFID,24/06/2016,Project delivery costs – supplier services ,Policy Division ,OXFORD POLICY MANAGEMENT ,202575-104 ,"44,611.20",
DFID,DFID,30/06/2016,Project delivery costs – supplier services ,Policy Division ,OXFORD POLICY MANAGEMENT ,202627-102 ,"32,579.00",
DFID,DFID,10/06/2016,Project delivery costs – supplier services ,West and Southern Africa ,OXFORD POLICY MANAGEMENT ,202640-108 ,"53,963.00",
DFID,DFID,17/06/2016,Project delivery costs – supplier services ,Asia  Caribbean and Overseas Territories ,OXFORD POLICY MANAGEMENT ,202708-103 ,"42,358.30",
DFID,DFID,02/06/2016,Project delivery costs – supplier services ,West and Southern Africa ,OXFORD POLICY MANAGEMENT ,202819-108 ,"398,425.00",
DFID,DFID,08/06/2016,Project delivery costs – supplier services ,West and Southern Africa ,OXFORD POLICY MANAGEMENT ,203001-103 ,"23,395.65",
DFID,DFID,27/06/2016,Project delivery costs – supplier services ,Asia  Caribbean and Overseas Territories ,OXFORD POLICY MANAGEMENT ,203186-105 ,"125,367.30",
DFID,DFID,20/06/2016,Project delivery costs – supplier services ,Research and Evidence Division ,OXFORD POLICY MANAGEMENT ,203193-101 ,"8,834.18",
DFID,DFID,20/06/2016,Project delivery costs – supplier services ,Research and Evidence Division ,OXFORD POLICY MANAGEMENT ,203193-101 ,"44,199.00",
DFID,DFID,15/06/2016,Project delivery costs – supplier services ,Research and Evidence Division ,OXFORD POLICY MANAGEMENT ,203193-101 ,"13,561.00",
DFID,DFID,15/06/2016,Project delivery costs – supplier services ,Research and Evidence Division ,OXFORD POLICY MANAGEMENT ,203193-101 ,"8,701.20",
DFID,DFID,16/06/2016,Project delivery costs – supplier services ,Research and Evidence Division ,OXFORD POLICY MANAGEMENT ,203339-105 ,"6,763.20",
DFID,DFID,30/06/2016,Project delivery costs – supplier services ,Research and Evidence Division ,OXFORD POLICY MANAGEMENT ,203339-105 ,"6,810.00",
DFID,DFID,17/06/2016,Project delivery costs – supplier services ,East and Central Africa ,OXFORD POLICY MANAGEMENT ,203382-104 ,"73,415.80",
DFID,DFID,13/06/2016,Project delivery costs – supplier services ,Policy Division ,OXFORD POLICY MANAGEMENT ,203572-102 ,"40,662.00",
DFID,DFID,25/06/2016,Project delivery costs – supplier services ,West and Southern Africa ,OXFORD POLICY MANAGEMENT ,203585-102 ,"24,320.00",
DFID,DFID,01/06/2016,Project delivery costs – supplier services ,East and Central Africa ,OXFORD POLICY MANAGEMENT ,204258-102 ,"31,510.17",
DFID,DFID,23/06/2016,Project delivery costs – supplier services ,Research and Evidence Division ,OXFORD POLICY MANAGEMENT ,204322-101 ,"700,000.00",
DFID,DFID,08/06/2016,Project delivery costs – supplier services ,Research and Evidence Division ,OXFORD POLICY MANAGEMENT ,204322-102 ,"261,808.57",
DFID,DFID,23/06/2016,Project delivery costs – supplier services ,East and Central Africa ,OXFORD POLICY MANAGEMENT ,204463-102 ,"7,772.66",
DFID,DFID,14/06/2016,Project delivery costs – supplier services ,East and Central Africa ,OXFORD POLICY MANAGEMENT ,204463-102 ,"23,538.58",
DFID,DFID,16/06/2016,Project delivery costs – supplier services ,West and Southern Africa ,OXFORD POLICY MANAGEMENT ,204497-103 ,"207,640.00",
DFID,DFID,27/06/2016,Project delivery costs – supplier services ,West and Southern Africa ,OXFORD POLICY MANAGEMENT ,204866-101 ,"61,147.12",
DFID,DFID,15/06/2016,Project delivery costs – supplier services ,Research and Evidence Division ,OXFORD POLICY MANAGEMENT ,205043-103 ,"7,717.63",
DFID,DFID,13/06/2016,Project delivery costs – supplier services ,West and Southern Africa ,OXFORD POLICY MANAGEMENT ,205066-101 ,"203,682.38",
DFID,DFID,30/06/2016,Project delivery costs – supplier services ,West and Southern Africa ,OXFORD POLICY MANAGEMENT ,205066-101 ,"65,603.91",
DFID,DFID,28/06/2016,Project delivery costs – supplier services ,West and Southern Africa ,OXFORD POLICY MANAGEMENT ,205066-101 ,"45,129.61",
DFID,DFID,27/06/2016,Project delivery costs – supplier services ,West and Southern Africa ,OXFORD POLICY MANAGEMENT ,205182-105 ,"14,472.46",
DFID,DFID,14/06/2016,Project delivery costs – supplier services ,West and Southern Africa ,OXFORD POLICY MANAGEMENT ,205182-105 ,"94,542.00",
DFID,DFID,03/06/2016,Project delivery costs – supplier services ,West and Southern Africa ,OXFORD POLICY MANAGEMENT ,205189-103 ,"19,503.54",
DFID,DFID,14/06/2016,Project delivery costs – supplier services ,West and Southern Africa ,OPTIONS CONSULTANCY SERVICES LIMITED ,202214-103 ,"194,445.00",
DFID,DFID,30/06/2016,Project delivery costs – supplier services ,West and Southern Africa ,OPTIONS CONSULTANCY SERVICES LIMITED ,202721-104 ,"61,961.26",
DFID,DFID,29/06/2016,Project delivery costs – supplier services ,West and Southern Africa ,OPTIONS CONSULTANCY SERVICES LIMITED ,202721-104 ,"61,961.15",
DFID,DFID,14/06/2016,Project delivery costs – supplier services ,Asia  Caribbean and Overseas Territories ,OPTIONS CONSULTANCY SERVICES LIMITED ,202871-101 ,"216,791.50",
DFID,DFID,07/06/2016,Project delivery costs – supplier services ,Asia  Caribbean and Overseas Territories ,OPTIONS CONSULTANCY SERVICES LIMITED ,202871-101 ,"121,944.45",
DFID,DFID,21/06/2016,Project delivery costs – supplier services ,Asia  Caribbean and Overseas Territories ,OPTIONS CONSULTANCY SERVICES LIMITED ,202871-101 ,"448,156.47",
DFID,DFID,09/06/2016,Project delivery costs – supplier services ,Asia  Caribbean and Overseas Territories ,OPTIONS CONSULTANCY SERVICES LIMITED ,202871-101 ,"126,797.03",
DFID,DFID,09/06/2016,Project delivery costs – supplier services ,Asia  Caribbean and Overseas Territories ,OPTIONS CONSULTANCY SERVICES LIMITED ,202871-101 ,"55,208.21",
DFID,DFID,25/06/2016,Project delivery costs – supplier services ,East and Central Africa ,OPTIONS CONSULTANCY SERVICES LIMITED ,203024-103 ,"124,294.00",
DFID,DFID,22/06/2016,Project delivery costs – supplier services ,Asia  Caribbean and Overseas Territories ,OPTIONS CONSULTANCY SERVICES LIMITED ,203390-104 ,"52,850.00",
DFID,DFID,06/06/2016,Project delivery costs – supplier services ,Asia  Caribbean and Overseas Territories ,OPTIONS CONSULTANCY SERVICES LIMITED ,203413-103 ,"38,813.00",
DFID,DFID,07/06/2016,Project delivery costs – supplier services ,Asia  Caribbean and Overseas Territories ,OPTIONS CONSULTANCY SERVICES LIMITED ,203413-103 ,"100,395.00",
DFID,DFID,07/06/2016,Project delivery costs – supplier services ,Asia  Caribbean and Overseas Territories ,OPTIONS CONSULTANCY SERVICES LIMITED ,203413-103 ,"82,071.00",
DFID,DFID,02/06/2016,Project delivery costs – supplier services ,Asia  Caribbean and Overseas Territories ,OPTIONS CONSULTANCY SERVICES LIMITED ,203413-103 ,"31,050.00",
DFID,DFID,14/06/2016,Project delivery costs – supplier services ,Asia  Caribbean and Overseas Territories ,OPTIONS CONSULTANCY SERVICES LIMITED ,203413-103 ,"20,700.00",
DFID,DFID,09/06/2016,Project delivery costs – supplier services ,Asia  Caribbean and Overseas Territories ,OPTIONS CONSULTANCY SERVICES LIMITED ,203413-103 ,"31,050.00",
DFID,DFID,08/06/2016,Project delivery costs – supplier services ,Asia  Caribbean and Overseas Territories ,OPTIONS CONSULTANCY SERVICES LIMITED ,203413-103 ,"82,071.00",
DFID,DFID,17/06/2016,Project delivery costs – supplier services ,West and Southern Africa ,OPTIONS CONSULTANCY SERVICES LIMITED ,205182-101 ,"56,924.31",
DFID,DFID,25/06/2016,Aid Programme - Accountable Grant Payments ,Conflict  Humanitarian  Security & Stabilisation Division ,PENAL REFORM INTERNATIONAL ,203244-112 ,"37,200.89",
DFID,DFID,30/06/2016,Project delivery costs – supplier services ,Economic Development Division ,PRICEWATERHOUSECOOPERS ,114178-104 ,"259,475.05",
DFID,DFID,26/06/2016,Project delivery costs – supplier services ,Policy Division ,PRICEWATERHOUSECOOPERS ,114370-104 ,"85,827.32",
DFID,DFID,26/06/2016,Project delivery costs – supplier services ,Policy Division ,PRICEWATERHOUSECOOPERS ,114370-104 ,"317,144.13",
DFID,DFID,25/06/2016,Project delivery costs – supplier services ,Policy Division ,PRICEWATERHOUSECOOPERS ,114370-105 ,"3,841.24",
DFID,DFID,25/06/2016,Project delivery costs – supplier services ,Policy Division ,PRICEWATERHOUSECOOPERS ,114370-105 ,"24,272.96",
DFID,DFID,25/06/2016,Project delivery costs – supplier services ,Research and Evidence Division ,PRICEWATERHOUSECOOPERS ,200822-103 ,"3,841.24",
DFID,DFID,25/06/2016,Project delivery costs – supplier services ,Research and Evidence Division ,PRICEWATERHOUSECOOPERS ,200822-103 ,"24,272.96",
DFID,DFID,26/06/2016,Project delivery costs – supplier services ,Research and Evidence Division ,PRICEWATERHOUSECOOPERS ,200822-103 ,"317,144.13",
DFID,DFID,26/06/2016,Project delivery costs – supplier services ,Research and Evidence Division ,PRICEWATERHOUSECOOPERS ,200822-103 ,"6,976.72",
DFID,DFID,26/06/2016,Project delivery costs – supplier services ,Research and Evidence Division ,PRICEWATERHOUSECOOPERS ,200822-103 ,"6,976.72",
DFID,DFID,25/06/2016,Project delivery costs – supplier services ,Research and Evidence Division ,PRICEWATERHOUSECOOPERS ,200822-103 ,"61,407.08",
DFID,DFID,15/06/2016,Project delivery costs – supplier services ,Research and Evidence Division ,PRICEWATERHOUSECOOPERS ,200822-103 ,"3,841.24",
DFID,DFID,28/06/2016,Project delivery costs – supplier services ,Research and Evidence Division ,PRICEWATERHOUSECOOPERS ,200822-103 ,"85,827.32",
DFID,DFID,06/06/2016,Project delivery costs – supplier services ,Research and Evidence Division ,PRICEWATERHOUSECOOPERS ,200822-103 ,"17,018.52",
DFID,DFID,10/06/2016,Project delivery costs – supplier services ,Research and Evidence Division ,PRICEWATERHOUSECOOPERS ,200822-103 ,"534,822.35",
DFID,DFID,14/06/2016,Project delivery costs – supplier services ,Research and Evidence Division ,PRICEWATERHOUSECOOPERS ,200822-103 ,"87,707.32",
DFID,DFID,09/06/2016,Project delivery costs – supplier services ,Research and Evidence Division ,PRICEWATERHOUSECOOPERS ,200822-103 ,"40,566.47",
DFID,DFID,23/06/2016,Project delivery costs – supplier services ,Policy Division ,PRICEWATERHOUSECOOPERS ,202372-102 ,"486,145.00",
DFID,DFID,01/06/2016,Project delivery costs – supplier services ,Policy Division ,PRICEWATERHOUSECOOPERS ,202372-102 ,"619,628.40",
DFID,DFID,29/06/2016,Project delivery costs – supplier services ,Economic Development Division ,PRICEWATERHOUSECOOPERS ,202939-103 ,"33,300.00",
DFID,DFID,24/06/2016,Project delivery costs – supplier services ,West and Southern Africa ,PRICEWATERHOUSECOOPERS ,203161-104 ,"256,301.00",
DFID,DFID,30/06/2016,Project delivery costs – supplier services ,Asia  Caribbean and Overseas Territories ,PRICEWATERHOUSECOOPERS ,203964-101 ,"123,224.95",
DFID,DFID,20/06/2016,Project delivery costs – supplier services ,Economic Development Division ,PRICEWATERHOUSECOOPERS ,204250-101 ,"35,167.51",
DFID,DFID,08/06/2016,Project delivery costs – supplier services ,Economic Development Division ,PRICEWATERHOUSECOOPERS ,204250-101 ,"78,573.72",
DFID,DFID,14/06/2016,Project delivery costs – supplier services ,Economic Development Division ,PRICEWATERHOUSECOOPERS ,204250-101 ,"238,745.14",
DFID,DFID,27/06/2016,Project delivery costs – supplier services ,Economic Development Division ,PRICEWATERHOUSECOOPERS ,204250-101 ,"134,910.90",
DFID,DFID,26/06/2016,Project delivery costs – supplier services ,Asia  Caribbean and Overseas Territories ,PRICEWATERHOUSECOOPERS ,204792-101 ,"190,399.00",
DFID,DFID,01/06/2016,Storage & Distribution costs ,West and Southern Africa ,PICKFORDS LTD ,100152-114 ,"1,598.75",
DFID,DFID,30/06/2016,Storage & Distribution costs ,Asia  Caribbean and Overseas Territories ,PICKFORDS LTD ,101603-101 ,662.40,
DFID,DFID,08/06/2016,Storage & Distribution costs ,Asia  Caribbean and Overseas Territories ,PICKFORDS LTD ,101604-101 ,738.27,
DFID,DFID,15/06/2016,Storage & Distribution costs ,West and Southern Africa ,PICKFORDS LTD ,101610-101 ,"1,472.51",
DFID,DFID,07/06/2016,Storage & Distribution costs ,West and Southern Africa ,PICKFORDS LTD ,101613-101 ,738.27,
DFID,DFID,30/06/2016,Storage & Distribution costs ,West and Southern Africa ,PICKFORDS LTD ,101618-101 ,667.43,
DFID,DFID,13/06/2016,Storage & Distribution costs ,West and Southern Africa ,PICKFORDS LTD ,101620-101 ,740.36,
DFID,DFID,16/06/2016,Storage & Distribution costs ,West and Southern Africa ,PICKFORDS LTD ,101620-101 ,"5,403.33",
DFID,DFID,15/06/2016,Storage & Distribution costs ,Asia  Caribbean and Overseas Territories ,PICKFORDS LTD ,101621-101 ,878.40,
DFID,DFID,30/06/2016,Storage & Distribution costs ,Asia  Caribbean and Overseas Territories ,PICKFORDS LTD ,101624-101 ,557.26,
DFID,DFID,07/06/2016,Storage & Distribution costs ,Asia  Caribbean and Overseas Territories ,PICKFORDS LTD ,101624-101 ,"5,129.41",
DFID,DFID,24/06/2016,Storage & Distribution costs ,Asia  Caribbean and Overseas Territories ,PICKFORDS LTD ,101624-101 ,"8,560.41",
DFID,DFID,27/06/2016,Storage & Distribution costs ,Asia  Caribbean and Overseas Territories ,PICKFORDS LTD ,101624-101 ,"5,694.52",
DFID,DFID,13/06/2016,Storage & Distribution costs ,Asia  Caribbean and Overseas Territories ,PICKFORDS LTD ,101624-101 ,"1,424.69",
DFID,DFID,07/06/2016,Storage & Distribution costs ,East and Central Africa ,PICKFORDS LTD ,101625-102 ,"3,395.03",
DFID,DFID,16/06/2016,Storage & Distribution costs ,East and Central Africa ,PICKFORDS LTD ,101630-101 ,"5,403.33",
DFID,DFID,29/06/2016,Storage & Distribution costs ,West and Southern Africa ,PICKFORDS LTD ,101631-101 ,"1,707.26",
DFID,DFID,01/06/2016,Storage & Distribution costs ,West and Southern Africa ,PICKFORDS LTD ,101631-101 ,718.32,
DFID,DFID,30/06/2016,Storage & Distribution costs ,East and Central Africa ,PICKFORDS LTD ,101634-101 ,742.31,
DFID,DFID,30/06/2016,Storage & Distribution costs ,East and Central Africa ,PICKFORDS LTD ,101635-101 ,567.77,
DFID,DFID,15/06/2016,Storage & Distribution costs ,East and Central Africa ,PICKFORDS LTD ,101635-101 ,"1,052.94",
DFID,DFID,30/06/2016,Storage & Distribution costs ,West and Southern Africa ,PICKFORDS LTD ,101638-101 ,662.40,
DFID,DFID,28/06/2016,Storage & Distribution costs ,Middle East and North Africa Division ,PICKFORDS LTD ,201705-101 ,883.20,
DFID,DFID,16/06/2016,Project delivery costs – supplier services ,Asia  Caribbean and Overseas Territories ,PICKFORDS LTD ,204857-102 ,"2,970.16",
DFID,DFID,28/06/2016,Storage & Distribution costs ,Middle East and North Africa Division ,PICKFORDS LTD ,300078-101 ,"5,534.96",
DFID,DFID,07/06/2016,Storage & Distribution costs ,Middle East and North Africa Division ,PICKFORDS LTD ,300078-101 ,830.14,
DFID,DFID,28/06/2016,Aid Programme - Partnership Programme Arrangements ,Policy Division ,PEOPLE IN AID LTD ,202875-101 ,"50,000.00",
DFID,DFID,13/06/2016,Aid Programme - Accountable Grant Payments ,East and Central Africa ,POPULATION  SERVICES INTERNATIONAL ,200842-102 ,"6,817,442.00",
DFID,DFID,13/06/2016,Aid Programme - Accountable Grant Payments ,East and Central Africa ,POPULATION  SERVICES INTERNATIONAL ,200842-110 ,"81,922.00",
DFID,DFID,06/06/2016,Project delivery costs – supplier services ,Asia  Caribbean and Overseas Territories ,POPULATION  SERVICES INTERNATIONAL ,202413-105 ,"628,077.77",
DFID,DFID,30/06/2016,Aid Programme - Accountable Grant Payments ,East and Central Africa ,POPULATION  SERVICES INTERNATIONAL ,202547-107 ,"7,677.00",
DFID,DFID,29/06/2016,Project delivery costs – supplier services ,West and Southern Africa ,POPULATION  SERVICES INTERNATIONAL ,203458-102 ,"179,793.00",
DFID,DFID,29/06/2016,Project delivery costs – supplier services ,West and Southern Africa ,POPULATION  SERVICES INTERNATIONAL ,203458-103 ,"848,105.00",
DFID,DFID,29/06/2016,Project delivery costs – supplier services ,West and Southern Africa ,POPULATION  SERVICES INTERNATIONAL ,203458-104 ,"558,296.00",
DFID,DFID,30/06/2016,Project delivery costs – supplier services ,Policy Division ,THE QUEEN ELIZABETH II CONF. CENTRE ,202372-105 ,"17,160.00",
DFID,DFID,28/06/2016,Aid Programme - Accountable Grant Payments ,West and Southern Africa ,THE SAVE THE CHILDREN FUND ,201874-102 ,"583,003.00",
DFID,DFID,15/06/2016,Project delivery costs – supplier services ,West and Southern Africa ,THE SAVE THE CHILDREN FUND ,202623-117 ,"200,000.00",
DFID,DFID,15/06/2016,Project delivery costs – supplier services ,West and Southern Africa ,THE SAVE THE CHILDREN FUND ,202623-117 ,"120,000.00",
DFID,DFID,16/06/2016,Project delivery costs – supplier services ,West and Southern Africa ,THE SAVE THE CHILDREN FUND ,202623-117 ,"417,158.75",
DFID,DFID,30/06/2016,Project delivery costs – supplier services ,West and Southern Africa ,THE SAVE THE CHILDREN FUND ,202637-104 ,"53,000.00",
DFID,DFID,15/06/2016,Aid Programme - Accountable Grant Payments ,Middle East and North Africa Division ,Supplier Name withheld ,204540-101 ,"1,363,796.00",
DFID,DFID,15/06/2016,Aid Programme - Accountable Grant Payments ,Middle East and North Africa Division ,Supplier Name withheld ,204540-102 ,"700,000.00",
DFID,DFID,01/06/2016,Aid Programme - Accountable Grant Payments ,Asia  Caribbean and Overseas Territories ,SAVE THE CHILDREN ,203101-101 ,"185,035.83",
DFID,DFID,26/06/2016,Aid Programme - Accountable Grant Payments ,Middle East and North Africa Division ,SAVE THE CHILDREN ,203847-101 ,"2,463,161.37",
DFID,DFID,03/06/2016,Aid Programme - Voluntary contributions ,Conflict  Humanitarian  Security & Stabilisation Division ,SAVE THE CHILDREN ,300228-101 ,"5,000,000.00",
DFID,DFID,06/06/2016,Project delivery costs – supplier services ,Policy Division ,Social Development Direct Ltd ,203245-106 ,"5,983.60",
DFID,DFID,14/06/2016,Project delivery costs – supplier services ,Policy Division ,Social Development Direct Ltd ,203245-106 ,"10,981.20",
DFID,DFID,28/06/2016,Project delivery costs – supplier services ,West and Southern Africa ,Social Development Direct Ltd ,203823-102 ,"147,322.00",
DFID,DFID,24/06/2016,Project delivery costs – supplier services ,West and Southern Africa ,Social Development Direct Ltd ,203823-106 ,"48,483.28",
DFID,DFID,29/06/2016,Project delivery costs – supplier services ,Group Operations ,SODEXHO PASS LTD ,204999-104 ,"1,495.70",
DFID,DFID,01/06/2016,Computer Software Licenses ,Group Operations ,SHE SOFTWARE LTD ,203717-101 ,"11,632.50",
DFID,DFID,17/06/2016,Professional member subscriptions ,Human Resources ,STONEWALL EQUALITY LTD ,100269-126 ,"2,500.00",
DFID,DFID,25/06/2016,Storage & Distribution costs ,Business Solutions Division Level ,TNT Express (UK) Ltd ,200001-101 ,"4,474.67",
DFID,DFID,07/06/2016,Project delivery costs – supplier services ,Policy Division ,TROPICAL HEALTH AND EDUCATION TRUST ,202208-101 ,"462,115.00",
DFID,DFID,03/06/2016,Project delivery costs – supplier services ,Policy Division ,TROPICAL HEALTH AND EDUCATION TRUST ,202208-101 ,"117,956.22",
DFID,DFID,23/06/2016,Project delivery costs – supplier services ,Policy Division ,TROPICAL HEALTH AND EDUCATION TRUST ,202208-101 ,"102,727.94",
DFID,DFID,09/06/2016,Project delivery costs – supplier services ,Policy Division ,TROPICAL HEALTH AND EDUCATION TRUST ,202208-101 ,"1,255.32",
DFID,DFID,25/06/2016,Water charges ,Group Operations ,THAMES WATER UTILITIES LTD ,203717-101 ,641.47,
DFID,DFID,24/06/2016,Water charges ,Group Operations ,THAMES WATER UTILITIES LTD ,203717-101 ,"1,329.39",
DFID,DFID,27/06/2016,Aid Programme - Accountable Grant Payments ,Research and Evidence Division ,University Of Durham ,205053-108 ,"25,033.00",
DFID,DFID,29/06/2016,Aid Programme - Voluntary contributions ,Conflict  Humanitarian  Security & Stabilisation Division ,UNDP CONTRIBUTIONS ACCOUNT ,203815-104 ,"200,000.00",
DFID,DFID,28/06/2016,Aid Programme - Humanitarian Material Relief Assistance and Services ,Middle East and North Africa Division ,UNDP CONTRIBUTIONS ACCOUNT ,204968-103 ,"200,000.00",
DFID,DFID,27/06/2016,Aid Programme - Voluntary contributions ,Middle East and North Africa Division ,Supplier Name withheld ,204535-101 ,"15,000,000.00",
DFID,DFID,27/06/2016,Aid Programme - Voluntary contributions ,Middle East and North Africa Division ,Supplier Name withheld ,204535-102 ,"1,000,000.00",
DFID,DFID,14/06/2016,Research and development costs - supplier services ,Research and Evidence Division ,UNIVERSITY OF  OXFORD ,200425-102 ,"115,676.00",
DFID,DFID,25/06/2016,Further Education costs ,Asia  Caribbean and Overseas Territories ,Supplier Name withheld ,101601-110 ,937.50,
DFID,DFID,15/06/2016,Aid Programme - Core contributions ,Asia  Caribbean and Overseas Territories ,Supplier Name withheld ,202949-104 ,"191,227.46",
DFID,DFID,24/06/2016,Aid Programme - Voluntary contributions ,Asia  Caribbean and Overseas Territories ,Supplier Name withheld ,202972-103 ,"400,000.00",
DFID,DFID,07/06/2016,Voluntary contributions ,Asia  Caribbean and Overseas Territories ,Supplier Name withheld ,300040-101 ,"511,498.54",
DFID,DFID,24/06/2016,Aid Programme - Voluntary contributions ,Economic Development Division ,UN WOMEN ,205221-101 ,"2,208,655.00",
DFID,DFID,29/06/2016,Aid Programme - Voluntary contributions ,West and Southern Africa ,Supplier Name withheld ,202345-102 ,"387,113.00",
DFID,DFID,10/06/2016,Aid Programme - Voluntary contributions ,West and Southern Africa ,Supplier Name withheld ,202691-101 ,"691,400.00",
DFID,DFID,15/06/2016,Aid Programme - Voluntary contributions ,West and Southern Africa ,Supplier Name withheld ,202721-101 ,"1,650,000.00",
DFID,DFID,30/06/2016,Aid Programme - Voluntary contributions ,East and Central Africa ,Supplier Name withheld ,203387-104 ,"3,689,793.00",
DFID,DFID,27/06/2016,Aid Programme - Voluntary contributions ,East and Central Africa ,Supplier Name withheld ,203387-104 ,"3,689,793.00",
DFID,DFID,24/06/2016,Aid Programme - Voluntary contributions ,East and Central Africa ,Supplier Name withheld ,203631-103 ,"1,000,000.00",
DFID,DFID,17/06/2016,Aid Programme - Voluntary contributions ,East and Central Africa ,Supplier Name withheld ,204019-108 ,"319,800.00",
DFID,DFID,17/06/2016,Aid Programme - Voluntary contributions ,East and Central Africa ,Supplier Name withheld ,204019-108 ,"1,261,900.00",
DFID,DFID,17/06/2016,Aid Programme - Voluntary contributions ,East and Central Africa ,Supplier Name withheld ,204019-108 ,"1,349,300.00",
DFID,DFID,24/06/2016,Aid Programme - Voluntary contributions ,Middle East and North Africa Division ,Supplier Name withheld ,204515-102 ,"7,000,000.00",
DFID,DFID,08/06/2016,Aid Programme - Voluntary contributions ,East and Central Africa ,Supplier Name withheld ,204903-103 ,"1,000,000.00",
DFID,DFID,14/06/2016,Project delivery costs – supplier services ,Policy Division ,VOLUNTARY SERVICE OVERSEAS ,204894-101 ,"2,093,660.82",
DFID,DFID,15/06/2016,Telephone Usage & services ,Business Solutions Division Level ,VODAFONE CORPORATE ,200002-170 ,"24,968.80",
DFID,DFID,15/06/2016,Telephone Usage & services ,Business Solutions Division Level ,VODAFONE CORPORATE ,200002-170 ,"9,719.49",
DFID,DFID,24/06/2016,Telephone Usage & services ,Business Solutions Division Level ,VERIZON UK LIMITED ,200002-126 ,"10,149.46",
DFID,DFID,08/06/2016,Aid Programme - Accountable Grant Payments ,Policy Division ,WOMANKIND WORLDWIDE (JFS) ,203559-146 ,"29,036.37",
DFID,DFID,15/06/2016,Project delivery costs – supplier services ,Policy Division ,IMC Worldwide Ltd ,203798-103 ,"22,075.00",
DFID,DFID,15/06/2016,Project delivery costs – supplier services ,Human Resources ,THE WHITEHALL & INDUSTRY GROUP ,100269-155 ,"5,700.00",
DFID,DFID,13/06/2016,Training - Course Fees ,Human Resources ,THE WHITEHALL & INDUSTRY GROUP ,100269-155 ,"5,000.00",
DFID,DFID,03/06/2016,Aid Programme - Accountable Grant Payments ,Asia  Caribbean and Overseas Territories ,WWF-UK ,203174-101 ,"40,185.00",
DFID,DFID,23/06/2016,Aid Programme - Accountable Grant Payments ,Asia  Caribbean and Overseas Territories ,WATERAID ,202871-104 ,"160,257.00",
DFID,DFID,15/06/2016,Aid Programme - Accountable Grant Payments ,West and Southern Africa ,WATERAID ,202944-102 ,"19,400.48",
DFID,DFID,03/06/2016,Aid Programme - Accountable Grant Payments ,Policy Division ,WATERAID ,203559-116 ,"339,358.70",
DFID,DFID,06/06/2016,Aid Programme - Accountable Grant Payments ,Policy Division ,WESTMINSTER FOUNDATION FOR DEMOCRACY ,204757-101 ,"669,014.00",
DFID,DFID,14/06/2016,Conferences  Seminars & Meeting/Event Resource ,East and Central Africa ,British Embassy ,101612-101 ,856.25,
DFID,DFID,07/06/2016,Recruitment costs ,East and Central Africa ,Media & Communication Center ,204957-104 ,633.69,
DFID,DFID,24/06/2016,Aid Programme - Accountable Grant Payments ,Asia  Caribbean and Overseas Territories ,BRAC ,204916-101 ,"20,000,000.00",
DFID,DFID,14/06/2016,Air fares ,Asia  Caribbean and Overseas Territories ,Saimon Overseas Ltd ,101603-102 ,534.98,
DFID,DFID,01/06/2016,Air fares ,Business Solutions Division Level ,Saimon Overseas Ltd ,200001-101 ,"5,016.50",
DFID,DFID,16/06/2016,Air fares ,West and Southern Africa ,Mukwa Travel and Tours ,101637-101 ,761.88,
DFID,DFID,16/06/2016,Air fares ,West and Southern Africa ,Mukwa Travel and Tours ,101637-101 ,683.70,
DFID,DFID,16/06/2016,Air fares ,West and Southern Africa ,Mukwa Travel and Tours ,101637-101 ,853.00,
DFID,DFID,24/06/2016,Air fares ,Asia  Caribbean and Overseas Territories ,Jaya Travels & Tours Ltd ,101621-101 ,"1,307.92",
DFID,DFID,02/06/2016,Hotels - Accommodation only ,Asia  Caribbean and Overseas Territories ,Summit Hotel Pvt Ltd ,101621-101 ,902.38,
DFID,DFID,10/06/2016,Recruitment costs,Asia  Caribbean and Overseas Territories ,Thompson Nepal Pvt Ltd ,101621-101 ,794.59,
DFID,DFID,06/06/2016,Hotels - Accommodation only ,Research and Evidence Division ,Hotel Yak & Yeti ,202392-109 ,644.96,
DFID,DFID,06/06/2016,Contract Catering Services ,Asia  Caribbean and Overseas Territories ,R B Home Concern ,205247-102 ,704.31,
DFID,DFID,15/06/2016,Project delivery costs – supplier services ,Asia  Caribbean and Overseas Territories ,Hotel Himalaya Pvt Ltd ,205028-101 ,626.12,
DFID,DFID,16/06/2016,Hotels - Accommodation only ,West and Southern Africa ,The Golden Tulip Hotel ,203536-103 ,"1,193.57",
DFID,DFID,16/06/2016,Hotels - Accommodation only ,West and Southern Africa ,The Golden Tulip Hotel ,203536-103 ,596.79,
DFID,DFID,09/06/2016,Hotels - Accommodation only ,West and Southern Africa ,Accra City Hotel ,204918-101 ,964.96,
DFID,DFID,09/06/2016,Hotels - Accommodation only ,West and Southern Africa ,Accra City Hotel ,204918-101 ,964.96,
DFID,DFID,09/06/2016,Hotels - Accommodation only ,West and Southern Africa ,Accra City Hotel ,204918-101 ,964.96,
DFID,DFID,09/06/2016,Hotels - Accommodation only ,West and Southern Africa ,Accra City Hotel ,204918-101 ,964.96,
DFID,DFID,01/06/2016,Recruitment costs ,East and Central Africa ,MONITOR PUBLICATIONS LIMITED ,101635-101 ,851.25,
DFID,DFID,02/06/2016,Air fares ,East and Central Africa ,Simbatravelcare Limited ,101635-101 ,"1,181.26",
DFID,DFID,02/06/2016,Air fares ,East and Central Africa ,Simbatravelcare Limited ,101635-101 ,742.13,
DFID,DFID,02/06/2016,Training - Travel & Subsistence ,East and Central Africa ,Simbatravelcare Limited ,101635-101 ,"1,555.40",
DFID,DFID,02/06/2016,Air fares ,East and Central Africa ,Simbatravelcare Limited ,101635-101 ,"1,181.26",
DFID,DFID,24/06/2016,Air fares ,East and Central Africa ,Simbatravelcare Limited ,101635-101 ,929.84,
DFID,DFID,01/06/2016,Other travel costs ,East and Central Africa ,Simbatravelcare Limited ,203603-105 ,769.49,
DFID,DFID,06/06/2016,Hotels - Accommodation only ,East and Central Africa ,Fairview Hotel ,101630-101 ,522.57,
DFID,DFID,06/06/2016,Hotels - Accommodation only ,East and Central Africa ,Fairview Hotel ,101630-101 ,770.40,
DFID,DFID,06/06/2016,Hotels - Accommodation only ,East and Central Africa ,Fairview Hotel ,101630-101 ,652.79,
DFID,DFID,06/06/2016,Hotels - Accommodation only ,East and Central Africa ,Fairview Hotel ,101630-101 ,544.05,
DFID,DFID,06/06/2016,Hotels - Accommodation only ,Middle East and North Africa Division ,Fairview Hotel ,201705-101 ,676.99,
DFID,DFID,07/06/2016,Project delivery costs – supplier services ,Asia  Caribbean and Overseas Territories ,The Population Council ,114506-101 ,"38,205.00",
DFID,DFID,07/06/2016,Project delivery costs – supplier services ,Asia  Caribbean and Overseas Territories ,The Population Council ,114506-101 ,"38,205.00",
DFID,DFID,07/06/2016,Project delivery costs – supplier services ,Asia  Caribbean and Overseas Territories ,The Population Council ,114506-101 ,"60,798.00",
DFID,DFID,16/06/2016,Research and development costs - supplier services ,Research and Evidence Division ,The Population Council ,201398-101 ,"521,747.00",
DFID,DFID,21/06/2016,Training Providers/Facilitation Services ,West and Southern Africa ,Maria Dulce Tavares ,101620-101 ,"2,382.49",
DFID,DFID,21/06/2016,Training Providers/Facilitation Services ,West and Southern Africa ,Maria Dulce Tavares ,101620-101 ,"3,573.73",
DFID,DFID,07/06/2016,Training Providers/Facilitation Services ,West and Southern Africa ,Maria Dulce Tavares ,204856-102 ,"2,614.39",
DFID,DFID,08/06/2016,Training Providers/Facilitation Services ,West and Southern Africa ,Maria Dulce Tavares ,204856-102 ,"2,153.88",
DFID,DFID,07/06/2016,Repairs  Maint  Alter - Property & Constrct. Services ,West and Southern Africa ,Pekolyn Tech. Services ,101622-108 ,513.62,
DFID,DFID,14/06/2016,Vehicle Petrol & Oil ,West and Southern Africa ,British  High Commission Abuja ,101622-108 ,728.59,
DFID,DFID,14/06/2016,Repairs  Maint  Alter - Property & Constrct. Services ,West and Southern Africa ,Fracham Company ,101622-108 ,"1,857.17",
DFID,DFID,14/06/2016,Repairs  Maint  Alter - Removal & waste disposal services ,West and Southern Africa ,Fracham Company ,101622-108 ,555.71,
DFID,DFID,14/06/2016,Repairs  Maint  Alter - Property & Constrct. Services ,West and Southern Africa ,Fracham Company ,101622-108 ,871.90,
DFID,DFID,13/06/2016,Hotels - Accommodation only ,West and Southern Africa ,Supplier Name withheld ,101622-108 ,"1,031.53",
DFID,DFID,14/06/2016,Hotels - Accommodation only ,West and Southern Africa ,Supplier Name withheld ,101622-108 ,746.14,
DFID,DFID,28/06/2016,Repairs  Maint  Alter - Property & Constrct. Services ,West and Southern Africa ,Jahrocks Nigeria Ltd ,101622-108 ,882.99,
DFID,DFID,26/06/2016,Cleaning Costs ,West and Southern Africa ,Sparklean Services Nig Ltd ,100152-117 ,931.84,
DFID,DFID,26/06/2016,Cleaning Costs ,West and Southern Africa ,Sparklean Services Nig Ltd ,101622-108 ,"3,319.38",
DFID,DFID,13/06/2016,Project delivery costs – supplier services ,West and Southern Africa ,PKF Professional Services ,202370-103 ,"18,845.38",
DFID,DFID,29/06/2016,Aid Programme - Accountable Grant Payments ,West and Southern Africa ,Catholic Commission for Justice and Peace ,202559-103 ,"299,340.90",
DFID,DFID,25/06/2016,Project delivery costs – supplier services ,West and Southern Africa ,Supplier Name withheld ,202427-103 ,"38,326.76",
DFID,DFID,20/06/2016,Research and development costs - supplier services ,Research and Evidence Division ,Supplier Name withheld ,203529-106 ,"388,091.25",
DFID,DFID,15/06/2016,Research and development costs - supplier services ,Research and Evidence Division ,Supplier Name withheld ,204428-102 ,"1,266.76",
DFID,DFID,25/06/2016,Research and development costs - supplier services ,Economic Development Division ,Supplier Name withheld ,205168-101 ,"9,500.00",
DFID,DFID,30/06/2016,Aid Programme - Accountable Grant Payments ,Economic Development Division ,ISEAL ALLIANCE ,203448-101 ,"126,482.00",
DFID,DFID,13/06/2016,Training - Course Fees ,Regional Directorate ,KAPLAN FINANCIAL LTD ,204832-101 ,"1,165.83",
DFID,DFID,28/06/2016,Aid Programme - Voluntary contributions ,Middle East and North Africa Division ,UN OCHA ,204530-101 ,"13,500,000.00",
DFID,DFID,02/06/2016,Aid Programme - Humanitarian Material Relief Assistance and Services ,Asia  Caribbean and Overseas Territories ,UN OCHA ,204603-114 ,"600,000.00",
DFID,DFID,15/06/2016,Computer Software Licenses ,Business Solutions Division Level ,SOFTWARE BOX LTD (SBL) ,200002-153 ,"4,872.00",
DFID,DFID,21/06/2016,Computer Software Licenses ,Business Solutions Division Level ,SOFTWARE BOX LTD (SBL) ,200005-116 ,"51,246.00",
DFID,DFID,01/06/2016,Project delivery costs – supplier services ,Group Operations ,ASSESSMENT SERVICES LTD ,204284-101 ,"2,265.00",
DFID,DFID,10/06/2016,Aid Programme - Voluntary contributions ,West and Southern Africa ,FAO ,203429-101 ,"1,900,000.00",
DFID,DFID,27/06/2016,Aid Programme - Voluntary contributions ,Conflict  Humanitarian  Security & Stabilisation Division ,FAO ,203815-101 ,"333,316.00",
DFID,DFID,16/06/2016,Aid Programme - Voluntary contributions ,Asia  Caribbean and Overseas Territories ,Supplier Name withheld ,202660-123 ,"1,200,000.00",
DFID,DFID,28/06/2016,Aid Programme - Voluntary contributions ,Middle East and North Africa Division ,Supplier Name withheld ,203435-101 ,"7,925,000.00",
DFID,DFID,15/06/2016,Aid Programme - Voluntary contributions ,East and Central Africa ,Supplier Name withheld ,204019-101 ,"8,320,000.00",
DFID,DFID,29/06/2016,Aid Programme - Voluntary contributions ,East and Central Africa ,Supplier Name withheld ,204019-117 ,"2,500,000.00",
DFID,DFID,29/06/2016,Aid Programme - Voluntary contributions ,Middle East and North Africa Division ,Supplier Name withheld ,204513-101 ,"1,500,000.00",
DFID,DFID,24/06/2016,Aid Programme - Humanitarian Material Relief Assistance and Services ,Asia  Caribbean and Overseas Territories ,Supplier Name withheld ,204603-117 ,"150,000.00",
DFID,DFID,24/06/2016,Aid Programme - Humanitarian Material Relief Assistance and Services ,Asia  Caribbean and Overseas Territories ,Supplier Name withheld ,204603-112 ,"150,000.00",
DFID,DFID,24/06/2016,Aid Programme - Joint programme contribution ,East and Central Africa ,International Food PolicyResearch Institute (IFRI ,203961-104 ,"500,000.00",
DFID,DFID,28/06/2016,Data Network - land lines ,Business Solutions Division Level ,KUBE NETWORKS LTD ,200002-130 ,"1,075.63",
DFID,DFID,15/06/2016,Aid Programme - Joint programme contribution ,East and Central Africa ,GTZ GmBH Eschborn ,204639-101 ,"2,600,000.00",
DFID,DFID,28/06/2016,DFID Purchased Relief Supplies ,West and Southern Africa ,IPA-International Procurement Agency (BV) ,202722-103 ,"310,448.77",
DFID,DFID,28/06/2016,DFID Purchased Relief Supplies ,East and Central Africa ,IPA-International Procurement Agency (BV) ,203109-111 ,"4,466.14",
DFID,DFID,28/06/2016,DFID Purchased Relief Supplies ,East and Central Africa ,IPA-International Procurement Agency (BV) ,203109-111 ,"151,394.52",
DFID,DFID,30/06/2016,DFID Purchased Relief Supplies ,East and Central Africa ,IPA-International Procurement Agency (BV) ,203109-111 ,"276,974.79",
DFID,DFID,30/06/2016,DFID Purchased Relief Supplies ,East and Central Africa ,IPA-International Procurement Agency (BV) ,203109-111 ,"8,170.76",
DFID,DFID,13/06/2016,DFID Purchased Relief Supplies ,East and Central Africa ,IPA-International Procurement Agency (BV) ,203109-111 ,"15,068.50",
DFID,DFID,13/06/2016,DFID Purchased Relief Supplies ,East and Central Africa ,IPA-International Procurement Agency (BV) ,203109-111 ,"233,258.05",
DFID,DFID,17/06/2016,DFID Purchased Relief Supplies ,East and Central Africa ,IPA-International Procurement Agency (BV) ,203109-111 ,"295,027.47",
DFID,DFID,17/06/2016,DFID Purchased Relief Supplies ,East and Central Africa ,IPA-International Procurement Agency (BV) ,203109-111 ,"8,703.31",
DFID,DFID,24/06/2016,DFID Purchased Relief Supplies ,East and Central Africa ,IPA-International Procurement Agency (BV) ,203109-111 ,"510,796.68",
DFID,DFID,28/06/2016,DFID Purchased Relief Supplies ,East and Central Africa ,IPA-International Procurement Agency (BV) ,203109-111 ,"106,544.80",
DFID,DFID,28/06/2016,DFID Purchased Relief Supplies ,East and Central Africa ,IPA-International Procurement Agency (BV) ,203109-111 ,"3,143.07",
DFID,DFID,14/06/2016,Project delivery costs – supplier services ,West and Southern Africa ,IPA-International Procurement Agency (BV) ,205182-104 ,"418,338.42",
DFID,DFID,30/06/2016,Aid Programme - Accountable Grant Payments ,Policy Division ,ICAR (UK) ,200458-102 ,"206,250.00",
DFID,DFID,23/06/2016,Aid Programme - Accountable Grant Payments ,Research and Evidence Division ,AATF ,204988-101 ,"218,596.00",
DFID,DFID,07/06/2016,Project delivery costs – supplier services ,Asia  Caribbean and Overseas Territories ,Sustainable Development Associates ,113287-102 ,"1,250.48",
DFID,DFID,27/06/2016,Aid Programme - Accountable Grant Payments ,East and Central Africa ,FINANCIAL SECTOR DEEPENING ,204258-104 ,"4,097,235.00",
DFID,DFID,27/06/2016,Aid Programme - Accountable Grant Payments ,East and Central Africa ,FINANCIAL SECTOR DEEPENING ,204258-105 ,"1,365,745.00",
DFID,DFID,13/06/2016,Fund monies to be managed and dispersed by the supplier ,East and Central Africa ,KPMG EAST AFRICA LTD ,200498-101 ,"15,811.28",
DFID,DFID,13/06/2016,Project delivery costs – supplier services ,East and Central Africa ,KPMG EAST AFRICA LTD ,200498-101 ,"18,658.20",
DFID,DFID,13/06/2016,Fund monies to be managed and dispersed by the supplier ,East and Central Africa ,KPMG EAST AFRICA LTD ,200498-105 ,"2,032.15",
DFID,DFID,13/06/2016,Project delivery costs – supplier services ,East and Central Africa ,KPMG EAST AFRICA LTD ,200498-105 ,"15,200.40",
DFID,DFID,08/06/2016,Project delivery costs – supplier services ,Policy Division ,KPMG EAST AFRICA LTD ,202921-102 ,"330,825.60",
DFID,DFID,08/06/2016,Aid Programme - Accountable Grant Payments ,East and Central Africa ,LONDON SCHOOL OF ECONOMICS AND POLITICAL SCIENCE ,204803-103 ,"5,853.66",
DFID,DFID,08/06/2016,Aid Programme - Accountable Grant Payments ,East and Central Africa ,LONDON SCHOOL OF ECONOMICS AND POLITICAL SCIENCE ,204803-103 ,"2,553.07",
DFID,DFID,25/06/2016,Project delivery costs – supplier services ,East and Central Africa ,UPPER QUARTILE ,203871-108 ,"74,226.00",
DFID,DFID,08/06/2016,Vehicle Petrol & Oil ,West and Southern Africa ,Total Nigeria PLC ,101622-108 ,"3,173.36",
DFID,DFID,17/06/2016,Aid Programme - Core contributions ,Research and Evidence Division ,African Economic Research Consortium ,204153-109 ,"600,000.00",
DFID,DFID,10/06/2016,Aid Programme - Voluntary contributions ,West and Southern Africa ,Supplier Name withheld ,202640-110 ,"4,408,914.00",
DFID,DFID,24/06/2016,Aid Programme - Core contributions ,East and Central Africa ,Supplier Name withheld ,203024-102 ,"2,000,000.00",
DFID,DFID,23/06/2016,Project delivery costs – supplier services ,West and Southern Africa ,Cambridge  Education Limited ,104200-101 ,"1,169,097.24",
DFID,DFID,16/06/2016,Project delivery costs – supplier services ,West and Southern Africa ,Cambridge  Education Limited ,104200-101 ,"257,133.10",
DFID,DFID,06/06/2016,Project delivery costs – supplier services ,West and Southern Africa ,Cambridge  Education Limited ,104200-101 ,"1,109,237.48",
DFID,DFID,30/06/2016,Aid Programme - Voluntary contributions ,Middle East and North Africa Division ,Supplier Name withheld ,204536-102 ,"7,500,000.00",
DFID,DFID,30/06/2016,Aid Programme - Voluntary contributions ,Middle East and North Africa Division ,Supplier Name withheld ,204536-103 ,"12,000,000.00",
DFID,DFID,27/06/2016,Aid Programme - Humanitarian Material Relief Assistance and Services ,Middle East and North Africa Division ,Supplier Name withheld ,204968-101 ,"3,250,000.00",
DFID,DFID,02/06/2016,Aid Programme - Voluntary contributions ,East and Central Africa ,Supplier Name withheld ,205116-101 ,"2,675,000.00",
DFID,DFID,02/06/2016,Aid Programme - Voluntary contributions ,East and Central Africa ,Supplier Name withheld ,205116-102 ,"500,000.00",
DFID,DFID,23/06/2016,Project delivery costs – supplier services ,Economic Development Division ,KPMG LLP ,202647-101 ,"351,842.40",
DFID,DFID,23/06/2016,Project delivery costs – supplier services ,Economic Development Division ,KPMG LLP ,202647-101 ,"68,299.20",
DFID,DFID,27/06/2016,Aid Programme - Core contributions ,Research and Evidence Division ,Supplier Name withheld ,203082-102 ,"1,000,000.00",
DFID,DFID,20/06/2016,Aid Programme - Accountable Grant Payments ,Finance and Corporate Performance Division ,KEYSTONE ACCOUNTABILITY ,203316-105 ,"27,127.40",
DFID,DFID,24/06/2016,Aid Programme - Trust Funds contributions ,East and Central Africa ,INFRASTRUCTURE CONSORTIUM FOR AFRICA ,202579-104 ,"300,000.00",
DFID,DFID,14/06/2016,Computer hardware maintenance ,West and Southern Africa ,Osmat Network Solutions Ventures ,100152-117 ,"1,007.22",
DFID,DFID,14/06/2016,Computer hardware maintenance ,West and Southern Africa ,Osmat Network Solutions Ventures ,101622-108 ,"2,465.95",
DFID,DFID,08/06/2016,Aid Programme - Voluntary contributions ,Asia  Caribbean and Overseas Territories ,IOM ,202660-114 ,"74,983.00",
DFID,DFID,29/06/2016,Aid Programme - Accountable Grant Payments ,West and Southern Africa ,SEARCH FOR COMMON GROUND ,202416-114 ,"525,453.00",
DFID,DFID,13/06/2016,Project delivery costs – supplier services ,Asia  Caribbean and Overseas Territories ,BMB MOTT  MACDONALD ,107480-101 ,"86,302.44",
DFID,DFID,02/06/2016,Project delivery costs – supplier services ,Asia  Caribbean and Overseas Territories ,BMB MOTT  MACDONALD ,107480-101 ,"114,364.70",
DFID,DFID,27/06/2016,Project delivery costs – supplier services ,Asia  Caribbean and Overseas Territories ,BMB MOTT  MACDONALD ,107480-101 ,"114,903.95",
DFID,DFID,27/06/2016,Project delivery costs – supplier services ,Asia  Caribbean and Overseas Territories ,BMB MOTT  MACDONALD ,107480-101 ,"71,438.89",
DFID,DFID,27/06/2016,Project delivery costs – supplier services ,Asia  Caribbean and Overseas Territories ,BMB MOTT  MACDONALD ,202123-106 ,"12,060.11",
DFID,DFID,03/06/2016,Project delivery costs – supplier services ,Policy Division ,IPE Global Pvt. Ltd. ,202208-102 ,"29,335.00",
DFID,DFID,03/06/2016,Project delivery costs – supplier services ,Policy Division ,IPE Global Pvt. Ltd. ,202208-102 ,"52,802.00",
DFID,DFID,02/06/2016,Project delivery costs – supplier services ,Asia  Caribbean and Overseas Territories ,IPE Global Pvt. Ltd. ,202765-101 ,"392,556.07",
DFID,DFID,17/06/2016,Project delivery costs – supplier services ,Asia  Caribbean and Overseas Territories ,IPE Global Pvt. Ltd. ,202765-101 ,"90,348.89",
DFID,DFID,14/06/2016,Project delivery costs – supplier services ,West and Southern Africa ,IPE Global Pvt. Ltd. ,203164-102 ,"94,500.00",
DFID,DFID,14/06/2016,Project delivery costs – supplier services ,West and Southern Africa ,IPE Global Pvt. Ltd. ,203164-102 ,"94,500.00",
DFID,DFID,14/06/2016,Project delivery costs – supplier services ,West and Southern Africa ,IPE Global Pvt. Ltd. ,203164-102 ,"94,500.00",
DFID,DFID,14/06/2016,Project delivery costs – supplier services ,West and Southern Africa ,IPE Global Pvt. Ltd. ,203164-102 ,"11,760.00",
DFID,DFID,22/06/2016,Project delivery costs – supplier services ,Asia  Caribbean and Overseas Territories ,IPE Global Pvt. Ltd. ,203217-101 ,"48,004.26",
DFID,DFID,22/06/2016,Project delivery costs – supplier services ,Asia  Caribbean and Overseas Territories ,IPE Global Pvt. Ltd. ,203217-101 ,"53,810.68",
DFID,DFID,02/06/2016,Project delivery costs – supplier services ,Asia  Caribbean and Overseas Territories ,IPE Global Pvt. Ltd. ,203217-101 ,"3,106.05",
DFID,DFID,17/06/2016,Repairs  Maint  Alter - Removal & waste disposal services ,Group Operations ,BYWATERS ,203717-101 ,"4,805.51",
DFID,DFID,08/06/2016,Contract & Agency Staff ,Group Operations ,Michael Page Int. Recruitment Ltd ,100270-106 ,575.28,
DFID,DFID,29/06/2016,Aid Programme - Voluntary contributions ,East and Central Africa ,Supplier Name withheld ,204019-105 ,"15,000,000.00",
DFID,DFID,27/06/2016,Aid Programme - Voluntary contributions ,Middle East and North Africa Division ,Supplier Name withheld ,205059-102 ,"10,000,000.00",
DFID,DFID,13/06/2016,Aid Programme - Accountable Grant Payments ,East and Central Africa ,EISA ,204458-108 ,"364,588.76",
DFID,DFID,20/06/2016,Aid Programme - Accountable Grant Payments ,West and Southern Africa ,The Carter Center ,105844-107 ,"149,233.00",
DFID,DFID,27/06/2016,Aid Programme - Trust Funds contributions ,East and Central Africa ,Registered Trustees of the Financial Sector Deepening Trust ,105422-104 ,"500,000.00",
DFID,DFID,16/06/2016,Aid Programme - Accountable Grant Payments ,Middle East and North Africa Division ,Supplier Name withheld ,204520-101 ,"144,379.00",
DFID,DFID,09/06/2016,Aid Programme - Accountable Grant Payments ,Middle East and North Africa Division ,Supplier Name withheld ,204520-101 ,"3,400,651.00",
DFID,DFID,03/06/2016,Aid Programme - Accountable Grant Payments ,Middle East and North Africa Division ,Supplier Name withheld ,204520-102 ,"650,591.00",
DFID,DFID,25/06/2016,Project delivery costs – supplier services ,West and Southern Africa ,Crown Agents Bank ,200469-110 ,"221,095.60",
DFID,DFID,23/06/2016,Project delivery costs – supplier services ,Asia  Caribbean and Overseas Territories ,Crown Agents Bank ,201645-105 ,"371,130.37",
DFID,DFID,07/06/2016,Project delivery costs – supplier services ,Policy Division ,Crown Agents Bank ,201724-128 ,"84,437.00",
DFID,DFID,14/06/2016,Project delivery costs – supplier services ,Middle East and North Africa Division ,Crown Agents Bank ,201828-101 ,"7,700.00",
DFID,DFID,15/06/2016,Project delivery costs – supplier services ,West and Southern Africa ,Crown Agents Bank ,202691-102 ,"21,918.00",
DFID,DFID,27/06/2016,Project delivery costs – supplier services ,Middle East and North Africa Division ,Crown Agents Bank ,204061-101 ,"499,626.92",
DFID,DFID,27/06/2016,Conferences  Seminars & Meeting/Event Resource ,Middle East and North Africa Division ,COLLABORATIVE LEARNING PROJECTS ,204055-101 ,"1,225.65",
DFID,DFID,23/06/2016,Project delivery costs – supplier services ,West and Southern Africa ,ECORYS UK Ltd. ,204899-101 ,"49,835.76",
DFID,DFID,15/06/2016,Project delivery costs – supplier services ,West and Southern Africa ,ECORYS UK Ltd. ,204899-101 ,"64,929.22",
DFID,DFID,03/06/2016,Hotels - Accommodation only ,West and Southern Africa ,Supplier Name withheld ,101622-108 ,660.49,
DFID,DFID,13/06/2016,Aid Programme - Accountable Grant Payments ,Asia  Caribbean and Overseas Territories ,Chinadialogue ,202775-104 ,"48,859.00",
DFID,DFID,06/06/2016,Project delivery costs – supplier services ,Business Solutions Division Level ,Capita Business Serivces Ltd ,200001-101 ,"7,080.00",
DFID,DFID,30/06/2016,Aid Programme - Accountable Grant Payments ,Economic Development Division ,WORLD RESOURCES INSTITUTE ,204949-101 ,"443,095.45",
DFID,DFID,29/06/2016,Aid Programme - Accountable Grant Payments ,Policy Division ,Carnegie Endowment for International Peace ,203673-101 ,"112,951.00",
DFID,DFID,29/06/2016,Aid Programme - Accountable Grant Payments ,Policy Division ,Carnegie Endowment for International Peace ,203673-101 ,"14,780.00",
DFID,DFID,15/06/2016,Project delivery costs – supplier services ,East and Central Africa ,BMB  MOTT  MACDONALD ,202511-102 ,"708,769.99",
DFID,DFID,28/06/2016,Project delivery costs – supplier services ,East and Central Africa ,BMB  MOTT  MACDONALD ,202511-102 ,"203,951.10",
DFID,DFID,30/06/2016,Fund monies to be managed and dispersed by the supplier ,East and Central Africa ,BMB  MOTT  MACDONALD ,203383-101 ,"487,617.00",
DFID,DFID,02/06/2016,Fund monies to be managed and dispersed by the supplier ,East and Central Africa ,BMB  MOTT  MACDONALD ,203383-101 ,"107,731.00",
DFID,DFID,23/06/2016,Project delivery costs – supplier services ,West and Southern Africa ,BMB  MOTT  MACDONALD ,204242-102 ,"135,919.00",
DFID,DFID,24/06/2016,Aid Programme - Joint programme contribution ,Economic Development Division ,INTERNATIONAL DEVELOPMENT RESEARCH CENTRE ,203483-101 ,"929,526.00",
DFID,DFID,07/06/2016,Repairs  Maint  Alter - Property & Constrct. Services ,West and Southern Africa ,Shell Nigeria Closed pension Fund Administration Ltd ,101622-108 ,"17,197.64",
DFID,DFID,07/06/2016,Repairs  Maint  Alter - Property & Constrct. Services ,West and Southern Africa ,Shell Nigeria Closed pension Fund Administration Ltd ,101622-108 ,"17,211.47",
DFID,DFID,16/06/2016,Aid Programme - Accountable Grant Payments ,Asia  Caribbean and Overseas Territories ,Transparency International (Bangladesh) ,203488-101 ,"500,000.00",
DFID,DFID,29/06/2016,Aid Programme - Accountable Grant Payments ,Research and Evidence Division ,International Center for Research on Women (ICRW) ,203199-104 ,"36,064.49",
DFID,DFID,24/06/2016,Air fares ,Asia  Caribbean and Overseas Territories ,Jaya Travels & Tours Pvt Ltd. (US$) ,101605-101 ,668.94,
DFID,DFID,24/06/2016,Air fares ,Asia  Caribbean and Overseas Territories ,Jaya Travels & Tours Pvt Ltd. (US$) ,101621-108 ,568.80,
DFID,DFID,02/06/2016,Project delivery costs – supplier services ,West and Southern Africa ,CARDNO EMERGING MARKETS (UK) LTD ,201791-111 ,"265,181.17",
DFID,DFID,20/06/2016,Fund monies to be managed and dispersed by the supplier ,Research and Evidence Division ,CARDNO EMERGING MARKETS (UK) LTD ,203048-105 ,"77,206.08",
DFID,DFID,20/06/2016,Fund monies to be managed and dispersed by the supplier ,Research and Evidence Division ,CARDNO EMERGING MARKETS (UK) LTD ,203048-106 ,"3,972.61",
DFID,DFID,14/06/2016,Research and development costs - supplier services ,Research and Evidence Division ,CARDNO EMERGING MARKETS (UK) LTD ,203048-107 ,"277,025.00",
DFID,DFID,27/06/2016,Fund monies to be managed and dispersed by the supplier ,Research and Evidence Division ,CARDNO EMERGING MARKETS (UK) LTD ,203048-101 ,"232,597.95",
DFID,DFID,27/06/2016,Fund monies to be managed and dispersed by the supplier ,Research and Evidence Division ,CARDNO EMERGING MARKETS (UK) LTD ,203048-105 ,"93,700.00",
DFID,DFID,28/06/2016,Project delivery costs – supplier services ,Economic Development Division ,CARDNO EMERGING MARKETS (UK) LTD ,203535-102 ,"92,908.01",
DFID,DFID,16/06/2016,Project delivery costs – supplier services ,Asia  Caribbean and Overseas Territories ,CARDNO EMERGING MARKETS (UK) LTD ,203535-105 ,"17,096.52",
DFID,DFID,21/06/2016,Project delivery costs – supplier services ,East and Central Africa ,CARDNO EMERGING MARKETS (UK) LTD ,203596-101 ,"190,583.00",
DFID,DFID,20/06/2016,Aid Programme - Accountable Grant Payments ,Research and Evidence Division ,International Initiative for Impact Evaluation(3ie) ,200135-104 ,"224,550.00",
DFID,DFID,06/06/2016,Aid Programme - Accountable Grant Payments ,Research and Evidence Division ,International Initiative for Impact Evaluation(3ie) ,200135-101 ,"1,048,913.00",
DFID,DFID,06/06/2016,Aid Programme - Accountable Grant Payments ,Research and Evidence Division ,International Initiative for Impact Evaluation(3ie) ,200135-107 ,"1,114.00",
DFID,DFID,15/06/2016,Aid Programme - Accountable Grant Payments ,East and Central Africa ,International Initiative for Impact Evaluation(3ie) ,200795-109 ,"105,692.00",
DFID,DFID,28/06/2016,Research and development costs - supplier services ,Research and Evidence Division ,International Initiative for Impact Evaluation(3ie) ,204806-105 ,"22,480.43",
DFID,DFID,25/06/2016,Project delivery costs – supplier services ,West and Southern Africa ,ADAM SMITH INTERNATIONAL ,201139-101 ,"118,986.82",
DFID,DFID,14/06/2016,Project delivery costs – supplier services ,East and Central Africa ,OXFORD CONSULTING PARTNERS ,204654-101 ,"1,100.00",
DFID,DFID,09/06/2016,Bank Charges/Services ,Group Operations ,Government Actuary's Department ,100182-101 ,"17,066.95",
DFID,DFID,22/06/2016,Project delivery costs – supplier services ,Asia  Caribbean and Overseas Territories ,RURAL RECONSTRUCTION NEPAL ,203764-104 ,"260,000.00",
DFID,DFID,22/06/2016,Project delivery costs – supplier services ,Asia  Caribbean and Overseas Territories ,RURAL RECONSTRUCTION NEPAL ,203764-110 ,"120,000.00",
DFID,DFID,30/06/2016,Aid Programme - Voluntary contributions ,International Relations Division ,OECD ,205031-101 ,"367,500.00",
DFID,DFID,06/06/2016,Data Network - land lines ,Business Solutions Division Level ,NAYATEL (PVT) LTD ,200002-121 ,619.94,
DFID,DFID,06/06/2016,Data Network - land lines ,Business Solutions Division Level ,NAYATEL (PVT) LTD ,203329-102 ,619.94,
DFID,DFID,29/06/2016,Medical/Health Services ,West and Southern Africa ,FLIMAS ,100256-102 ,909.09,
DFID,DFID,29/06/2016,Medical/Health Services ,West and Southern Africa ,FLIMAS ,101638-101 ,"3,535.69",
DFID,DFID,07/06/2016,Medical/Health Services ,West and Southern Africa ,FLIMAS ,101638-101 ,"4,074.38",
DFID,DFID,23/06/2016,Project delivery costs � supplier services,Asia  Caribbean and Overseas Territories ,HM Revenue & Customs Acc No 11963228 ,204024-106 ,"4,041.57",
DFID,DFID,23/06/2016,Travel - Subsistence ,Asia  Caribbean and Overseas Territories ,HM Revenue & Customs Acc No 11963228 ,204024-106 ,"1,696.68",
DFID,DFID,23/06/2016,Training Providers/Facilitation Services ,Asia  Caribbean and Overseas Territories ,HM Revenue & Customs Acc No 11963228 ,204024-106 ,660.00,
DFID,DFID,27/06/2016,Research and development costs - supplier services ,Research and Evidence Division ,IFPRI ,203115-101 ,"430,632.00",
DFID,DFID,16/06/2016,Aid Programme - Accountable Grant Payments ,Middle East and North Africa Division ,Supplier Name withheld ,203847-104 ,"259,337.43",
DFID,DFID,13/06/2016,Aid Programme - Core contributions ,Research and Evidence Division ,Drugs for Neglected Diseases Initiative ,204075-103 ,"4,000,000.00",
DFID,DFID,17/06/2016,Aid Programme - Core contributions ,Research and Evidence Division ,International Partnership for Microbicides ,204138-103 ,"1,500,000.00",
DFID,DFID,08/06/2016,Project delivery costs – supplier services ,Asia  Caribbean and Overseas Territories ,Futures Group Europe ,202488-105 ,"218,321.53",
DFID,DFID,23/06/2016,Project delivery costs – supplier services ,Asia  Caribbean and Overseas Territories ,Futures Group Europe ,202488-105 ,"383,400.73",
DFID,DFID,15/06/2016,Project delivery costs – supplier services ,East and Central Africa ,Futures Group Europe ,202547-102 ,"214,789.93",
DFID,DFID,20/06/2016,Project delivery costs – supplier services ,West and Southern Africa ,Futures Group Europe ,202819-102 ,"803,031.97",
DFID,DFID,14/06/2016,Project delivery costs – supplier services ,West and Southern Africa ,Futures Group Europe ,202992-101 ,"992,317.00",
DFID,DFID,09/06/2016,Project delivery costs – supplier services ,Asia  Caribbean and Overseas Territories ,Futures Group Europe ,203455-101 ,"76,555.00",
DFID,DFID,01/06/2016,Project delivery costs – supplier services ,Asia  Caribbean and Overseas Territories ,Futures Group Europe ,203455-101 ,"125,544.00",
DFID,DFID,08/06/2016,Project delivery costs – supplier services ,Asia  Caribbean and Overseas Territories ,Futures Group Europe ,203455-101 ,"60,000.00",
DFID,DFID,30/06/2016,Aid Programme - Accountable Grant Payments ,East and Central Africa ,Basel Institute On Governance ,204437-107 ,"48,061.60",
DFID,DFID,20/06/2016,Professional member subscriptions ,Policy Division ,Chatham House ,100045-101 ,"3,200.00",
DFID,DFID,15/06/2016,Aid Programme - Programme Contribution ,West and Southern Africa ,The World Bank (EFO) ,202455-108 ,"60,245.00",
DFID,DFID,24/06/2016,Aid Programme - Voluntary contributions ,Asia  Caribbean and Overseas Territories ,The World Bank (EFO) ,203385-102 ,"197,777.00",
DFID,DFID,23/06/2016,Aid Programme - Voluntary contributions ,East and Central Africa ,The World Bank (EFO) ,203459-108 ,"150,000.00",
DFID,DFID,22/06/2016,Project delivery costs – supplier services ,West and Southern Africa ,Baker Tilly Nigeria ,104189-106 ,"14,325.88",
DFID,DFID,27/06/2016,Auditors Assurance Service ,West and Southern Africa ,Baker Tilly Nigeria ,104229-101 ,"21,067.11",
DFID,DFID,15/06/2016,Air fares ,East and Central Africa ,Bon Voyage Travel Centre Ltd(USD) ,101634-101 ,805.08,
DFID,DFID,29/06/2016,Training - Travel & Subsistence ,East and Central Africa ,Bon Voyage Travel Centre Ltd(USD) ,101634-101 ,867.77,
DFID,DFID,27/06/2016,Air fares ,East and Central Africa ,Bon Voyage Travel Centre Ltd(USD) ,101634-101 ,581.14,
DFID,DFID,26/06/2016,Air fares ,East and Central Africa ,Bon Voyage Travel Centre Ltd(USD) ,101634-101 ,995.76,
DFID,DFID,21/06/2016,Training - Travel & Subsistence ,East and Central Africa ,Bon Voyage Travel Centre Ltd(USD) ,101634-101 ,821.73,
DFID,DFID,21/06/2016,Training - Travel & Subsistence ,East and Central Africa ,Bon Voyage Travel Centre Ltd(USD) ,101634-101 ,"1,281.34",
DFID,DFID,25/06/2016,Training - Travel & Subsistence ,East and Central Africa ,Bon Voyage Travel Centre Ltd(USD) ,204364-107 ,672.01,
DFID,DFID,21/06/2016,Air fares ,East and Central Africa ,Bon Voyage Travel Centre Ltd(Tsh) ,101634-101 ,524.67,
DFID,DFID,22/06/2016,Air fares ,East and Central Africa ,Bon Voyage Travel Centre Ltd(Tsh) ,101634-101 ,991.10,
DFID,DFID,29/06/2016,Air fares ,East and Central Africa ,Bon Voyage Travel Centre Ltd(Tsh) ,101634-101 ,558.95,
DFID,DFID,14/06/2016,Research and development costs - supplier services ,Research and Evidence Division ,Tim Leyland ,204823-102 ,"3,184.65",
DFID,DFID,27/06/2016,Aid Programme - Core contributions ,Research and Evidence Division ,AERAS ,204136-103 ,"800,000.00",
DFID,DFID,17/06/2016,Aid Programme - Accountable Grant Payments ,Asia  Caribbean and Overseas Territories ,International Institute for Environment and Development (IIED) ,114058-112 ,"47,009.00",
DFID,DFID,22/06/2016,Aid Programme - Accountable Grant Payments ,Asia  Caribbean and Overseas Territories ,Shoklo Malaria Research Unit ,203400-108 ,"353,269.24",
DFID,DFID,30/06/2016,Project delivery costs – supplier services ,Asia  Caribbean and Overseas Territories ,Landell Mills Ltd ,202787-102 ,"154,936.46",
DFID,DFID,09/06/2016,Project delivery costs – supplier services ,Asia  Caribbean and Overseas Territories ,Landell Mills Ltd ,202787-102 ,"451,598.39",
DFID,DFID,02/06/2016,Aid Programme - Core contributions ,Research and Evidence Division ,Program for Appropriate Technology in Health ,202045-102 ,"1,307,190.00",
DFID,DFID,26/06/2016,Aid Programme - Accountable Grant Payments ,Policy Division ,Program for Appropriate Technology in Health ,203663-101 ,"300,000.00",
DFID,DFID,24/06/2016,Aid Programme - Trust Funds contributions ,Policy Division ,United Nations Environment Programme (UNEP) ,201733-113 ,"2,500,000.00",
DFID,DFID,06/06/2016,Aid Programme - Core contributions ,Economic Development Division ,SG HAMBROS BANK & TRUST LTD (USD) ,203232-101 ,"971,955.00",
DFID,DFID,06/06/2016,Aid Programme - Core contributions ,Economic Development Division ,SG HAMBROS BANK & TRUST LTD (USD) ,203232-123 ,"332,436.00",
DFID,DFID,17/06/2016,Encashment of Promissory Notes ,Policy Division ,International Bank for Reconstruction and Development ,200368-103 ,"58,338,000.00",
DFID,DFID,17/06/2016,Encashment of Promissory Notes ,Policy Division ,International Bank for Reconstruction and Development ,200368-103 ,"112,500.00",
DFID,DFID,17/06/2016,Encashment of Promissory Notes ,Policy Division ,International Bank for Reconstruction and Development ,200368-106 ,"47,000,000.00",
DFID,DFID,17/06/2016,Encashment of Promissory Notes ,Policy Division ,International Bank for Reconstruction and Development ,200368-107 ,"10,000,000.00",
DFID,DFID,17/06/2016,Encashment of Promissory Notes ,Policy Division ,International Bank for Reconstruction and Development ,200368-107 ,"13,000,000.00",
DFID,DFID,17/06/2016,Encashment of Promissory Notes ,Policy Division ,International Bank for Reconstruction and Development ,200368-108 ,"5,000,000.00",
DFID,DFID,17/06/2016,Encashment of Promissory Notes ,Policy Division ,International Bank for Reconstruction and Development ,200368-108 ,"10,000,000.00",
DFID,DFID,17/06/2016,Encashment of Promissory Notes ,Policy Division ,International Bank for Reconstruction and Development ,200368-110 ,"6,219,000.00",
DFID,DFID,17/06/2016,Encashment of Promissory Notes ,Policy Division ,International Bank for Reconstruction and Development ,200368-111 ,"20,000,000.00",
DFID,DFID,27/06/2016,Encashment of Promissory Notes ,Economic Development Division ,Asian Development Bank ,201297-104 ,"5,087,971.78",
DFID,DFID,14/06/2016,Encashment of Promissory Notes ,Economic Development Division ,InfraCo Africa Ltd ,203232-127 ,"13,844,000.00",
DFID,DFID,29/06/2016,Aid Programme - Humanitarian Material Relief Assistance and Services ,Asia  Caribbean and Overseas Territories ,Supplier Name withheld ,202660-101 ,"17,597.50",
DFID,DFID,28/06/2016,Aid Programme - Accountable Grant Payments ,Conflict  Humanitarian  Security & Stabilisation Division ,Supplier Name withheld ,203419-105 ,"21,119.78",
DFID,DFID,03/06/2016,Project delivery costs – supplier services ,Asia  Caribbean and Overseas Territories ,SIDBI MUMBAI ,114293-103 ,"30,151.35",
DFID,DFID,02/06/2016,Project delivery costs – supplier services ,Asia  Caribbean and Overseas Territories ,SIDBI MUMBAI ,114293-103 ,"30,863.72",
DFID,DFID,02/06/2016,Project delivery costs – supplier services ,Asia  Caribbean and Overseas Territories ,SIDBI MUMBAI ,114293-103 ,"11,264.70",
DFID,DFID,15/06/2016,Project delivery costs – supplier services ,Asia  Caribbean and Overseas Territories ,SIDBI MUMBAI ,114293-103 ,"12,952.92",
DFID,DFID,15/06/2016,Project delivery costs – supplier services ,Asia  Caribbean and Overseas Territories ,SIDBI MUMBAI ,114293-103 ,"55,349.30",
DFID,DFID,15/06/2016,Project delivery costs – supplier services ,Asia  Caribbean and Overseas Territories ,SIDBI MUMBAI ,114293-103 ,"33,524.02",
DFID,DFID,02/06/2016,Hotels - Accommodation only ,East and Central Africa ,DOUBLE TREE by Hilton ,204334-102 ,534.01,
DFID,DFID,15/06/2016,Hotels - Accommodation only ,East and Central Africa ,DOUBLE TREE by Hilton ,204334-102 ,696.67,
DFID,DFID,15/06/2016,Hotels - Accommodation only ,East and Central Africa ,DOUBLE TREE by Hilton ,204334-102 ,704.73,
DFID,DFID,06/06/2016,Hotels - Accommodation only ,East and Central Africa ,Golden Jubilee Ltd ,101630-101 ,989.58,
DFID,DFID,30/06/2016,Aid Programme - Pooled/Basket funding ,East and Central Africa ,TRADEMARK EAST AFRICA ,200171-112 ,"3,200,000.00",
DFID,DFID,27/06/2016,Aid Programme - Core contributions ,East and Central Africa ,TRADEMARK EAST AFRICA ,201685-104 ,"2,912,500.00",
DFID,DFID,27/06/2016,Aid Programme - Joint programme contribution ,East and Central Africa ,TRADEMARK EAST AFRICA ,203307-102 ,"5,600,000.00",
DFID,DFID,15/06/2016,Research and development costs - supplier services ,Research and Evidence Division ,Humanitarian Outcomes Limited ,203704-115 ,"132,556.00",
DFID,DFID,02/06/2016,Aid Programme - Accountable Grant Payments ,Research and Evidence Division ,Clinton Health Access Initiative ,205105-102 ,"148,907.00",
DFID,DFID,15/06/2016,Aid Programme - Accountable Grant Payments ,West and Southern Africa ,Action Against Hunger - USA ,202909-106 ,"320,652.85",
DFID,DFID,29/06/2016,Project delivery costs – supplier services ,East and Central Africa ,Roger Drew ,204033-105 ,"10,616.27",
DFID,DFID,22/06/2016,Aid Programme - Partnership Programme Arrangements ,Policy Division ,The Asia Foundation (GBP) ,202703-101 ,"611,257.50",
DFID,DFID,28/06/2016,Aid Programme - Accountable Grant Payments ,Asia  Caribbean and Overseas Territories ,The Asia Foundation (GBP) ,204623-101 ,"246,189.00",
DFID,DFID,29/06/2016,Project delivery costs – supplier services ,Asia  Caribbean and Overseas Territories ,Pricewaterhousecoopers Pvt. Ltd. ,203757-101 ,"17,316.68",
DFID,DFID,27/06/2016,Aid Programme - Accountable Grant Payments ,Asia  Caribbean and Overseas Territories ,Society for Development Alternatives ,203757-105 ,"163,000.00",
DFID,DFID,27/06/2016,Aid Programme - Accountable Grant Payments ,Conflict  Humanitarian  Security & Stabilisation Division ,Supplier Name withheld ,203419-105 ,"31,858.00",
DFID,DFID,17/06/2016,Aid Programme - Accountable Grant Payments ,Conflict  Humanitarian  Security & Stabilisation Division ,Supplier Name withheld ,203419-105 ,"5,034.30",
DFID,DFID,23/06/2016,Project delivery costs – supplier services ,Policy Division ,CfBT Education Trust ,201469-106 ,"123,855.00",
DFID,DFID,30/06/2016,Training - Course Fees ,Finance and Corporate Performance Division ,CIPFA BUSINESS LIMITED ,100008-101 ,"2,200.00",
DFID,DFID,27/06/2016,Training Providers/Facilitation Services ,Regional Directorate ,CIPFA BUSINESS LIMITED ,204832-101 ,"2,200.00",
DFID,DFID,07/06/2016,Aid Programme - Core contributions ,Research and Evidence Division ,USDA-ARS ,203202-101 ,"520,000.00",
DFID,DFID,09/06/2016,Aid Programme - Accountable Grant Payments ,Research and Evidence Division ,University of Edinburgh - Research Into Results Ltd ,203665-102 ,"121,233.75",
DFID,DFID,28/06/2016,Aid Programme - Accountable Grant Payments ,Research and Evidence Division ,University of Edinburgh - Research Into Results Ltd ,203665-102 ,"115,042.74",
DFID,DFID,08/06/2016,Research and development costs - supplier services ,Research and Evidence Division ,University of Edinburgh - Research Into Results Ltd ,204326-102 ,"342,290.44",
DFID,DFID,08/06/2016,Air fares ,Asia  Caribbean and Overseas Territories ,Gerry's Travel Agency Private Limited ,101624-101 ,788.98,
DFID,DFID,10/06/2016,Training - Travel & Subsistence ,Asia  Caribbean and Overseas Territories ,Gerry's Travel Agency Private Limited ,101624-101 ,714.79,
DFID,DFID,06/06/2016,Air fares ,East and Central Africa ,Gerry's Travel Agency Private Limited ,101630-101 ,962.62,
DFID,DFID,30/06/2016,Training - Course Fees ,Human Resources ,DLA PIPER UK LTD ,100266-101 ,"1,782.35",
DFID,DFID,16/06/2016,Aid Programme - Accountable Grant Payments ,East and Central Africa ,AgDevCo ,204270-110 ,"133,333.20",
DFID,DFID,16/06/2016,Aid Programme - Accountable Grant Payments ,East and Central Africa ,AgDevCo ,204270-119 ,"199,999.80",
DFID,DFID,16/06/2016,Aid Programme - Accountable Grant Payments ,West and Southern Africa ,AgDevCo ,204270-122 ,"78,138.40",
DFID,DFID,16/06/2016,Aid Programme - Accountable Grant Payments ,West and Southern Africa ,AgDevCo ,204270-123 ,"117,207.60",
DFID,DFID,16/06/2016,Aid Programme - Accountable Grant Payments ,West and Southern Africa ,AgDevCo ,204270-120 ,"23,307.60",
DFID,DFID,16/06/2016,Aid Programme - Accountable Grant Payments ,West and Southern Africa ,AgDevCo ,204270-111 ,"15,538.40",
DFID,DFID,16/06/2016,Aid Programme - Accountable Grant Payments ,East and Central Africa ,AgDevCo ,204270-108 ,"102,519.20",
DFID,DFID,16/06/2016,Aid Programme - Accountable Grant Payments ,East and Central Africa ,AgDevCo ,204270-118 ,"153,778.80",
DFID,DFID,16/06/2016,Aid Programme - Accountable Grant Payments ,West and Southern Africa ,AgDevCo ,204270-117 ,"63,817.80",
DFID,DFID,16/06/2016,Aid Programme - Accountable Grant Payments ,West and Southern Africa ,AgDevCo ,204270-109 ,"42,545.20",
DFID,DFID,16/06/2016,Project delivery costs – supplier services ,East and Central Africa ,AgDevCo ,204940-106 ,"25,379.00",
DFID,DFID,27/06/2016,Aid Programme - Core contributions ,East and Central Africa , ACCESS TO FINANCE RWANDA ,201845-101 ,"239,627.00",
DFID,DFID,02/06/2016,Project delivery costs – supplier services ,Research and Evidence Division ,IMC Worldwide Ltd. ,201879-104 ,"124,413.60",
DFID,DFID,14/06/2016,Project delivery costs – supplier services ,Asia  Caribbean and Overseas Territories ,IMC Worldwide Ltd. ,202328-107 ,"291,301.00",
DFID,DFID,25/06/2016,Project delivery costs – supplier services ,Policy Division ,IMC Worldwide Ltd. ,202628-102 ,"59,010.00",
DFID,DFID,14/06/2016,Project delivery costs – supplier services ,Asia  Caribbean and Overseas Territories ,IMC Worldwide Ltd. ,202697-111 ,"361,877.86",
DFID,DFID,26/06/2016,Project delivery costs – supplier services ,Asia  Caribbean and Overseas Territories ,IMC Worldwide Ltd. ,202697-112 ,"119,757.00",
DFID,DFID,26/06/2016,Project delivery costs – supplier services ,Asia  Caribbean and Overseas Territories ,IMC Worldwide Ltd. ,202697-104 ,"363,843.43",
DFID,DFID,27/06/2016,Project delivery costs – supplier services ,Asia  Caribbean and Overseas Territories ,IMC Worldwide Ltd. ,203186-103 ,"67,131.63",
DFID,DFID,27/06/2016,Project delivery costs – supplier services ,Asia  Caribbean and Overseas Territories ,IMC Worldwide Ltd. ,203186-110 ,"296,822.00",
DFID,DFID,15/06/2016,Project delivery costs – supplier services ,Middle East and North Africa Division ,IMC Worldwide Ltd. ,204061-102 ,"85,455.00",
DFID,DFID,22/06/2016,Project delivery costs – supplier services ,Asia  Caribbean and Overseas Territories ,DAI Europe ,114433-102 ,"1,030,152.34",
DFID,DFID,09/06/2016,Project delivery costs – supplier services ,West and Southern Africa ,DAI Europe ,201018-102 ,"225,129.25",
DFID,DFID,21/06/2016,Fund monies to be managed and dispersed by the supplier ,Middle East and North Africa Division ,DAI Europe ,201828-101 ,"209,829.36",
DFID,DFID,01/06/2016,Project delivery costs – supplier services ,West and Southern Africa ,DAI Europe ,201857-102 ,"132,935.40",
DFID,DFID,30/06/2016,Fund monies to be managed and dispersed by the supplier ,West and Southern Africa ,DAI Europe ,201958-102 ,"34,988.68",
DFID,DFID,14/06/2016,Project delivery costs – supplier services ,West and Southern Africa ,DAI Europe ,201980-102 ,"96,868.79",
DFID,DFID,29/06/2016,Project delivery costs – supplier services ,West and Southern Africa ,DAI Europe ,202476-103 ,"178,370.62",
DFID,DFID,23/06/2016,Project delivery costs – supplier services ,East and Central Africa ,DAI Europe ,202580-102 ,"984,576.03",
DFID,DFID,29/06/2016,Project delivery costs – supplier services ,West and Southern Africa ,DAI Europe ,202585-102 ,"290,051.14",
DFID,DFID,24/06/2016,Project delivery costs – supplier services ,East and Central Africa ,DAI Europe ,202596-105 ,"219,734.94",
DFID,DFID,15/06/2016,Project delivery costs – supplier services ,East and Central Africa ,DAI Europe ,202596-105 ,"42,905.00",
DFID,DFID,26/06/2016,Project delivery costs – supplier services ,East and Central Africa ,DAI Europe ,202596-105 ,"214,976.94",
DFID,DFID,23/06/2016,Project delivery costs – supplier services ,Economic Development Division ,DAI Europe ,202817-105 ,"2,504.43",
DFID,DFID,24/06/2016,Project delivery costs – supplier services ,West and Southern Africa ,DAI Europe ,203000-102 ,"597,815.29",
DFID,DFID,16/06/2016,Project delivery costs – supplier services ,West and Southern Africa ,DAI Europe ,203317-102 ,"227,170.21",
DFID,DFID,17/06/2016,Project delivery costs – supplier services ,West and Southern Africa ,DAI Europe ,203922-101 ,"120,553.27",
DFID,DFID,14/06/2016,Project delivery costs – supplier services ,East and Central Africa ,DAI Europe ,203986-102 ,"161,912.39",
DFID,DFID,09/06/2016,Project delivery costs – supplier services ,Middle East and North Africa Division ,DAI Europe ,204325-102 ,"53,430.78",
DFID,DFID,07/06/2016,Project delivery costs – supplier services ,Middle East and North Africa Division ,DAI Europe ,204325-102 ,"4,151.57",
DFID,DFID,27/06/2016,Project delivery costs – supplier services ,Asia  Caribbean and Overseas Territories ,DAI Europe ,205131-101 ,"34,240.00",
DFID,DFID,20/06/2016,Project delivery costs – supplier services ,Policy Division ,Sightsavers ,203145-101 ,"637,189.00",
DFID,DFID,30/06/2016,Project delivery costs – supplier services ,Policy Division ,Sightsavers ,203146-103 ,"250,000.00",
DFID,DFID,17/06/2016,Project delivery costs – supplier services ,East and Central Africa ,Coffey International Development (Do not use) ,203840-102 ,"15,565.00",
DFID,DFID,24/06/2016,Project delivery costs – supplier services ,Policy Division ,Alpine Resourcing Limited ,203516-104 ,"5,000.00",
DFID,DFID,30/06/2016,Project delivery costs – supplier services ,East and Central Africa ,MSI ,202549-105 ,"154,309.00",
DFID,DFID,02/06/2016,Project delivery costs – supplier services ,Policy Division ,PATH ,202674-101 ,"32,372.00",
DFID,DFID,02/06/2016,Project delivery costs – supplier services ,Policy Division ,PATH ,202674-101 ,"11,254.74",
DFID,DFID,02/06/2016,Project delivery costs – supplier services ,Policy Division ,PATH ,202674-101 ,"5,251.06",
DFID,DFID,02/06/2016,Project delivery costs – supplier services ,Policy Division ,PATH ,202674-101 ,900.30,
DFID,DFID,03/06/2016,Project delivery costs – supplier services ,Policy Division ,PATH ,202674-101 ,"48,945.07",
DFID,DFID,24/06/2016,Project delivery costs – supplier services ,Policy Division ,PATH ,202674-101 ,"32,372.00",
DFID,DFID,24/06/2016,Project delivery costs – supplier services ,Policy Division ,PATH ,202674-101 ,"17,526.20",
DFID,DFID,24/06/2016,Project delivery costs – supplier services ,Policy Division ,PATH ,202674-101 ,"23,253.68",
DFID,DFID,24/06/2016,Project delivery costs – supplier services ,Policy Division ,PATH ,202674-101 ,"24,461.66",
DFID,DFID,02/06/2016,Project delivery costs – supplier services ,Policy Division ,PATH ,202676-101 ,"18,981.66",
DFID,DFID,02/06/2016,Project delivery costs – supplier services ,Policy Division ,PATH ,202676-101 ,"60,273.51",
DFID,DFID,03/06/2016,Project delivery costs – supplier services ,Asia  Caribbean and Overseas Territories ,PATH ,202975-101 ,"400,791.13",
DFID,DFID,13/06/2016,Project delivery costs – supplier services ,East and Central Africa ,DKT International ,202980-103 ,"285,000.00",
DFID,DFID,24/06/2016,Project delivery costs – supplier services ,Policy Division ,WYG International ,203571-102 ,"137,063.40",
DFID,DFID,07/06/2016,Project delivery costs – supplier services ,Economic Development Division ,WYG International ,203732-102 ,"14,880.00",
DFID,DFID,24/06/2016,Research and development costs - supplier services ,Research and Evidence Division ,WYG International ,204563-104 ,"115,920.90",
DFID,DFID,24/06/2016,Project delivery costs – supplier services ,Asia  Caribbean and Overseas Territories ,WYG International ,204952-102 ,"33,046.00",
DFID,DFID,20/06/2016,Project delivery costs – supplier services ,West and Southern Africa ,LTS International Ltd. ,201196-108 ,"2,367.31",
DFID,DFID,08/06/2016,Project delivery costs – supplier services ,West and Southern Africa ,LTS International Ltd. ,201196-108 ,"28,869.18",
DFID,DFID,08/06/2016,Project delivery costs – supplier services ,Asia  Caribbean and Overseas Territories ,LTS International Ltd. ,201724-153 ,"75,378.87",
DFID,DFID,08/06/2016,Project delivery costs – supplier services ,Asia  Caribbean and Overseas Territories ,LTS International Ltd. ,201724-153 ,"188,590.45",
DFID,DFID,09/06/2016,Aid Programme - Accountable Grant Payments ,West and Southern Africa ,Pact  Inc. ,204739-101 ,"45,613.00",
DFID,DFID,07/06/2016,Vehicle Repairs & Maintenance ,West and Southern Africa ,De Bright Auto Link Nig Ltd ,101622-108 ,"1,390.41",
DFID,DFID,14/06/2016,Vehicle Repairs & Maintenance ,West and Southern Africa ,De Bright Auto Link Nig Ltd ,101622-108 ,750.20,
DFID,DFID,02/06/2016,Project delivery costs – supplier services ,West and Southern Africa ,GDSI UK LIMITED ,202999-104 ,"29,994.00",
DFID,DFID,27/06/2016,Project delivery costs – supplier services ,Asia  Caribbean and Overseas Territories ,PricewaterhouseCoopers Pvt.Ltd ,202865-101 ,"253,682.00",
DFID,DFID,17/06/2016,Project delivery costs – supplier services ,Research and Evidence Division ,PricewaterhouseCoopers Pvt.Ltd ,203200-106 ,"100,975.00",
DFID,DFID,16/06/2016,Project delivery costs – supplier services ,Asia  Caribbean and Overseas Territories ,PricewaterhouseCoopers Pvt.Ltd ,204135-101 ,"54,794.00",
DFID,DFID,22/06/2016,Repairs  Maint  Alter - Property & Constrct. Services ,West and Southern Africa ,Lilleker Bros (Nigeria) Ltd ,101622-108 ,626.00,
DFID,DFID,07/06/2016,Repairs  Maint  Alter - Property & Constrct. Services ,West and Southern Africa ,Lilleker Bros (Nigeria) Ltd ,101622-108 ,"4,953.07",
DFID,DFID,10/06/2016,Taxi costs ,Business Solutions Division Level ,d&m taxis ,200001-101 ,600.00,
DFID,DFID,17/06/2016,Project delivery costs – supplier services ,Research and Evidence Division ,PricewaterhouseCoopers Limited (KENYA3) ,204570-106 ,"42,312.00",
DFID,DFID,24/06/2016,Research and development costs - supplier services ,Research and Evidence Division ,PricewaterhouseCoopers Limited (KENYA3) ,204570-106 ,"32,240.98",
DFID,DFID,30/06/2016,Research and development costs - supplier services ,Research and Evidence Division ,PricewaterhouseCoopers Limited (KENYA3) ,204570-106 ,"15,164.00",
DFID,DFID,14/06/2016,Research and development costs - supplier services ,Research and Evidence Division ,PricewaterhouseCoopers Limited (KENYA3) ,204570-106 ,"23,523.00",
DFID,DFID,17/06/2016,Research and development costs - supplier services ,Research and Evidence Division ,University of Cape Town (UCT) ,201446-101 ,"336,065.73",
DFID,DFID,21/06/2016,Hotels - Accommodation only ,Non-Departmental Public Body ,Lakeshore Service Apartment (Pvt) Ltd ,204873-102 ,805.71,
DFID,DFID,28/06/2016,Aid Programme - Voluntary contributions ,East and Central Africa ,AUC ,204458-104 ,"400,000.00",
DFID,DFID,30/06/2016,Project delivery costs – supplier services ,West and Southern Africa ,American Institute for Research ,203551-101 ,"17,736.00",
DFID,DFID,08/06/2016,Secure Staff Accommodation ,West and Southern Africa ,Supplier Name withheld ,101622-108 ,"36,010.16",12 month's rental payment for Secure Staff Accommodation for the period  June 2016 � June 2017  � DFID Nigeria
DFID,DFID,08/06/2016,Secure Staff Accommodation ,West and Southern Africa ,Supplier Name withheld ,101622-108 ,"36,929.92",12 month's rental payment for Secure Staff Accommodation for the period  July 2016 � June 2017  � DFID Nigeria
DFID,DFID,29/06/2016,Project delivery costs – supplier services ,Policy Division ,Pearson ,201469-103 ,"173,856.00",
DFID,DFID,14/06/2016,Project delivery costs – supplier services ,Policy Division ,Pearson ,201469-103 ,"144,880.00",
DFID,DFID,14/06/2016,Office Equipment - Maintenance ,West and Southern Africa ,Formats Projects Services Limited ,100152-117 ,"1,228.81",
DFID,DFID,13/06/2016,Printer Consumables ,West and Southern Africa ,Formats Projects Services Limited ,101622-108 ,768.26,
DFID,DFID,14/06/2016,Office Equipment - Maintenance ,West and Southern Africa ,Formats Projects Services Limited ,101622-108 ,"4,915.22",
DFID,DFID,14/06/2016,Furniture & Fittings ,West and Southern Africa ,Formats Projects Services Limited ,101622-108 ,"1,319.80",
DFID,DFID,02/06/2016,Computer software maintenance ,Group Operations ,MidlandHR ,204999-105 ,"1,596.66",
DFID,DFID,02/06/2016,Computer software maintenance ,Group Operations ,MidlandHR ,204999-105 ,"13,223.22",
DFID,DFID,02/06/2016,Computer software maintenance ,Group Operations ,MidlandHR ,204999-105 ,"1,596.66",
DFID,DFID,28/06/2016,Aid Programme - Voluntary contributions ,Asia  Caribbean and Overseas Territories ,Deutsche Gesellschaft fuer Internationale Zusammenarbeit (GIZ) GmbH ,202976-108 ,"300,000.00",
DFID,DFID,22/06/2016,Project delivery costs – supplier services ,West and Southern Africa ,Martin Cumpa Castro(Tz)USD ,201944-104 ,"4,557.57",
DFID,DFID,13/06/2016,Project delivery costs – supplier services ,West and Southern Africa ,International Law and Policy Institute ,203714-101 ,"320,275.00",
DFID,DFID,16/06/2016,Aid Programme - Accountable Grant Payments ,Asia  Caribbean and Overseas Territories ,Jhpiego ,203224-104 ,"305,648.19",
DFID,DFID,03/06/2016,Aid Programme - Accountable Grant Payments ,Asia  Caribbean and Overseas Territories ,Jhpiego ,203224-104 ,"69,594.56",
DFID,DFID,15/06/2016,Project delivery costs – supplier services ,East and Central Africa ,dan whitaker ltd ,204266-104 ,"2,165.40",
DFID,DFID,02/06/2016,Medical/Health Services ,Asia  Caribbean and Overseas Territories ,Premire Insurance Co. (Nepal) Ltd ,101621-101 ,"3,494.18",
DFID,DFID,02/06/2016,Aid Programme - Accountable Grant Payments ,Conflict  Humanitarian  Security & Stabilisation Division ,Supplier Name withheld ,202878-103 ,"309,941.33",
DFID,DFID,09/06/2016,Aid Programme - Accountable Grant Payments ,East and Central Africa ,TechnoServe  Incorporated ,202844-104 ,"166,949.90",
DFID,DFID,29/06/2016,Aid Programme - Trust Funds contributions ,Asia  Caribbean and Overseas Territories ,International Labour Organization ,203857-101 ,"900,000.00",
DFID,DFID,28/06/2016,Aid Programme - Accountable Grant Payments ,Asia  Caribbean and Overseas Territories ,Center for Economic Research in Pakistan (CERP) ,113484-109 ,"157,337.00",
DFID,DFID,23/06/2016,Project delivery costs – supplier services ,East and Central Africa ,Chr. Michelsen Institute ,202770-104 ,"45,564.83",
DFID,DFID,16/06/2016,Aid Programme - Accountable Grant Payments ,West and Southern Africa ,Millennium Promise Alliance ,202483-102 ,"581,342.00",
DFID,DFID,30/06/2016,Project delivery costs – supplier services ,East and Central Africa ,M&C Saatchi World Services  ,204957-103 ,"24,900.00",
DFID,DFID,27/06/2016,Hotels - Accommodation only ,West and Southern Africa ,Ballantynes lodge ,101638-105 ,519.58,
DFID,DFID,28/06/2016,Aid Programme - Joint programme contribution ,West and Southern Africa ,US Agency for Int'l Dev ,204889-101 ,"1,500,000.00",
DFID,DFID,14/06/2016,Training Providers/Facilitation Services ,Human Resources ,Rosetta Stone ,100269-156 ,"7,700.00",
DFID,DFID,03/06/2016,Aid Programme - Accountable Grant Payments ,Policy Division ,AAUK ,203559-114 ,"120,501.77",
DFID,DFID,29/06/2016,Aid Programme - Accountable Grant Payments ,Middle East and North Africa Division ,Supplier Name withheld ,204537-101 ,"1,345,934.00",
DFID,DFID,28/06/2016,Aid Programme - Accountable Grant Payments ,Middle East and North Africa Division ,People in Need ,205048-103 ,"293,050.62",
DFID,DFID,17/06/2016,Project delivery costs – supplier services ,Asia  Caribbean and Overseas Territories ,Meghraj Capital Advisors Private Limited ,203484-101 ,"7,712.86",
DFID,DFID,10/06/2016,Aid Programme - Other Financial Aid to Government ,Asia  Caribbean and Overseas Territories ,Tristan da Cunha Finance Department ,204928-102 ,"623,210.70",
DFID,DFID,17/06/2016,Aid Programme - Accountable Grant Payments ,Policy Division ,Disability Rights Fund Inc. ,203971-101 ,"69,827.00",
DFID,DFID,27/06/2016,Postage Costs ,Group Operations ,Royal Mail Courier Services Ltd ,203717-101 ,675.00,
DFID,DFID,24/06/2016,Legal costs ,West and Southern Africa ,Marriott Davies Yapp LLP ,203161-105 ,"3,102.00",
DFID,DFID,20/06/2016,Aid Programme - Other Financial Aid to Government ,West and Southern Africa ,Ministry of Finance & Economic Planning Ghana Judication ,300037-103 ,"110,708.46",
DFID,DFID,21/06/2016,Training Providers/Facilitation Services ,West and Southern Africa ,inlingua - Centro Suiço Línguas  Lda ,101620-101 ,"1,112.33",
DFID,DFID,28/06/2016,Aid Programme - Accountable Grant Payments ,Asia  Caribbean and Overseas Territories ,International Centre for Integrated Mountain Development ,202775-102 ,"155,324.86",
DFID,DFID,08/06/2016,Project delivery costs – supplier services ,West and Southern Africa ,Bridge International Academies ,202678-104 ,"573,731.00",
DFID,DFID,28/06/2016,Other Financial Aid to Government ,Asia  Caribbean and Overseas Territories ,Bangladesh Bank for Promoting Financial Services Poverty Reduction ,107370-102 ,"600,000.00",
DFID,DFID,09/06/2016,Fund monies to be managed and dispersed by the supplier ,Policy Division ,PWC GEC Client Account ,202372-103 ,"5,766,033.00",
DFID,DFID,13/06/2016,Project delivery costs – supplier services ,Asia  Caribbean and Overseas Territories ,Louis Berger Group  Inc. ,203426-102 ,"119,766.00",
DFID,DFID,20/06/2016,Other Building Products ,Group Operations ,DECC EA Funds Account ,203717-101 ,"37,835.00",DFID�s annual  CO2 carbon allowance emissions  contribution for 2016 - 2017
DFID,DFID,17/06/2016,Aid Programme - Accountable Grant Payments ,Policy Division ,HelpAge International UK ,203559-109 ,"466,817.00",
DFID,DFID,30/06/2016,Aid Programme - Pooled/Basket funding ,East and Central Africa ,Kenya Markets Trust ,202698-107 ,"1,247,996.00",
DFID,DFID,30/06/2016,Aid Programme - Pooled/Basket funding ,East and Central Africa ,Kenya Markets Trust ,202698-111 ,"3,327,989.00",
DFID,DFID,20/06/2016,Aid Programme - Accountable Grant Payments ,Research and Evidence Division ,Grand Challenges Canada ,203486-103 ,"324,476.00",
DFID,DFID,15/06/2016,Project delivery costs – supplier services ,Asia  Caribbean and Overseas Territories ,Association of Canadian Community Colleges (ACCC) ,202435-101 ,"317,830.00",
DFID,DFID,28/06/2016,Aid Programme - Accountable Grant Payments ,Research and Evidence Division ,Université Laval ,203049-104 ,"144,657.83",
DFID,DFID,24/06/2016,Aid Programme - Joint programme contribution ,Asia  Caribbean and Overseas Territories ,Deutsche Gesellschaft für Internationale Zusammenarbeit (GIZ) GmbH ,202488-110 ,"157,490.00",
DFID,DFID,28/06/2016,Hotels - Accommodation only ,West and Southern Africa ,The Villas ,101631-101 ,"1,221.39",
DFID,DFID,23/06/2016,Project delivery costs – supplier services ,Asia  Caribbean and Overseas Territories ,Supplier Name withheld ,202112-103 ,"93,506.72",
DFID,DFID,06/06/2016,Hotels - Accommodation only ,East and Central Africa ,Golden Jubilee Limited (USD) ,101616-101 ,"1,239.67",
DFID,DFID,27/06/2016,Aid Programme - Other Financial Aid to Government ,Asia  Caribbean and Overseas Territories ,Pakistan National Cash Transfer Programme ,203029-102 ,"10,637,500.00",
DFID,DFID,27/06/2016,Aid Programme - Other Financial Aid to Government ,Asia  Caribbean and Overseas Territories ,Pakistan National Cash Transfer Programme ,203029-108 ,"1,862,500.00",
DFID,DFID,02/06/2016,Project delivery costs – supplier services ,East and Central Africa ,ACE International Consultants S.L. ,203008-103 ,"67,725.00",
DFID,DFID,29/06/2016,Aid Programme - Voluntary contributions ,Policy Division ,Aids Fonds - STOP AIDS NOW! - Soa Aids Nederland ,203325-101 ,"437,500.00",
DFID,DFID,10/06/2016,Aid Programme - Other Financial Aid to Government ,Asia  Caribbean and Overseas Territories ,Maternal Newborn and Child Health Programme  Pakistan ,204024-105 ,"27,000,000.00",
DFID,DFID,10/06/2016,Aid Programme - Poverty Reduction Budget Support ,Asia  Caribbean and Overseas Territories ,Maternal Newborn and Child Health Programme  Pakistan ,204024-107 ,"30,000,000.00",
DFID,DFID,10/06/2016,Aid Programme - Other Financial Aid to Government ,Asia  Caribbean and Overseas Territories ,Maternal Newborn and Child Health Programme  Pakistan ,204024-109 ,"3,000,000.00",
DFID,DFID,03/06/2016,Aid Programme - Accountable Grant Payments ,Asia  Caribbean and Overseas Territories ,Institute for Human Rights and Business ,203601-107 ,"142,764.00",
DFID,DFID,07/06/2016,Aid Programme - Accountable Grant Payments ,Middle East and North Africa Division ,Alfanar ,205024-102 ,"111,854.29",
DFID,DFID,13/06/2016,Research and development costs - supplier services ,Research and Evidence Division ,African Institute for Development Policy (AFIDEP) ,203778-108 ,"145,462.56",
DFID,DFID,09/06/2016,Aid Programme - Accountable Grant Payments ,Research and Evidence Division ,GSMA Mobile for Development Foundation Inc ,203638-105 ,"537,724.00",
DFID,DFID,10/06/2016,Project delivery costs – supplier services ,Business Solutions Division Level ,Info-Assure LTD ,200005-116 ,"12,789.70",
DFID,DFID,14/06/2016,Research and development costs - supplier services ,Asia  Caribbean and Overseas Territories ,A.F. Ferguson & Co Lahore ,202697-105 ,"15,889.94",
DFID,DFID,17/06/2016,Aid Programme - Accountable Grant Payments ,East and Central Africa ,BRAC Maendeleo Tanzania ,202901-101 ,"1,348,149.02",
DFID,DFID,01/06/2016,Aid Programme - Accountable Grant Payments ,Policy Division ,Ashden ,204202-105 ,"20,000.00",
DFID,DFID,29/06/2016,Aid Programme - Accountable Grant Payments ,Asia  Caribbean and Overseas Territories ,LUMS GBP ,202697-106 ,"67,839.99",
DFID,DFID,29/06/2016,Air fares ,Business Solutions Division Level ,dnata International Private Ltd. ,200001-101 ,"2,940.14",
DFID,DFID,29/06/2016,Air fares ,Asia  Caribbean and Overseas Territories ,dnata International Private Ltd. ,201932-101 ,823.80,
DFID,DFID,30/06/2016,Air fares ,Research and Evidence Division ,dnata International Private Ltd. ,202392-109 ,"1,420.96",
DFID,DFID,29/06/2016,Air fares ,Asia  Caribbean and Overseas Territories ,dnata International Private Ltd. ,203035-102 ,"3,308.38",
DFID,DFID,29/06/2016,Air fares ,Business Solutions Division Level ,dnata International Private Ltd. ,203329-104 ,623.83,
DFID,DFID,29/06/2016,Air fares ,Asia  Caribbean and Overseas Territories ,dnata International Private Ltd. ,204053-101 ,"2,010.93",
DFID,DFID,29/06/2016,Air fares ,Asia  Caribbean and Overseas Territories ,dnata International Private Ltd. ,204053-101 ,"1,653.18",
DFID,DFID,24/06/2016,Aid Programme - Accountable Grant Payments ,East and Central Africa ,WFT Africa ,202844-105 ,"696,535.00",
DFID,DFID,06/06/2016,Aid Programme - Trust Funds contributions ,Policy Division ,UNDP Multi-Partner Trust Fund Office ,204202-104 ,"600,000.00",
DFID,DFID,13/06/2016,Aid Programme - Accountable Grant Payments ,West and Southern Africa ,Christian Health Association of Ghana (CHAG) ,203536-104 ,"296,314.80",
DFID,DFID,02/06/2016,Project delivery costs – supplier services ,West and Southern Africa ,Imperial Health Sciences ,202214-108 ,"13,915.60",
DFID,DFID,17/06/2016,Data Network - land lines ,Business Solutions Division Level ,Liquid Telecommunications Rwanda Ltd ,203329-102 ,906.17,
DFID,DFID,13/06/2016,Aid Programme - Other Financial Aid to Government ,West and Southern Africa ,Ministry of Finance  Ghana Health Sector Support Programme ,203648-110 ,"400,000.00",
DFID,DFID,16/06/2016,Fund monies to be managed and dispersed by the supplier ,East and Central Africa ,BMB Mott MacDonald BV ,202946-105 ,"186,277.13",
DFID,DFID,16/06/2016,Fund monies to be managed and dispersed by the supplier ,East and Central Africa ,BMB Mott MacDonald BV ,202946-108 ,"71,543.45",
DFID,DFID,08/06/2016,Aid Programme - Accountable Grant Payments ,Asia  Caribbean and Overseas Territories ,Infrastructure Development Company Limited (IDCOL) ,202976-107 ,"412,459.00",
DFID,DFID,07/06/2016,Vehicle Repairs & Maintenance ,West and Southern Africa ,Kojo Auto Service Centre Ltd ,101622-108 ,558.17,
DFID,DFID,03/06/2016,Aid Programme - Core contributions ,Research and Evidence Division ,The Innovative Vector Control Consortium ,204076-101 ,"1,148,000.00",
DFID,DFID,28/06/2016,Aid Programme - Accountable Grant Payments ,East and Central Africa ,CANADEM ,204019-107 ,"25,088.00",
DFID,DFID,24/06/2016,Aid Programme - Accountable Grant Payments ,West and Southern Africa ,CANADEM ,205161-103 ,"17,425.00",
DFID,DFID,28/06/2016,Aid Programme - Accountable Grant Payments ,East and Central Africa ,SAGCOT CENTRE LIMITED ,202844-108 ,"323,397.27",
DFID,DFID,28/06/2016,Aid Programme - Accountable Grant Payments ,East and Central Africa ,RedR Australia ,204019-107 ,"16,521.56",
DFID,DFID,27/06/2016,Aid Programme - Accountable Grant Payments ,Asia  Caribbean and Overseas Territories ,Valid Nutrition (Ireland) ,202744-102 ,"21,452.00",
DFID,DFID,14/06/2016,Aid Programme - Accountable Grant Payments ,Economic Development Division ,The Partnering Initiative ,203449-101 ,"16,530.00",
DFID,DFID,14/06/2016,Aid Programme - Accountable Grant Payments ,Policy Division ,World Child Cancer UK ,203559-108 ,"63,357.30",
DFID,DFID,27/06/2016,Data Network - land lines ,Business Solutions Division Level ,(Vodafone)Cable & Wireless Global Networks Ltd ,200002-185 ,"6,312.70",
DFID,DFID,27/06/2016,Telephone Usage & services ,Business Solutions Division Level ,(Vodafone)Cable & Wireless Global Networks Ltd ,200002-185 ,"7,012.57",
DFID,DFID,24/06/2016,Data Network - land lines ,Business Solutions Division Level ,(Vodafone)Cable & Wireless Global Networks Ltd ,200002-185 ,"6,113.26",
DFID,DFID,24/06/2016,Data Network - land lines ,Business Solutions Division Level ,(Vodafone)Cable & Wireless Global Networks Ltd ,203329-103 ,"6,113.26",
DFID,DFID,27/06/2016,Data Network - land lines ,Business Solutions Division Level ,(Vodafone)Cable & Wireless Global Networks Ltd ,203329-103 ,"6,312.69",
DFID,DFID,27/06/2016,Telephone Usage & services ,Business Solutions Division Level ,(Vodafone)Cable & Wireless Global Networks Ltd ,203329-103 ,"7,012.56",
DFID,DFID,08/06/2016,Research and development costs - supplier services ,Research and Evidence Division ,President and Fellows of Harvard College ,203778-105 ,"86,988.00",
DFID,DFID,23/06/2016,Aid Programme - Accountable Grant Payments ,East and Central Africa ,International NGO Safety Organisation ,203462-118 ,"97,381.00",
DFID,DFID,26/06/2016,Data Network - land lines ,Business Solutions Division Level ,Keltec Ltd ,200002-124 ,"1,125.00",
DFID,DFID,23/06/2016,Project delivery costs – supplier services ,Policy Division ,Global Partners Governance ,204757-102 ,"9,500.00",
DFID,DFID,28/06/2016,Project delivery costs – supplier services ,Human Resources ,Havas People ,100269-127 ,905.94,
DFID,DFID,17/06/2016,Telephone Usage & services ,West and Southern Africa ,Emerging Markets Telecommunications Services Ltd ,101622-107 ,"2,819.80",
DFID,DFID,16/06/2016,Project delivery costs – supplier services ,Research and Evidence Division ,JBS International  Inc. ,203339-105 ,"5,748.26",
DFID,DFID,02/06/2016,Aid Programme - Accountable Grant Payments ,Asia  Caribbean and Overseas Territories ,International Institute for Population Sciences ,204169-101 ,"990,749.32",
DFID,DFID,30/06/2016,Aid Programme - Voluntary contributions ,Asia  Caribbean and Overseas Territories ,Nordic International Support Foundation (NIS) ,204661-102 ,"2,230,000.00",
DFID,DFID,23/06/2016,Accountable Grant Payments ,Asia  Caribbean and Overseas Territories ,Centre for Policy Dialogue ,204468-103 ,"185,000.00",
DFID,DFID,23/06/2016,Accountable Grant Payments ,Asia  Caribbean and Overseas Territories ,Centre for Policy Dialogue ,204468-103 ,"7,279.00",
DFID,DFID,23/06/2016,Project delivery costs – supplier services ,Asia  Caribbean and Overseas Territories ,Public Health England ,202488-109 ,"77,790.00",
DFID,DFID,23/06/2016,other information and communication technologies ,Business Solutions Division Level ,Kainos Software Limited ,200001-101 ,"2,506.00",
DFID,DFID,23/06/2016,other information and communication technologies ,Business Solutions Division Level ,Kainos Software Limited ,200003-173 ,"3,007.20",
DFID,DFID,07/06/2016,Project delivery costs – supplier services ,Policy Division ,NUI Galway ,203709-111 ,"105,693.89",
DFID,DFID,15/06/2016,Electricity ,West and Southern Africa ,Abuja Electricity Distribution Company ,101622-108 ,655.10,
DFID,DFID,15/06/2016,Electricity ,West and Southern Africa ,Abuja Electricity Distribution Company ,101622-108 ,668.57,
DFID,DFID,15/06/2016,Electricity ,West and Southern Africa ,Abuja Electricity Distribution Company ,101622-108 ,971.90,
DFID,DFID,09/06/2016,Project delivery costs – supplier services ,Asia  Caribbean and Overseas Territories ,Narasimhan Srinivasan ,114293-103 ,"5,568.10",
DFID,DFID,26/06/2016,Project delivery costs – supplier services ,Asia  Caribbean and Overseas Territories ,Scottish Police Authority ,204619-101 ,"23,195.00",
DFID,DFID,27/06/2016,Aid Programme - Accountable Grant Payments ,Policy Division ,Regents of the University of Michigan ,203516-102 ,"81,944.45",
DFID,DFID,21/06/2016,Contract & Agency Staff ,Business Solutions Division Level ,HP Enterprise Services UK Ltd ,200002-166 ,"2,189.46",
DFID,DFID,28/06/2016,Project delivery costs – supplier services ,East and Central Africa ,UCL Consultants ,203459-113 ,"4,952.77",
